{"text_format":"1","workbook":"xlsx","n_sheets":14,"sheets":["様式１－１ ","様式１－２ ","様式１－３ ","様式１－４ ","様式１－5 ","再委託費予算書（様式１－5別紙）","【事務局経費】支出・収入内訳明細書","スタート_マスター","【事業①】支出・収入内訳明細書","【事業②】支出・収入内訳明細書","【事業③】支出・収入内訳明細書","【事業④】支出・収入内訳明細書","【事業⑤】支出・収入内訳明細書","end"],"not_rendered":{"charts":0,"images":0,"macros":1,"external_links":0,"defined_names":23,"comments":0,"pivot_tables":0},"unopened":[],"bounds":{"document_bytes":16777216,"sheet_cells":100000,"rows_first":2000,"rows_last":500,"rows_between":2000,"halvings":0,"cell_chars":16384,"cell_head_chars":4096},"cells_cut":0,"cells_raw":0,"read":"whole","date_system":"1900"}

{"sheet":"様式１－１ ","index":0,"n_rows":356,"n_cols":42,"rows_kept":356,"cut":false,"hidden":false,"merged":[[18,4,18,16],[0,33,0,36],[13,0,13,6],[14,0,15,36],[16,0,16,36],[0,0,0,10],[21,0,21,36],[22,0,22,4],[22,5,22,36],[23,0,23,36],[24,0,24,4],[24,5,24,20],[24,21,24,24],[24,28,24,32],[25,0,25,4],[25,5,25,20],[25,21,25,24],[26,0,27,4],[26,5,27,36],[25,28,25,32],[29,33,29,36],[31,0,31,36],[33,0,33,36],[43,0,43,36],[44,0,44,4],[44,15,44,19],[30,21,30,35],[32,17,32,35],[48,0,48,4],[48,5,48,36],[45,0,46,4],[45,5,46,36],[47,0,47,4],[47,5,47,16],[47,17,47,19],[47,20,47,36]]}
[]
[null,null,null,null,null,null,null,null,null,null,null,null,null,null,null,null,null,null,null,null,null,null,null,null,null,null,null,null,null,null,null,null,null,null,null,null,"【様式１－１】"]
[null,null,"令和３年度第一次補正予算事業　「子供たちの伝統文化の体験事業」　"]
[null,null,"令和４年度予算事業　「伝統文化親子教室事業（地域展開型）」　"]
[]
[null,null,null,null,null,null,null,null,null,null,null,null,"団体名"]
[null,null,null,null,null,null,null,null,null,null,null,null,"役職名"]
[null,null,null,null,null,null,null,null,null,null,null,null,"代表者氏名"]
[null,null,null,null,null,null,null,null,null,null,null,null,"団体所在地",null,null,null,"（〒 　　　  －  　　　    ）"]
[]
[null,null,null,null,null,null,null,null,null,null,null,null,"電話番号",null,null,null,null,null,null,null,null,null,null,"／FAX"]
[null,null,null,null,null,null,null,null,null,null,null,null,"E-MAIL"]
[]
["１．実施計画の名称"]
[]
[]
["２．要望額"]
[]
[null,null,null,null,null,null,null,null,null,null,null,null,null,null,null,null,null,"円",null,null,"（収支予算書の「要望額」欄と一致します）"]
[]
[]
["３．実施計画の期間"]
["実施計画期間",null,null,null,null,"令和　年　　月　　日～令和　年　　月　　日"]
["４．事業概要　　"]
["①開催期間",null,null,null,null,"令和　年　　月　　日～令和　年　　月　　日",null,null,null,null,null,null,null,null,null,null,null,null,null,null,null,"②開催日数",null,null,null,null,"延べ",null,null,null,null,null,null,"日"]
["③開催場所",null,null,null,null,null,null,null,null,null,null,null,null,null,null,null,null,null,null,null,null,"④参加人数",null,null,null,null,"延べ",null,null,null,null,null,null,"人"]
["⑤内　  容  "]
[]
["⑥伝統文化等の分野（該当するものすべてに○を選択してください）"]
[null,"華道",null,null,null,"茶道",null,null,null,"書道",null,null,null,"能楽",null,null,"　","和装",null,null,"　","邦楽（箏，尺八，三味線等）",null,null,null,null,null,null,null,"　","和太鼓"]
["　","囲碁  ・  将棋",null,null,null,null,null,null,"　","食文化・郷土料理",null,null,null,null,null,null,null,"その他",null,null,"（",null,null,null,null,null,null,null,null,null,null,null,null,null,null,null,"）"]
["⑦参加者の対象（該当するものすべてに○を選択してください）"]
[null,"小学生",null,null,null,"中学生",null,null,null,"教員",null,null,null,"その他",null,null,"（",null,null,null,null,null,null,null,null,null,null,null,null,null,null,null,null,null,null,null,"）"]
["５．応募団体の区分（いずれか１つにチェック）",null,null,null,null,null,null,null,null,null,null,null,null,null,null,null,null,null,null,null,null,null,null,null,null,null,null,null,null,null,null,null,null,null,null,null,null,null,null,"応募団体区分（集計用）"]
[null,null,"地方公共団体",null,null,null,null,null,null,null,null,null,null,null,null,null,null,null,null,null,null,null,null,null,null,null,null,null,null,null,null,null,null,null,null,null,null,null,null,"地方公共団体",null,false]
[null,null,"地方公共団体が中核として参画する実行委員会",null,null,null,null,null,null,null,null,null,null,null,null,null,null,null,null,null,null,null,null,null,null,null,null,null,null,null,null,null,null,null,null,null,null,null,null,"実行委員会",null,false]
[null,null,"参画する地方公共団体名【　　　　　　　　　　　　　　　",null,null,null,null,null,null,null,null,null,null,null,null,null,null,null,null,null,null,null,null,null,null,null,null,null,null,null,null,null,"】","複数回答可",null,null,null,null,null,"法人・団体",null,false]
[null,null,"法人・団体（該当する種別にチェック）",null,null,null,null,null,null,null,null,null,null,null,null,null,null,null,null,null,null,null,null,null,null,null,null,null,null,null,null,null,null,null,null,null,null,null,null,"指定管理者",null,false]
[null,null,null,"一般社団法人",null,null,null,null,null,"一般財団法人",null,null,null,null,null,"公益社団法人",null,null,null,null,null,null,"公益財団法人",null,null,null,null,null,"特定非営利活動法人"]
[null,null,null,"その他法人・団体",null,null,null,null,null,null,null,null,null,null,null,null,null,null,null,null,null,null,null,null,null,null,null,null,null,null,null,null,null,null,null,null,null,null,null,"法人・団体の場合"]
[null,null,"連携する地方公共団体名【　　　　　　　　　　　　　　　",null,null,null,null,null,null,null,null,null,null,null,null,null,null,null,null,null,null,null,null,null,null,null,null,null,null,null,null,null,"】","複数回答可",null,null,null,null,null,"一般社団法人",null,false]
[null,null,"指定管理者",null,null,null,null,null,null,null,null,null,null,null,null,null,null,null,null,null,null,null,null,null,null,null,null,null,null,null,null,null,null,null,null,null,null,null,null,"一般財団法人",null,false]
[null,null,"管理している施設名【　　　　　　　　　　　　　　　】",null,null,null,null,null,null,null,null,null,null,null,null,null,null,"施設を所管する地方公共団体名【　　　　　　　　　　　　　　　】",null,null,null,null,null,null,null,null,null,null,null,null,null,null,null,null,null,null,null,null,null,"公益社団法人",null,false]
["６．申請団体の担当者連絡先",null,null,null,null,null,null,null,null,null,null,null,null,null,null,null,null,null,null,null,null,null,null,null,null,null,null,null,null,null,null,null,null,null,null,null,null,null,null,"公益財団法人",null,false]
["担当者氏名",null,null,null,null,null,null,null,null,null,null,null,null,null,null,"担当者所属",null,null,null,null,null,null,null,null,null,null,null,null,null,null,null,null,null,null,null,null,null,null,null,"特定非営利活動法人",null,false]
["担当者宛\n送付先",null,null,null,null,"（〒 　　　  －  　　　    ）",null,null,null,null,null,null,null,null,null,null,null,null,null,null,null,null,null,null,null,null,null,null,null,null,null,null,null,null,null,null,null,null,null,"その他",null,false]
[]
["電話番号",null,null,null,null,null,null,null,null,null,null,null,null,null,null,null,null,"FAX"]
["E-MAIL"]
[]
[]
[]
[]
[]
[]
[]
[]
[]
[]
[]
[]
[]
[]
[]
[]
[]
[]
[]
[]
[]
[]
[]
[]
[]
[]
[]
[]
[]
[]
[]
[]
[]
[]
[]
[]
[]
[]
[]
[]
[]
[]
[]
[]
[]
[]
[]
[]
[]
[]
[]
[]
[]
[]
[]
[]
[]
[]
[]
[]
[]
[]
[]
[]
[]
[]
[]
[]
[]
[]
[]
[]
[]
[]
[]
[]
[]
[]
[]
[]
[]
[]
[]
[]
[]
[]
[]
[]
[]
[]
[]
[]
[]
[]
[]
[]
[]
[]
[]
[]
[]
[]
[]
[]
[]
[]
[]
[]
[]
[]
[]
[]
[]
[]
[]
[]
[]
[]
[]
[]
[]
[]
[]
[]
[]
[]
[]
[]
[]
[]
[]
[]
[]
[]
[]
[]
[]
[]
[]
[]
[]
[]
[]
[]
[]
[]
[]
[]
[]
[]
[]
[]
[]
[]
[]
[]
[]
[]
[]
[]
[]
[]
[]
[]
[]
[]
[]
[]
[]
[]
[]
[]
[]
[]
[]
[]
[]
[]
[]
[]
[]
[]
[]
[]
[]
[]
[]
[]
[]
[]
[]
[]
[]
[]
[]
[]
[]
[]
[]
[]
[]
[]
[]
[]
[]
[]
[]
[]
[]
[]
[]
[]
[]
[]
[]
[]
[]
[]
[]
[]
[]
[]
[]
[]
[]
[]
[]
[]
[]
[]
[]
[]
[]
[]
[]
[]
[]
[]
[]
[]
[]
[]
[]
[]
[]
[]
[]
[]
[]
[]
[]
[]
[]
[]
[]
[]
[]
[]
[]
[]
[]
[]
[]
[]
[]
[]
[]
[]
[]
[]
[]
[]
[]
[]
[]
[]
[]
[]
[]
[]
[]
[]
[]
[]
[]
[]
[]
[]
[]
[]
[]
[]
[]
[]
[]
[]
[]
[]
[]
[]
[]
[]
[]
[]
[null,null,null,null,null,"入場料",10000]
[null,null,null,null,null,"〇〇市補助金",50000]
[null,null,null,null,null,"500円貯金",500]

{"sheet":"様式１－２ ","index":1,"n_rows":12,"n_cols":35,"rows_kept":12,"cut":false,"hidden":false,"merged":[[0,1,0,11],[5,1,12,5],[5,6,5,34],[6,6,10,34],[11,6,12,34],[1,1,1,34],[2,1,2,5],[2,6,2,34],[3,1,3,5],[3,6,3,34],[4,1,4,5],[4,6,4,21],[4,22,4,25],[4,26,4,31]]}
[null,{"$f":"'様式１－１ '!A1","v":0},null,null,null,null,null,null,null,null,null,null,null,null,null,null,null,null,null,null,null,null,null,null,null,null,null,null,null,null,null,null,null,null,"【様式１－２】"]
[null,"１．事業の具体的内容　\n※複数の事業を開催する場合は，１事業ごとに様式１－２を記載してください。（記載にあたっては様式１－２をコピーして使用ください。）"]
[null,"①事 業 名 "]
[null,"②開催期間"]
[null,"③開催場所",null,null,null,null,null,null,null,null,null,null,null,null,null,null,null,null,null,null,null,null,"④参加人数",null,null,null,null,null,null,null,null,null,"人"]
[null,"⑤事業の\n具体的な\n内容等",null,null,null,null,"【事業実施の目標】\n　\n"]
[null,null,null,null,null,null,"【開催場所・開催日時の詳細】\n\n\n\n\n【事業内容】\n\n"]
[]
[]
[]
[]
[null,null,null,null,null,null,"【実施・参加方法】\n"]

{"sheet":"様式１－３ ","index":2,"n_rows":20,"n_cols":38,"rows_kept":20,"cut":false,"hidden":false,"merged":[[19,0,19,10],[20,0,21,37],[13,0,13,37],[14,0,15,4],[14,5,15,37],[16,0,17,4],[16,5,17,37],[18,0,18,37],[7,0,7,37],[8,0,8,37],[9,0,10,4],[9,5,10,37],[11,0,12,4],[11,5,12,37],[0,0,0,10],[6,0,6,37],[1,0,1,37],[2,0,3,4],[2,5,3,37],[4,0,5,4],[4,5,5,37]]}
[{"$f":"'様式１－１ '!A1","v":0},null,null,null,null,null,null,null,null,null,null,null,null,null,null,null,null,null,null,null,null,null,null,null,null,null,null,null,null,null,null,null,null,null,null,null,null,"【様式１－３】"]
["１．事業を実施することにより期待される成果及び今後の展開"]
["①期待される成果"]
[]
["②期待される今後の展開"]
[]
["２．広報活動"]
[]
["３．子どもたちに必要な基本的な知識の効果的な習得や体験をする機会を設ける取組"]
["①効果的な\n習得・体験の\nための工夫点"]
[]
["②取組の具体的な内容"]
[]
["４．伝統文化等または地域の課題解決に資するような取組"]
["①伝統文化等または地域の課題"]
[]
["②取組の具体的な内容"]
[]
["５．新型コロナウイルス感染症（COVID19）拡大防止対策として実施する取組　　　"]
["【取組の具体的な内容】"]

{"sheet":"様式１－４ ","index":3,"n_rows":356,"n_cols":19,"rows_kept":356,"cut":false,"hidden":false,"merged":[[9,0,9,4],[9,5,9,10],[9,12,9,17],[3,0,3,24],[5,0,6,2],[5,3,5,12],[5,13,6,16],[5,17,5,24],[6,3,6,12],[6,17,6,24],[7,0,8,2],[7,3,7,12],[7,13,8,16],[7,17,8,24],[8,3,8,12],[15,3,15,24],[16,0,22,2],[16,3,22,24],[23,0,35,2],[23,3,35,24],[10,0,15,2],[10,3,10,24],[11,3,11,24],[12,3,12,24],[13,3,13,24],[14,3,14,24],[0,0,0,10],[39,6,40,24],[36,0,42,2],[36,3,36,5],[36,6,36,24],[37,3,37,5],[37,6,37,24],[38,3,38,5],[38,6,38,24],[39,3,40,5],[41,3,41,5],[41,6,41,12],[41,13,41,15],[41,16,41,24],[42,3,42,5],[42,6,42,24]]}
[{"$f":"'様式１－１ '!A1","v":0}]
["※申請団体が地方公共団体の場合は提出不要"]
[]
["実行委員会等（申請団体）の概要"]
[]
["（ふりがな）\n団体名",null,null,null,null,null,null,null,null,null,null,null,null,"（ふりがな）\n代表者氏名"]
[]
["団体所在地",null,null,"〒　　　－",null,null,null,null,null,null,null,null,null,"役職名"]
[]
["実行委員会等設立年月",null,null,null,null,null,null,null,null,null,null,"年",null,null,null,null,null,null,"月"]
["役職員",null,null,"役職名・氏名・所属団体等"]
[]
[]
[]
[]
[]
["設置目的"]
[]
[]
[]
[]
[]
[]
["実施事業の体制",null,null,"【構成団体】\n\n\n\n\n\n【関連団体】"]
[]
[]
[]
[]
[]
[]
[]
[]
[]
[]
[]
[]
["応募団体に関する地方公共団体の担当部局課",null,null,"地方公共団体名"]
[null,null,null,"担当部局課名"]
[null,null,null,"担当者氏名"]
[null,null,null,"所在地",null,null,"（〒 　　　  －  　　　    ）"]
[]
[null,null,null,"電話番号",null,null,null,null,null,null,null,null,null,"FAX"]
[null,null,null,"E-MAIL"]
["※ 団体の定款に類する規約及び名簿を併せて提出すること。"]
[]
[]
[]
[]
[]
[]
[]
[]
[]
[]
[]
[]
[]
[]
[]
[]
[]
[]
[]
[]
[]
[]
[]
[]
[]
[]
[]
[]
[]
[]
[]
[]
[]
[]
[]
[]
[]
[]
[]
[]
[]
[]
[]
[]
[]
[]
[]
[]
[]
[]
[]
[]
[]
[]
[]
[]
[]
[]
[]
[]
[]
[]
[]
[]
[]
[]
[]
[]
[]
[]
[]
[]
[]
[]
[]
[]
[]
[]
[]
[]
[]
[]
[]
[]
[]
[]
[]
[]
[]
[]
[]
[]
[]
[]
[]
[]
[]
[]
[]
[]
[]
[]
[]
[]
[]
[]
[]
[]
[]
[]
[]
[]
[]
[]
[]
[]
[]
[]
[]
[]
[]
[]
[]
[]
[]
[]
[]
[]
[]
[]
[]
[]
[]
[]
[]
[]
[]
[]
[]
[]
[]
[]
[]
[]
[]
[]
[]
[]
[]
[]
[]
[]
[]
[]
[]
[]
[]
[]
[]
[]
[]
[]
[]
[]
[]
[]
[]
[]
[]
[]
[]
[]
[]
[]
[]
[]
[]
[]
[]
[]
[]
[]
[]
[]
[]
[]
[]
[]
[]
[]
[]
[]
[]
[]
[]
[]
[]
[]
[]
[]
[]
[]
[]
[]
[]
[]
[]
[]
[]
[]
[]
[]
[]
[]
[]
[]
[]
[]
[]
[]
[]
[]
[]
[]
[]
[]
[]
[]
[]
[]
[]
[]
[]
[]
[]
[]
[]
[]
[]
[]
[]
[]
[]
[]
[]
[]
[]
[]
[]
[]
[]
[]
[]
[]
[]
[]
[]
[]
[]
[]
[]
[]
[]
[]
[]
[]
[]
[]
[]
[]
[]
[]
[]
[]
[]
[]
[]
[]
[]
[]
[]
[]
[]
[]
[]
[]
[]
[]
[]
[]
[]
[]
[]
[]
[]
[]
[]
[]
[]
[]
[]
[]
[]
[]
[]
[]
[]
[]
[]
[null,null,null,null,null,"入場料",10000]
[null,null,null,null,null,"〇〇市補助金",50000]
[null,null,null,null,null,"500円貯金",500]

{"sheet":"様式１－5 ","index":4,"n_rows":28,"n_cols":6,"rows_kept":28,"cut":false,"hidden":false,"merged":[[2,0,2,5],[5,0,5,1],[5,3,5,5],[6,0,6,1],[6,3,6,5],[0,0,0,2],[27,0,27,1],[11,0,11,1],[11,3,11,5],[16,0,23,0],[24,0,24,1],[25,0,25,1],[26,0,26,1],[8,0,8,1],[8,3,8,5],[9,0,9,1],[9,3,9,5],[10,0,10,1],[10,3,10,5],[7,0,7,1],[7,3,7,5]]}
[{"$f":"'様式１－１ '!A1","v":0}]
["【収支予算書】",null,null,null,null,"【様式１－５】"]
["※経費の内訳等詳細については【支出・収入内訳明細書】に記載ください。\n本シートには【支出・収入内訳明細書】に入力した数字が自動で反映されます。"]
[]
["（収入の部）",null,null,null,null,"（単位：円）"]
["区   分",null,"予定額","備   考"]
["自己負担金",null,{"$f":"SUM(スタート_マスター:end!X352)+【事務局経費】支出・収入内訳明細書!X352","v":0}]
["助成金等",null,{"$f":"SUM(スタート_マスター:end!X353)+【事務局経費】支出・収入内訳明細書!X353","v":0}]
["その他収入",null,{"$f":"SUM(スタート_マスター:end!X354)+【事務局経費】支出・収入内訳明細書!X354","v":0}]
["小   計",null,{"$f":"SUM(C7:C9)","v":0}]
["要望額",null,{"$f":"'様式１－１ '!E19","v":0}]
["収入合計",null,{"$f":"SUM(C10:C11)","v":0}]
[]
["（支出の部）",null,null,null,null,"（単位：円）"]
[null,"費目","支援対象経費\n（①－②）",null,"支出予定額\n（①）","支援対象外経費\n（②）"]
["人件費","人件費",{"$f":"E16-F16","v":0},null,{"$f":"SUM(スタート_マスター:end!X8)+【事務局経費】支出・収入内訳明細書!X9","v":0},{"$f":"SUM(スタート_マスター:end!X20)+【事務局経費】支出・収入内訳明細書!X22","v":0}]
["事業費","諸謝金",{"$f":"E17-F17","v":0},null,{"$f":"SUM(スタート_マスター:end!X9)+【事務局経費】支出・収入内訳明細書!X10","v":0},{"$f":"SUM(スタート_マスター:end!X21)+【事務局経費】支出・収入内訳明細書!X23","v":0}]
[null,"旅費",0,null,{"$f":"SUM(スタート_マスター:end!X10)+【事務局経費】支出・収入内訳明細書!X11","v":0},{"$f":"SUM(スタート_マスター:end!X22)+【事務局経費】支出・収入内訳明細書!X24","v":0}]
[null,"借損料",0,null,{"$f":"SUM(スタート_マスター:end!X11)+【事務局経費】支出・収入内訳明細書!X12","v":0},{"$f":"SUM(スタート_マスター:end!X23)+【事務局経費】支出・収入内訳明細書!X25","v":0}]
[null,"消耗品費",0,null,{"$f":"SUM(スタート_マスター:end!X12)+【事務局経費】支出・収入内訳明細書!X13","v":0},{"$f":"SUM(スタート_マスター:end!X24)+【事務局経費】支出・収入内訳明細書!X26","v":0}]
[null,"通信運搬費",0,null,{"$f":"SUM(スタート_マスター:end!X13)+【事務局経費】支出・収入内訳明細書!X14","v":0},{"$f":"SUM(スタート_マスター:end!X25)+【事務局経費】支出・収入内訳明細書!X27","v":0}]
[null,"雑役務費",0,null,{"$f":"SUM(スタート_マスター:end!X14)+【事務局経費】支出・収入内訳明細書!X15","v":0},{"$f":"SUM(スタート_マスター:end!X26)+【事務局経費】支出・収入内訳明細書!X28","v":0}]
[null,"保険料",0,null,{"$f":"SUM(スタート_マスター:end!X15)+【事務局経費】支出・収入内訳明細書!X16","v":0},{"$f":"SUM(スタート_マスター:end!X27)+【事務局経費】支出・収入内訳明細書!X29","v":0}]
[null,"消費税相当額",0,null,{"$f":"SUM(スタート_マスター:end!X16)+【事務局経費】支出・収入内訳明細書!X17","v":0},{"$f":"SUM(スタート_マスター:end!X28)+【事務局経費】支出・収入内訳明細書!X30","v":0}]
["人件費＋事業費の合計（Ａ）",null,{"$f":"SUM(C16:C24)","v":0},null,{"$f":"SUM(E16:E24)","v":0},{"$f":"SUM(F16:F24)","v":0}]
["一般管理費（Ｂ）\n【(Ａ)×10%】以内の額",null,{"$f":"E26","v":0},null,{"$f":"【事務局経費】支出・収入内訳明細書!X18","v":0}]
["再委託費（Ｃ）",null,{"$f":"E27-F27","v":0},null,{"$f":"SUM(スタート_マスター:end!X17)+【事務局経費】支出・収入内訳明細書!X19","v":0},{"$f":"SUM(スタート_マスター:end!X29)+【事務局経費】支出・収入内訳明細書!X32","v":0}]
["支出合計\n（Ａ＋Ｂ＋Ｃ）",null,{"$f":"C25+C26+C27","v":0},null,{"$f":"E25+E26+E27","v":0},{"$f":"F25+F26+F27","v":0}]

{"sheet":"再委託費予算書（様式１－5別紙）","index":5,"n_rows":17,"n_cols":6,"rows_kept":17,"cut":false,"hidden":false,"merged":[[16,0,16,1],[0,0,0,2],[4,0,4,1],[5,0,5,1],[6,0,14,0],[15,0,15,1],[2,0,2,5]]}
[{"$f":"'様式１－１ '!A1","v":0},null,null,null,null,"【様式１－５別紙】"]
["【再委託費予算書】"]
["※経費の内訳等詳細については【支出・収入内訳明細書】に記載ください。\n本シートには【支出・収入内訳明細書】に入力した数字が自動で反映されます。"]
[null,null,null,null,null,"（単位：円）"]
["費目",null,"支援対象経費\n（①－②）","支出予定額\n（①）","支援対象外経費\n（②）","備   考"]
["人件費",null,{"$f":"D6-E6","v":0},{"$f":"SUM(スタート_マスター:end!X35)+【事務局経費】支出・収入内訳明細書!X35","v":0},{"$f":"SUM(スタート_マスター:end!X47)+【事務局経費】支出・収入内訳明細書!X47","v":0}]
["事業費","諸謝金",{"$f":"D7-E7","v":0},{"$f":"SUM(スタート_マスター:end!X36)+【事務局経費】支出・収入内訳明細書!X36","v":0},{"$f":"SUM(スタート_マスター:end!X48)+【事務局経費】支出・収入内訳明細書!X48","v":0}]
[null,"旅費",0,{"$f":"SUM(スタート_マスター:end!X37)+【事務局経費】支出・収入内訳明細書!X37","v":0},{"$f":"SUM(スタート_マスター:end!X49)+【事務局経費】支出・収入内訳明細書!X49","v":0}]
[null,"借損料",0,{"$f":"SUM(スタート_マスター:end!X38)+【事務局経費】支出・収入内訳明細書!X38","v":0},{"$f":"SUM(スタート_マスター:end!X50)+【事務局経費】支出・収入内訳明細書!X50","v":0}]
[null,"消耗品費",0,{"$f":"SUM(スタート_マスター:end!X39)+【事務局経費】支出・収入内訳明細書!X39","v":0},{"$f":"SUM(スタート_マスター:end!X51)+【事務局経費】支出・収入内訳明細書!X51","v":0}]
[null,"通信運搬費",0,{"$f":"SUM(スタート_マスター:end!X40)+【事務局経費】支出・収入内訳明細書!X40","v":0},{"$f":"SUM(スタート_マスター:end!X52)+【事務局経費】支出・収入内訳明細書!X52","v":0}]
[null,"雑役務費",0,{"$f":"SUM(スタート_マスター:end!X41)+【事務局経費】支出・収入内訳明細書!X41","v":0},{"$f":"SUM(スタート_マスター:end!X53)+【事務局経費】支出・収入内訳明細書!X53","v":0}]
[null,"保険料",0,{"$f":"SUM(スタート_マスター:end!X42)+【事務局経費】支出・収入内訳明細書!X42","v":0},{"$f":"SUM(スタート_マスター:end!X54)+【事務局経費】支出・収入内訳明細書!X54","v":0}]
[null,"消費税相当額",0,{"$f":"SUM(スタート_マスター:end!X43)+【事務局経費】支出・収入内訳明細書!X43","v":0},{"$f":"SUM(スタート_マスター:end!X55)+【事務局経費】支出・収入内訳明細書!X55","v":0}]
[null,"一般管理費",0,{"$f":"SUM(スタート_マスター:end!X44)+【事務局経費】支出・収入内訳明細書!X44","v":0},{"$f":"SUM(スタート_マスター:end!X56)+【事務局経費】支出・収入内訳明細書!X56","v":0}]
["再委託費"]
["合計",null,{"$f":"SUM(C6:C16)","v":0},{"$f":"SUM(D6:D16)","v":0},{"$f":"SUM(E6:E16)","v":0}]

{"sheet":"【事務局経費】支出・収入内訳明細書","index":6,"n_rows":410,"n_cols":24,"rows_kept":410,"cut":false,"hidden":false,"merged":[[398,2,398,3],[393,2,393,3],[394,2,394,3],[395,2,395,3],[390,2,390,3],[391,2,391,3],[392,2,392,3],[408,2,408,3],[409,2,409,3],[405,2,405,3],[406,2,406,3],[407,2,407,3],[402,2,402,3],[403,2,403,3],[404,2,404,3],[399,2,399,3],[400,2,400,3],[401,2,401,3],[389,2,389,3],[384,2,384,3],[385,2,385,3],[386,2,386,3],[381,2,381,3],[382,2,382,3],[383,2,383,3],[396,2,396,3],[397,2,397,3],[380,2,380,3],[375,2,375,3],[376,2,376,3],[377,2,377,3],[372,2,372,3],[373,2,373,3],[374,2,374,3],[387,2,387,3],[388,2,388,3],[371,2,371,3],[366,2,366,3],[367,2,367,3],[368,2,368,3],[363,2,363,3],[364,2,364,3],[365,2,365,3],[378,2,378,3],[379,2,379,3],[362,2,362,3],[357,2,357,3],[358,2,358,3],[359,2,359,3],[354,2,354,3],[355,2,355,3],[356,2,356,3],[369,2,369,3],[370,2,370,3],[351,2,351,3],[352,2,352,3],[353,2,353,3],[345,2,345,3],[346,2,346,3],[349,2,349,4],[350,2,350,3],[360,2,360,3],[361,2,361,3],[339,2,339,3],[340,2,340,3],[341,2,341,3],[342,2,342,3],[343,2,343,3],[344,2,344,3],[333,2,333,3],[334,2,334,3],[335,2,335,3],[336,2,336,3],[337,2,337,3],[338,2,338,3],[327,2,327,3],[328,2,328,3],[329,2,329,3],[330,2,330,3],[331,2,331,3],[332,2,332,3],[321,2,321,3],[322,2,322,3],[323,2,323,3],[324,2,324,3],[325,2,325,3],[326,2,326,3],[315,2,315,3],[316,2,316,3],[317,2,317,3],[318,2,318,3],[319,2,319,3],[320,2,320,3],[309,2,309,3],[310,2,310,3],[311,2,311,3],[312,2,312,3],[313,2,313,3],[314,2,314,3],[303,2,303,3],[304,2,304,3],[305,2,305,3],[306,2,306,3],[307,2,307,3],[308,2,308,3],[297,2,297,3],[298,2,298,3],[299,2,299,3],[300,2,300,3],[301,2,301,3],[302,2,302,3],[291,2,291,3],[292,2,292,3],[293,2,293,3],[294,2,294,3],[295,2,295,3],[296,2,296,3],[285,2,285,3],[286,2,286,3],[287,2,287,3],[288,2,288,3],[289,2,289,3],[290,2,290,3],[279,2,279,3],[280,2,280,3],[281,2,281,3],[282,2,282,3],[283,2,283,3],[284,2,284,3],[273,2,273,3],[274,2,274,3],[275,2,275,3],[276,2,276,3],[277,2,277,3],[278,2,278,3],[267,2,267,3],[268,2,268,3],[269,2,269,3],[270,2,270,3],[271,2,271,3],[272,2,272,3],[261,2,261,3],[262,2,262,3],[263,2,263,3],[264,2,264,3],[265,2,265,3],[266,2,266,3],[255,2,255,3],[256,2,256,3],[257,2,257,3],[258,2,258,3],[259,2,259,3],[260,2,260,3],[249,2,249,3],[250,2,250,3],[251,2,251,3],[252,2,252,3],[253,2,253,3],[254,2,254,3],[243,2,243,3],[244,2,244,3],[245,2,245,3],[246,2,246,3],[247,2,247,3],[248,2,248,3],[237,2,237,3],[238,2,238,3],[239,2,239,3],[240,2,240,3],[241,2,241,3],[242,2,242,3],[231,2,231,3],[232,2,232,3],[233,2,233,3],[234,2,234,3],[235,2,235,3],[236,2,236,3],[225,2,225,3],[226,2,226,3],[227,2,227,3],[228,2,228,3],[229,2,229,3],[230,2,230,3],[219,2,219,3],[220,2,220,3],[221,2,221,3],[222,2,222,3],[223,2,223,3],[224,2,224,3],[213,2,213,3],[214,2,214,3],[215,2,215,3],[216,2,216,3],[217,2,217,3],[218,2,218,3],[207,2,207,3],[208,2,208,3],[209,2,209,3],[210,2,210,3],[211,2,211,3],[212,2,212,3],[201,2,201,3],[202,2,202,3],[203,2,203,3],[204,2,204,3],[205,2,205,3],[206,2,206,3],[195,2,195,3],[196,2,196,3],[197,2,197,3],[198,2,198,3],[199,2,199,3],[200,2,200,3],[189,2,189,3],[190,2,190,3],[191,2,191,3],[192,2,192,3],[193,2,193,3],[194,2,194,3],[183,2,183,3],[184,2,184,3],[185,2,185,3],[186,2,186,3],[187,2,187,3],[188,2,188,3],[177,2,177,3],[178,2,178,3],[179,2,179,3],[180,2,180,3],[181,2,181,3],[182,2,182,3],[171,2,171,3],[172,2,172,3],[173,2,173,3],[174,2,174,3],[175,2,175,3],[176,2,176,3],[165,2,165,3],[166,2,166,3],[167,2,167,3],[168,2,168,3],[169,2,169,3],[170,2,170,3],[159,2,159,3],[160,2,160,3],[161,2,161,3],[162,2,162,3],[163,2,163,3],[164,2,164,3],[153,2,153,3],[154,2,154,3],[155,2,155,3],[156,2,156,3],[157,2,157,3],[158,2,158,3],[147,2,147,3],[148,2,148,3],[149,2,149,3],[150,2,150,3],[151,2,151,3],[152,2,152,3],[141,2,141,3],[142,2,142,3],[143,2,143,3],[144,2,144,3],[145,2,145,3],[146,2,146,3],[135,2,135,3],[136,2,136,3],[137,2,137,3],[138,2,138,3],[139,2,139,3],[140,2,140,3],[129,2,129,3],[130,2,130,3],[131,2,131,3],[132,2,132,3],[133,2,133,3],[134,2,134,3],[123,2,123,3],[124,2,124,3],[125,2,125,3],[126,2,126,3],[127,2,127,3],[128,2,128,3],[117,2,117,3],[118,2,118,3],[119,2,119,3],[120,2,120,3],[121,2,121,3],[122,2,122,3],[111,2,111,3],[112,2,112,3],[113,2,113,3],[114,2,114,3],[115,2,115,3],[116,2,116,3],[105,2,105,3],[106,2,106,3],[107,2,107,3],[108,2,108,3],[109,2,109,3],[110,2,110,3],[99,2,99,3],[100,2,100,3],[101,2,101,3],[102,2,102,3],[103,2,103,3],[104,2,104,3],[93,2,93,3],[94,2,94,3],[95,2,95,3],[96,2,96,3],[97,2,97,3],[98,2,98,3],[87,2,87,3],[88,2,88,3],[89,2,89,3],[90,2,90,3],[91,2,91,3],[92,2,92,3],[81,2,81,3],[82,2,82,3],[83,2,83,3],[84,2,84,3],[85,2,85,3],[86,2,86,3],[75,2,75,3],[76,2,76,3],[77,2,77,3],[78,2,78,3],[79,2,79,3],[80,2,80,3],[69,2,69,3],[70,2,70,3],[71,2,71,3],[72,2,72,3],[73,2,73,3],[74,2,74,3],[63,2,63,3],[64,2,64,3],[65,2,65,3],[66,2,66,3],[67,2,67,3],[68,2,68,3],[57,2,57,3],[58,2,58,3],[59,2,59,3],[60,2,60,3],[61,2,61,3],[62,2,62,3],[51,2,51,3],[52,2,52,3],[53,2,53,3],[54,2,54,3],[55,2,55,3],[56,2,56,3],[45,2,45,3],[46,2,46,3],[47,2,47,3],[48,2,48,3],[49,2,49,3],[50,2,50,3],[39,2,39,3],[40,2,40,3],[41,2,41,3],[42,2,42,3],[43,2,43,3],[44,2,44,3],[33,2,33,3],[34,2,34,3],[35,2,35,3],[36,2,36,3],[37,2,37,3],[38,2,38,3],[27,2,27,3],[28,2,28,3],[29,2,29,3],[30,2,30,3],[31,2,31,3],[32,2,32,3],[21,2,21,3],[22,2,22,3],[23,2,23,3],[24,2,24,3],[25,2,25,3],[26,2,26,3],[15,2,15,3],[16,2,16,3],[17,2,17,3],[18,2,18,3],[19,2,19,3],[20,2,20,3],[13,2,13,3],[14,2,14,3],[2,10,2,12],[9,2,9,3],[10,2,10,3],[11,2,11,3],[12,2,12,3],[2,2,2,3],[0,2,0,6],[4,13,4,19],[5,2,5,5],[6,2,6,3],[7,2,7,3],[8,2,8,3],[2,13,2,15],[2,16,2,17],[1,10,1,12],[1,13,1,19],[4,10,4,12],[2,18,2,19],[2,4,2,6]]}
[null,null,{"$f":"'様式１－１ '!A1","v":0}]
[null,null,"【事務局経費】支出・収入内訳明細書",null,null,null,null,null,null,null,"支出合計\n(円)",null,null,{"$f":"SUM(T8:T347)","v":0}]
[null,null,"事業名",null,null,null,null,null,null,null,"収入合計\n(円)",null,null,{"$f":"SUM(G352:G410)","v":0},null,null,"対象外経費\n合計",null,{"$f":"SUMIFS($T8:$T347,$U8:$U347,スタート_マスター!A17)","v":0}]
[]
[null,null,null,null,null,null,null,null,null,null,"対象経費\n合計",null,null,{"$f":"N2-S3","v":0}]
[null,null,"【支出の部】",null,null,null,null,null,null,null,null,null,null,null,null,null,null,null,null,null,"（単位：円）"]
[null,null,"No.",null,"区分","費目","内　　訳",null,"（単価）","×","（数量）","（単位）","×","（数量）","（単位）","×","（数量）","（単位）","＝","(金額)","対象外経費"]
[null,null,1,null,null,null,null,null,null,null,null,null,null,null,null,null,null,null,null,{"$f":"IF(I8=\"\",0,INT(SUM(PRODUCT(I8,K8,N8,Q8))))","v":0},null,null,"支出合計（費目ごと統一合計用）"]
[null,null,2,null,null,null,null,null,null,null,null,null,null,null,null,null,null,null,null,0,null,null,"人件費",{"$f":"SUMIFS($T$8:$T$347,$E$8:$E$347,W9)","v":0}]
[null,null,3,null,null,null,null,null,null,null,null,null,null,null,null,null,null,null,null,0,null,null,"諸謝金",{"$f":"SUMIFS($T$8:$T$347,$E$8:$E$347,W10)","v":0}]
[null,null,4,null,null,null,null,null,null,null,null,null,null,null,null,null,null,null,null,0,null,null,"旅費",{"$f":"SUMIFS($T$8:$T$347,$E$8:$E$347,W11)","v":0}]
[null,null,5,null,null,null,null,null,null,null,null,null,null,null,null,null,null,null,null,0,null,null,"借損料",0]
[null,null,6,null,null,null,null,null,null,null,null,null,null,null,null,null,null,null,null,0,null,null,"消耗品費",{"$f":"SUMIFS($T$8:$T$347,$E$8:$E$347,W13)","v":0}]
[null,null,7,null,null,null,null,null,null,null,null,null,null,null,null,null,null,null,null,{"$f":"IF(I14=\"\",0,INT(SUM(PRODUCT(I14,K14,N14,Q14))))","v":0},null,null,"通信運搬費",0]
[null,null,8,null,null,null,null,null,null,null,null,null,null,null,null,null,null,null,null,0,null,null,"雑役務費",0]
[null,null,9,null,null,null,null,null,null,null,null,null,null,null,null,null,null,null,null,0,null,null,"保険料",0]
[null,null,10,null,null,null,null,null,null,null,null,null,null,null,null,null,null,null,null,0,null,null,"消費税相当額",{"$f":"SUMIFS($T$8:$T$347,$E$8:$E$347,W17)","v":0}]
[null,null,11,null,null,null,null,null,null,null,null,null,null,null,null,null,null,null,null,0,null,null,"一般管理費",{"$f":"SUMIFS($T$8:$T$347,$E$8:$E$347,W18)","v":0}]
[null,null,12,null,null,null,null,null,null,null,null,null,null,null,null,null,null,null,null,0,null,null,"再委託費",{"$f":"SUMIFS($T$8:$T$347,$E$8:$E$347,W19)","v":0}]
[null,null,13,null,null,null,null,null,null,null,null,null,null,null,null,null,null,null,null,0]
[null,null,14,null,null,null,null,null,null,null,null,null,null,null,null,null,null,null,null,0,null,null,"対象外経費（統一計算用）"]
[null,null,15,null,null,null,null,null,null,null,null,null,null,null,null,null,null,null,null,0,null,null,"人件費",{"$f":"SUMIFS($T$8:$T$347,$E$8:$E$347,W22,$U$8:$U$347,\"対象外\")","v":0}]
[null,null,16,null,null,null,null,null,null,null,null,null,null,null,null,null,null,null,null,0,null,null,"諸謝金",{"$f":"SUMIFS($T$8:$T$347,$E$8:$E$347,W23,$U$8:$U$347,\"対象外\")","v":0}]
[null,null,17,null,null,null,null,null,null,null,null,null,null,null,null,null,null,null,null,0,null,null,"旅費",{"$f":"SUMIFS($T$8:$T$347,$E$8:$E$347,W24,$U$8:$U$347,\"対象外\")","v":0}]
[null,null,18,null,null,null,null,null,null,null,null,null,null,null,null,null,null,null,null,0,null,null,"借損料",0]
[null,null,19,null,null,null,null,null,null,null,null,null,null,null,null,null,null,null,null,0,null,null,"消耗品費",0]
[null,null,20,null,null,null,null,null,null,null,null,null,null,null,null,null,null,null,null,0,null,null,"通信運搬費",0]
[null,null,21,null,null,null,null,null,null,null,null,null,null,null,null,null,null,null,null,0,null,null,"雑役務費",0]
[null,null,22,null,null,null,null,null,null,null,null,null,null,null,null,null,null,null,null,0,null,null,"保険料",0]
[null,null,23,null,null,null,null,null,null,null,null,null,null,null,null,null,null,null,null,0,null,null,"消費税相当額",0]
[null,null,24,null,null,null,null,null,null,null,null,null,null,null,null,null,null,null,null,0,null,null,"一般管理費",{"$f":"SUMIFS($T$8:$T$347,$E$8:$E$347,W31,$U$8:$U$347,\"対象外\")","v":0}]
[null,null,25,null,null,null,null,null,null,null,null,null,null,null,null,null,null,null,null,0,null,null,"再委託費",0]
[null,null,26,null,null,null,null,null,null,null,null,null,null,null,null,null,null,null,null,0]
[null,null,27,null,null,null,null,null,null,null,null,null,null,null,null,null,null,null,null,0,null,null,"再委託費"]
[null,null,28,null,null,null,null,null,null,null,null,null,null,null,null,null,null,null,null,0,null,null,"人件費",{"$f":"SUMIFS($T$8:$T$347,$E$8:$E$347,$W$34,$F$8:$F$347,W35)","v":0}]
[null,null,29,null,null,null,null,null,null,null,null,null,null,null,null,null,null,null,null,0,null,null,"諸謝金",{"$f":"SUMIFS($T$8:$T$347,$E$8:$E$347,$W$34,$F$8:$F$347,W36)","v":0}]
[null,null,30,null,null,null,null,null,null,null,null,null,null,null,null,null,null,null,null,0,null,null,"旅費",0]
[null,null,31,null,null,null,null,null,null,null,null,null,null,null,null,null,null,null,null,0,null,null,"借損料",0]
[null,null,32,null,null,null,null,null,null,null,null,null,null,null,null,null,null,null,null,0,null,null,"消耗品費",0]
[null,null,33,null,null,null,null,null,null,null,null,null,null,null,null,null,null,null,null,0,null,null,"通信運搬費",0]
[null,null,34,null,null,null,null,null,null,null,null,null,null,null,null,null,null,null,null,0,null,null,"雑役務費",0]
[null,null,35,null,null,null,null,null,null,null,null,null,null,null,null,null,null,null,null,0,null,null,"保険料",0]
[null,null,36,null,null,null,null,null,null,null,null,null,null,null,null,null,null,null,null,0,null,null,"消費税相当額",0]
[null,null,37,null,null,null,null,null,null,null,null,null,null,null,null,null,null,null,null,0,null,null,"一般管理費",0]
[null,null,38,null,null,null,null,null,null,null,null,null,null,null,null,null,null,null,null,0]
[null,null,39,null,null,null,null,null,null,null,null,null,null,null,null,null,null,null,null,0,null,null,"再委託費対象外"]
[null,null,40,null,null,null,null,null,null,null,null,null,null,null,null,null,null,null,null,0,null,null,"人件費",{"$f":"SUMIFS($T$8:$T$347,$E$8:$E$347,$W$34,$F$8:$F$347,W47,$U$8:$U$347,\"対象外\")","v":0}]
[null,null,41,null,null,null,null,null,null,null,null,null,null,null,null,null,null,null,null,0,null,null,"諸謝金",{"$f":"SUMIFS($T$8:$T$347,$E$8:$E$347,$W$34,$F$8:$F$347,W48,$U$8:$U$347,\"対象外\")","v":0}]
[null,null,42,null,null,null,null,null,null,null,null,null,null,null,null,null,null,null,null,0,null,null,"旅費",0]
[null,null,43,null,null,null,null,null,null,null,null,null,null,null,null,null,null,null,null,0,null,null,"借損料",0]
[null,null,44,null,null,null,null,null,null,null,null,null,null,null,null,null,null,null,null,0,null,null,"消耗品費",0]
[null,null,45,null,null,null,null,null,null,null,null,null,null,null,null,null,null,null,null,0,null,null,"通信運搬費",0]
[null,null,46,null,null,null,null,null,null,null,null,null,null,null,null,null,null,null,null,0,null,null,"雑役務費",0]
[null,null,47,null,null,null,null,null,null,null,null,null,null,null,null,null,null,null,null,0,null,null,"保険料",0]
[null,null,48,null,null,null,null,null,null,null,null,null,null,null,null,null,null,null,null,0,null,null,"消費税相当額",0]
[null,null,49,null,null,null,null,null,null,null,null,null,null,null,null,null,null,null,null,0,null,null,"一般管理費",0]
[null,null,50,null,null,null,null,null,null,null,null,null,null,null,null,null,null,null,null,0]
[null,null,51,null,null,null,null,null,null,null,null,null,null,null,null,null,null,null,null,0]
[null,null,52,null,null,null,null,null,null,null,null,null,null,null,null,null,null,null,null,0]
[null,null,53,null,null,null,null,null,null,null,null,null,null,null,null,null,null,null,null,0]
[null,null,54,null,null,null,null,null,null,null,null,null,null,null,null,null,null,null,null,0]
[null,null,55,null,null,null,null,null,null,null,null,null,null,null,null,null,null,null,null,0]
[null,null,56,null,null,null,null,null,null,null,null,null,null,null,null,null,null,null,null,0]
[null,null,57,null,null,null,null,null,null,null,null,null,null,null,null,null,null,null,null,0]
[null,null,58,null,null,null,null,null,null,null,null,null,null,null,null,null,null,null,null,0]
[null,null,59,null,null,null,null,null,null,null,null,null,null,null,null,null,null,null,null,0]
[null,null,60,null,null,null,null,null,null,null,null,null,null,null,null,null,null,null,null,0]
[null,null,61,null,null,null,null,null,null,null,null,null,null,null,null,null,null,null,null,0]
[null,null,62,null,null,null,null,null,null,null,null,null,null,null,null,null,null,null,null,0]
[null,null,63,null,null,null,null,null,null,null,null,null,null,null,null,null,null,null,null,0]
[null,null,64,null,null,null,null,null,null,null,null,null,null,null,null,null,null,null,null,0]
[null,null,65,null,null,null,null,null,null,null,null,null,null,null,null,null,null,null,null,0]
[null,null,66,null,null,null,null,null,null,null,null,null,null,null,null,null,null,null,null,{"$f":"IF(I73=\"\",0,INT(SUM(PRODUCT(I73,K73,N73,Q73))))","v":0}]
[null,null,67,null,null,null,null,null,null,null,null,null,null,null,null,null,null,null,null,0]
[null,null,68,null,null,null,null,null,null,null,null,null,null,null,null,null,null,null,null,0]
[null,null,69,null,null,null,null,null,null,null,null,null,null,null,null,null,null,null,null,0]
[null,null,70,null,null,null,null,null,null,null,null,null,null,null,null,null,null,null,null,0]
[null,null,71,null,null,null,null,null,null,null,null,null,null,null,null,null,null,null,null,0]
[null,null,72,null,null,null,null,null,null,null,null,null,null,null,null,null,null,null,null,0]
[null,null,73,null,null,null,null,null,null,null,null,null,null,null,null,null,null,null,null,0]
[null,null,74,null,null,null,null,null,null,null,null,null,null,null,null,null,null,null,null,0]
[null,null,75,null,null,null,null,null,null,null,null,null,null,null,null,null,null,null,null,0]
[null,null,76,null,null,null,null,null,null,null,null,null,null,null,null,null,null,null,null,0]
[null,null,77,null,null,null,null,null,null,null,null,null,null,null,null,null,null,null,null,0]
[null,null,78,null,null,null,null,null,null,null,null,null,null,null,null,null,null,null,null,0]
[null,null,79,null,null,null,null,null,null,null,null,null,null,null,null,null,null,null,null,0]
[null,null,80,null,null,null,null,null,null,null,null,null,null,null,null,null,null,null,null,0]
[null,null,81,null,null,null,null,null,null,null,null,null,null,null,null,null,null,null,null,0]
[null,null,82,null,null,null,null,null,null,null,null,null,null,null,null,null,null,null,null,0]
[null,null,83,null,null,null,null,null,null,null,null,null,null,null,null,null,null,null,null,0]
[null,null,84,null,null,null,null,null,null,null,null,null,null,null,null,null,null,null,null,0]
[null,null,85,null,null,null,null,null,null,null,null,null,null,null,null,null,null,null,null,0]
[null,null,86,null,null,null,null,null,null,null,null,null,null,null,null,null,null,null,null,0]
[null,null,87,null,null,null,null,null,null,null,null,null,null,null,null,null,null,null,null,0]
[null,null,88,null,null,null,null,null,null,null,null,null,null,null,null,null,null,null,null,0]
[null,null,89,null,null,null,null,null,null,null,null,null,null,null,null,null,null,null,null,0]
[null,null,90,null,null,null,null,null,null,null,null,null,null,null,null,null,null,null,null,0]
[null,null,91,null,null,null,null,null,null,null,null,null,null,null,null,null,null,null,null,0]
[null,null,92,null,null,null,null,null,null,null,null,null,null,null,null,null,null,null,null,0]
[null,null,93,null,null,null,null,null,null,null,null,null,null,null,null,null,null,null,null,0]
[null,null,94,null,null,null,null,null,null,null,null,null,null,null,null,null,null,null,null,0]
[null,null,95,null,null,null,null,null,null,null,null,null,null,null,null,null,null,null,null,0]
[null,null,96,null,null,null,null,null,null,null,null,null,null,null,null,null,null,null,null,0]
[null,null,97,null,null,null,null,null,null,null,null,null,null,null,null,null,null,null,null,0]
[null,null,98,null,null,null,null,null,null,null,null,null,null,null,null,null,null,null,null,0]
[null,null,99,null,null,null,null,null,null,null,null,null,null,null,null,null,null,null,null,0]
[null,null,100,null,null,null,null,null,null,null,null,null,null,null,null,null,null,null,null,0]
[null,null,101,null,null,null,null,null,null,null,null,null,null,null,null,null,null,null,null,0]
[null,null,102,null,null,null,null,null,null,null,null,null,null,null,null,null,null,null,null,0]
[null,null,103,null,null,null,null,null,null,null,null,null,null,null,null,null,null,null,null,0]
[null,null,104,null,null,null,null,null,null,null,null,null,null,null,null,null,null,null,null,0]
[null,null,105,null,null,null,null,null,null,null,null,null,null,null,null,null,null,null,null,0]
[null,null,106,null,null,null,null,null,null,null,null,null,null,null,null,null,null,null,null,0]
[null,null,107,null,null,null,null,null,null,null,null,null,null,null,null,null,null,null,null,0]
[null,null,108,null,null,null,null,null,null,null,null,null,null,null,null,null,null,null,null,0]
[null,null,109,null,null,null,null,null,null,null,null,null,null,null,null,null,null,null,null,0]
[null,null,110,null,null,null,null,null,null,null,null,null,null,null,null,null,null,null,null,0]
[null,null,111,null,null,null,null,null,null,null,null,null,null,null,null,null,null,null,null,0]
[null,null,112,null,null,null,null,null,null,null,null,null,null,null,null,null,null,null,null,0]
[null,null,113,null,null,null,null,null,null,null,null,null,null,null,null,null,null,null,null,0]
[null,null,114,null,null,null,null,null,null,null,null,null,null,null,null,null,null,null,null,0]
[null,null,115,null,null,null,null,null,null,null,null,null,null,null,null,null,null,null,null,0]
[null,null,116,null,null,null,null,null,null,null,null,null,null,null,null,null,null,null,null,0]
[null,null,117,null,null,null,null,null,null,null,null,null,null,null,null,null,null,null,null,0]
[null,null,118,null,null,null,null,null,null,null,null,null,null,null,null,null,null,null,null,0]
[null,null,119,null,null,null,null,null,null,null,null,null,null,null,null,null,null,null,null,0]
[null,null,120,null,null,null,null,null,null,null,null,null,null,null,null,null,null,null,null,0]
[null,null,121,null,null,null,null,null,null,null,null,null,null,null,null,null,null,null,null,0]
[null,null,122,null,null,null,null,null,null,null,null,null,null,null,null,null,null,null,null,0]
[null,null,123,null,null,null,null,null,null,null,null,null,null,null,null,null,null,null,null,0]
[null,null,124,null,null,null,null,null,null,null,null,null,null,null,null,null,null,null,null,0]
[null,null,125,null,null,null,null,null,null,null,null,null,null,null,null,null,null,null,null,0]
[null,null,126,null,null,null,null,null,null,null,null,null,null,null,null,null,null,null,null,0]
[null,null,127,null,null,null,null,null,null,null,null,null,null,null,null,null,null,null,null,0]
[null,null,128,null,null,null,null,null,null,null,null,null,null,null,null,null,null,null,null,0]
[null,null,129,null,null,null,null,null,null,null,null,null,null,null,null,null,null,null,null,0]
[null,null,130,null,null,null,null,null,null,null,null,null,null,null,null,null,null,null,null,{"$f":"IF(I137=\"\",0,INT(SUM(PRODUCT(I137,K137,N137,Q137))))","v":0}]
[null,null,131,null,null,null,null,null,null,null,null,null,null,null,null,null,null,null,null,0]
[null,null,132,null,null,null,null,null,null,null,null,null,null,null,null,null,null,null,null,0]
[null,null,133,null,null,null,null,null,null,null,null,null,null,null,null,null,null,null,null,0]
[null,null,134,null,null,null,null,null,null,null,null,null,null,null,null,null,null,null,null,0]
[null,null,135,null,null,null,null,null,null,null,null,null,null,null,null,null,null,null,null,0]
[null,null,136,null,null,null,null,null,null,null,null,null,null,null,null,null,null,null,null,0]
[null,null,137,null,null,null,null,null,null,null,null,null,null,null,null,null,null,null,null,0]
[null,null,138,null,null,null,null,null,null,null,null,null,null,null,null,null,null,null,null,0]
[null,null,139,null,null,null,null,null,null,null,null,null,null,null,null,null,null,null,null,0]
[null,null,140,null,null,null,null,null,null,null,null,null,null,null,null,null,null,null,null,0]
[null,null,141,null,null,null,null,null,null,null,null,null,null,null,null,null,null,null,null,0]
[null,null,142,null,null,null,null,null,null,null,null,null,null,null,null,null,null,null,null,0]
[null,null,143,null,null,null,null,null,null,null,null,null,null,null,null,null,null,null,null,0]
[null,null,144,null,null,null,null,null,null,null,null,null,null,null,null,null,null,null,null,0]
[null,null,145,null,null,null,null,null,null,null,null,null,null,null,null,null,null,null,null,0]
[null,null,146,null,null,null,null,null,null,null,null,null,null,null,null,null,null,null,null,0]
[null,null,147,null,null,null,null,null,null,null,null,null,null,null,null,null,null,null,null,0]
[null,null,148,null,null,null,null,null,null,null,null,null,null,null,null,null,null,null,null,0]
[null,null,149,null,null,null,null,null,null,null,null,null,null,null,null,null,null,null,null,0]
[null,null,150,null,null,null,null,null,null,null,null,null,null,null,null,null,null,null,null,0]
[null,null,151,null,null,null,null,null,null,null,null,null,null,null,null,null,null,null,null,0]
[null,null,152,null,null,null,null,null,null,null,null,null,null,null,null,null,null,null,null,0]
[null,null,153,null,null,null,null,null,null,null,null,null,null,null,null,null,null,null,null,0]
[null,null,154,null,null,null,null,null,null,null,null,null,null,null,null,null,null,null,null,0]
[null,null,155,null,null,null,null,null,null,null,null,null,null,null,null,null,null,null,null,0]
[null,null,156,null,null,null,null,null,null,null,null,null,null,null,null,null,null,null,null,0]
[null,null,157,null,null,null,null,null,null,null,null,null,null,null,null,null,null,null,null,0]
[null,null,158,null,null,null,null,null,null,null,null,null,null,null,null,null,null,null,null,0]
[null,null,159,null,null,null,null,null,null,null,null,null,null,null,null,null,null,null,null,0]
[null,null,160,null,null,null,null,null,null,null,null,null,null,null,null,null,null,null,null,0]
[null,null,161,null,null,null,null,null,null,null,null,null,null,null,null,null,null,null,null,0]
[null,null,162,null,null,null,null,null,null,null,null,null,null,null,null,null,null,null,null,0]
[null,null,163,null,null,null,null,null,null,null,null,null,null,null,null,null,null,null,null,0]
[null,null,164,null,null,null,null,null,null,null,null,null,null,null,null,null,null,null,null,0]
[null,null,165,null,null,null,null,null,null,null,null,null,null,null,null,null,null,null,null,0]
[null,null,166,null,null,null,null,null,null,null,null,null,null,null,null,null,null,null,null,0]
[null,null,167,null,null,null,null,null,null,null,null,null,null,null,null,null,null,null,null,0]
[null,null,168,null,null,null,null,null,null,null,null,null,null,null,null,null,null,null,null,0]
[null,null,169,null,null,null,null,null,null,null,null,null,null,null,null,null,null,null,null,0]
[null,null,170,null,null,null,null,null,null,null,null,null,null,null,null,null,null,null,null,0]
[null,null,171,null,null,null,null,null,null,null,null,null,null,null,null,null,null,null,null,0]
[null,null,172,null,null,null,null,null,null,null,null,null,null,null,null,null,null,null,null,0]
[null,null,173,null,null,null,null,null,null,null,null,null,null,null,null,null,null,null,null,0]
[null,null,174,null,null,null,null,null,null,null,null,null,null,null,null,null,null,null,null,0]
[null,null,175,null,null,null,null,null,null,null,null,null,null,null,null,null,null,null,null,0]
[null,null,176,null,null,null,null,null,null,null,null,null,null,null,null,null,null,null,null,0]
[null,null,177,null,null,null,null,null,null,null,null,null,null,null,null,null,null,null,null,0]
[null,null,178,null,null,null,null,null,null,null,null,null,null,null,null,null,null,null,null,0]
[null,null,179,null,null,null,null,null,null,null,null,null,null,null,null,null,null,null,null,0]
[null,null,180,null,null,null,null,null,null,null,null,null,null,null,null,null,null,null,null,0]
[null,null,181,null,null,null,null,null,null,null,null,null,null,null,null,null,null,null,null,0]
[null,null,182,null,null,null,null,null,null,null,null,null,null,null,null,null,null,null,null,0]
[null,null,183,null,null,null,null,null,null,null,null,null,null,null,null,null,null,null,null,0]
[null,null,184,null,null,null,null,null,null,null,null,null,null,null,null,null,null,null,null,0]
[null,null,185,null,null,null,null,null,null,null,null,null,null,null,null,null,null,null,null,0]
[null,null,186,null,null,null,null,null,null,null,null,null,null,null,null,null,null,null,null,0]
[null,null,187,null,null,null,null,null,null,null,null,null,null,null,null,null,null,null,null,0]
[null,null,188,null,null,null,null,null,null,null,null,null,null,null,null,null,null,null,null,0]
[null,null,189,null,null,null,null,null,null,null,null,null,null,null,null,null,null,null,null,0]
[null,null,190,null,null,null,null,null,null,null,null,null,null,null,null,null,null,null,null,0]
[null,null,191,null,null,null,null,null,null,null,null,null,null,null,null,null,null,null,null,0]
[null,null,192,null,null,null,null,null,null,null,null,null,null,null,null,null,null,null,null,0]
[null,null,193,null,null,null,null,null,null,null,null,null,null,null,null,null,null,null,null,0]
[null,null,194,null,null,null,null,null,null,null,null,null,null,null,null,null,null,null,null,{"$f":"IF(I201=\"\",0,INT(SUM(PRODUCT(I201,K201,N201,Q201))))","v":0}]
[null,null,195,null,null,null,null,null,null,null,null,null,null,null,null,null,null,null,null,0]
[null,null,196,null,null,null,null,null,null,null,null,null,null,null,null,null,null,null,null,0]
[null,null,197,null,null,null,null,null,null,null,null,null,null,null,null,null,null,null,null,0]
[null,null,198,null,null,null,null,null,null,null,null,null,null,null,null,null,null,null,null,0]
[null,null,199,null,null,null,null,null,null,null,null,null,null,null,null,null,null,null,null,0]
[null,null,200,null,null,null,null,null,null,null,null,null,null,null,null,null,null,null,null,0]
[null,null,201,null,null,null,null,null,null,null,null,null,null,null,null,null,null,null,null,0]
[null,null,202,null,null,null,null,null,null,null,null,null,null,null,null,null,null,null,null,0]
[null,null,203,null,null,null,null,null,null,null,null,null,null,null,null,null,null,null,null,0]
[null,null,204,null,null,null,null,null,null,null,null,null,null,null,null,null,null,null,null,0]
[null,null,205,null,null,null,null,null,null,null,null,null,null,null,null,null,null,null,null,0]
[null,null,206,null,null,null,null,null,null,null,null,null,null,null,null,null,null,null,null,0]
[null,null,207,null,null,null,null,null,null,null,null,null,null,null,null,null,null,null,null,0]
[null,null,208,null,null,null,null,null,null,null,null,null,null,null,null,null,null,null,null,0]
[null,null,209,null,null,null,null,null,null,null,null,null,null,null,null,null,null,null,null,0]
[null,null,210,null,null,null,null,null,null,null,null,null,null,null,null,null,null,null,null,0]
[null,null,211,null,null,null,null,null,null,null,null,null,null,null,null,null,null,null,null,0]
[null,null,212,null,null,null,null,null,null,null,null,null,null,null,null,null,null,null,null,0]
[null,null,213,null,null,null,null,null,null,null,null,null,null,null,null,null,null,null,null,0]
[null,null,214,null,null,null,null,null,null,null,null,null,null,null,null,null,null,null,null,0]
[null,null,215,null,null,null,null,null,null,null,null,null,null,null,null,null,null,null,null,0]
[null,null,216,null,null,null,null,null,null,null,null,null,null,null,null,null,null,null,null,0]
[null,null,217,null,null,null,null,null,null,null,null,null,null,null,null,null,null,null,null,0]
[null,null,218,null,null,null,null,null,null,null,null,null,null,null,null,null,null,null,null,0]
[null,null,219,null,null,null,null,null,null,null,null,null,null,null,null,null,null,null,null,0]
[null,null,220,null,null,null,null,null,null,null,null,null,null,null,null,null,null,null,null,0]
[null,null,221,null,null,null,null,null,null,null,null,null,null,null,null,null,null,null,null,0]
[null,null,222,null,null,null,null,null,null,null,null,null,null,null,null,null,null,null,null,0]
[null,null,223,null,null,null,null,null,null,null,null,null,null,null,null,null,null,null,null,0]
[null,null,224,null,null,null,null,null,null,null,null,null,null,null,null,null,null,null,null,0]
[null,null,225,null,null,null,null,null,null,null,null,null,null,null,null,null,null,null,null,0]
[null,null,226,null,null,null,null,null,null,null,null,null,null,null,null,null,null,null,null,0]
[null,null,227,null,null,null,null,null,null,null,null,null,null,null,null,null,null,null,null,0]
[null,null,228,null,null,null,null,null,null,null,null,null,null,null,null,null,null,null,null,0]
[null,null,229,null,null,null,null,null,null,null,null,null,null,null,null,null,null,null,null,0]
[null,null,230,null,null,null,null,null,null,null,null,null,null,null,null,null,null,null,null,0]
[null,null,231,null,null,null,null,null,null,null,null,null,null,null,null,null,null,null,null,0]
[null,null,232,null,null,null,null,null,null,null,null,null,null,null,null,null,null,null,null,0]
[null,null,233,null,null,null,null,null,null,null,null,null,null,null,null,null,null,null,null,0]
[null,null,234,null,null,null,null,null,null,null,null,null,null,null,null,null,null,null,null,0]
[null,null,235,null,null,null,null,null,null,null,null,null,null,null,null,null,null,null,null,0]
[null,null,236,null,null,null,null,null,null,null,null,null,null,null,null,null,null,null,null,0]
[null,null,237,null,null,null,null,null,null,null,null,null,null,null,null,null,null,null,null,0]
[null,null,238,null,null,null,null,null,null,null,null,null,null,null,null,null,null,null,null,0]
[null,null,239,null,null,null,null,null,null,null,null,null,null,null,null,null,null,null,null,0]
[null,null,240,null,null,null,null,null,null,null,null,null,null,null,null,null,null,null,null,0]
[null,null,241,null,null,null,null,null,null,null,null,null,null,null,null,null,null,null,null,0]
[null,null,242,null,null,null,null,null,null,null,null,null,null,null,null,null,null,null,null,0]
[null,null,243,null,null,null,null,null,null,null,null,null,null,null,null,null,null,null,null,0]
[null,null,244,null,null,null,null,null,null,null,null,null,null,null,null,null,null,null,null,0]
[null,null,245,null,null,null,null,null,null,null,null,null,null,null,null,null,null,null,null,0]
[null,null,246,null,null,null,null,null,null,null,null,null,null,null,null,null,null,null,null,0]
[null,null,247,null,null,null,null,null,null,null,null,null,null,null,null,null,null,null,null,0]
[null,null,248,null,null,null,null,null,null,null,null,null,null,null,null,null,null,null,null,0]
[null,null,249,null,null,null,null,null,null,null,null,null,null,null,null,null,null,null,null,0]
[null,null,250,null,null,null,null,null,null,null,null,null,null,null,null,null,null,null,null,0]
[null,null,251,null,null,null,null,null,null,null,null,null,null,null,null,null,null,null,null,0]
[null,null,252,null,null,null,null,null,null,null,null,null,null,null,null,null,null,null,null,0]
[null,null,253,null,null,null,null,null,null,null,null,null,null,null,null,null,null,null,null,0]
[null,null,254,null,null,null,null,null,null,null,null,null,null,null,null,null,null,null,null,0]
[null,null,255,null,null,null,null,null,null,null,null,null,null,null,null,null,null,null,null,0]
[null,null,256,null,null,null,null,null,null,null,null,null,null,null,null,null,null,null,null,0]
[null,null,257,null,null,null,null,null,null,null,null,null,null,null,null,null,null,null,null,0]
[null,null,258,null,null,null,null,null,null,null,null,null,null,null,null,null,null,null,null,{"$f":"IF(I265=\"\",0,INT(SUM(PRODUCT(I265,K265,N265,Q265))))","v":0}]
[null,null,259,null,null,null,null,null,null,null,null,null,null,null,null,null,null,null,null,0]
[null,null,260,null,null,null,null,null,null,null,null,null,null,null,null,null,null,null,null,0]
[null,null,261,null,null,null,null,null,null,null,null,null,null,null,null,null,null,null,null,0]
[null,null,262,null,null,null,null,null,null,null,null,null,null,null,null,null,null,null,null,0]
[null,null,263,null,null,null,null,null,null,null,null,null,null,null,null,null,null,null,null,0]
[null,null,264,null,null,null,null,null,null,null,null,null,null,null,null,null,null,null,null,0]
[null,null,265,null,null,null,null,null,null,null,null,null,null,null,null,null,null,null,null,0]
[null,null,266,null,null,null,null,null,null,null,null,null,null,null,null,null,null,null,null,0]
[null,null,267,null,null,null,null,null,null,null,null,null,null,null,null,null,null,null,null,0]
[null,null,268,null,null,null,null,null,null,null,null,null,null,null,null,null,null,null,null,0]
[null,null,269,null,null,null,null,null,null,null,null,null,null,null,null,null,null,null,null,0]
[null,null,270,null,null,null,null,null,null,null,null,null,null,null,null,null,null,null,null,0]
[null,null,271,null,null,null,null,null,null,null,null,null,null,null,null,null,null,null,null,0]
[null,null,272,null,null,null,null,null,null,null,null,null,null,null,null,null,null,null,null,0]
[null,null,273,null,null,null,null,null,null,null,null,null,null,null,null,null,null,null,null,0]
[null,null,274,null,null,null,null,null,null,null,null,null,null,null,null,null,null,null,null,0]
[null,null,275,null,null,null,null,null,null,null,null,null,null,null,null,null,null,null,null,0]
[null,null,276,null,null,null,null,null,null,null,null,null,null,null,null,null,null,null,null,0]
[null,null,277,null,null,null,null,null,null,null,null,null,null,null,null,null,null,null,null,0]
[null,null,278,null,null,null,null,null,null,null,null,null,null,null,null,null,null,null,null,0]
[null,null,279,null,null,null,null,null,null,null,null,null,null,null,null,null,null,null,null,0]
[null,null,280,null,null,null,null,null,null,null,null,null,null,null,null,null,null,null,null,0]
[null,null,281,null,null,null,null,null,null,null,null,null,null,null,null,null,null,null,null,0]
[null,null,282,null,null,null,null,null,null,null,null,null,null,null,null,null,null,null,null,0]
[null,null,283,null,null,null,null,null,null,null,null,null,null,null,null,null,null,null,null,0]
[null,null,284,null,null,null,null,null,null,null,null,null,null,null,null,null,null,null,null,0]
[null,null,285,null,null,null,null,null,null,null,null,null,null,null,null,null,null,null,null,0]
[null,null,286,null,null,null,null,null,null,null,null,null,null,null,null,null,null,null,null,0]
[null,null,287,null,null,null,null,null,null,null,null,null,null,null,null,null,null,null,null,0]
[null,null,288,null,null,null,null,null,null,null,null,null,null,null,null,null,null,null,null,0]
[null,null,289,null,null,null,null,null,null,null,null,null,null,null,null,null,null,null,null,0]
[null,null,290,null,null,null,null,null,null,null,null,null,null,null,null,null,null,null,null,0]
[null,null,291,null,null,null,null,null,null,null,null,null,null,null,null,null,null,null,null,0]
[null,null,292,null,null,null,null,null,null,null,null,null,null,null,null,null,null,null,null,0]
[null,null,293,null,null,null,null,null,null,null,null,null,null,null,null,null,null,null,null,0]
[null,null,294,null,null,null,null,null,null,null,null,null,null,null,null,null,null,null,null,0]
[null,null,295,null,null,null,null,null,null,null,null,null,null,null,null,null,null,null,null,0]
[null,null,296,null,null,null,null,null,null,null,null,null,null,null,null,null,null,null,null,0]
[null,null,297,null,null,null,null,null,null,null,null,null,null,null,null,null,null,null,null,0]
[null,null,298,null,null,null,null,null,null,null,null,null,null,null,null,null,null,null,null,0]
[null,null,299,null,null,null,null,null,null,null,null,null,null,null,null,null,null,null,null,0]
[null,null,300,null,null,null,null,null,null,null,null,null,null,null,null,null,null,null,null,0]
[null,null,301,null,null,null,null,null,null,null,null,null,null,null,null,null,null,null,null,0]
[null,null,302,null,null,null,null,null,null,null,null,null,null,null,null,null,null,null,null,0]
[null,null,303,null,null,null,null,null,null,null,null,null,null,null,null,null,null,null,null,0]
[null,null,304,null,null,null,null,null,null,null,null,null,null,null,null,null,null,null,null,0]
[null,null,305,null,null,null,null,null,null,null,null,null,null,null,null,null,null,null,null,0]
[null,null,306,null,null,null,null,null,null,null,null,null,null,null,null,null,null,null,null,0]
[null,null,307,null,null,null,null,null,null,null,null,null,null,null,null,null,null,null,null,0]
[null,null,308,null,null,null,null,null,null,null,null,null,null,null,null,null,null,null,null,0]
[null,null,309,null,null,null,null,null,null,null,null,null,null,null,null,null,null,null,null,0]
[null,null,310,null,null,null,null,null,null,null,null,null,null,null,null,null,null,null,null,0]
[null,null,311,null,null,null,null,null,null,null,null,null,null,null,null,null,null,null,null,0]
[null,null,312,null,null,null,null,null,null,null,null,null,null,null,null,null,null,null,null,0]
[null,null,313,null,null,null,null,null,null,null,null,null,null,null,null,null,null,null,null,0]
[null,null,314,null,null,null,null,null,null,null,null,null,null,null,null,null,null,null,null,0]
[null,null,315,null,null,null,null,null,null,null,null,null,null,null,null,null,null,null,null,0]
[null,null,316,null,null,null,null,null,null,null,null,null,null,null,null,null,null,null,null,0]
[null,null,317,null,null,null,null,null,null,null,null,null,null,null,null,null,null,null,null,0]
[null,null,318,null,null,null,null,null,null,null,null,null,null,null,null,null,null,null,null,0]
[null,null,319,null,null,null,null,null,null,null,null,null,null,null,null,null,null,null,null,0]
[null,null,320,null,null,null,null,null,null,null,null,null,null,null,null,null,null,null,null,0]
[null,null,321,null,null,null,null,null,null,null,null,null,null,null,null,null,null,null,null,0]
[null,null,322,null,null,null,null,null,null,null,null,null,null,null,null,null,null,null,null,{"$f":"IF(I329=\"\",0,INT(SUM(PRODUCT(I329,K329,N329,Q329))))","v":0}]
[null,null,323,null,null,null,null,null,null,null,null,null,null,null,null,null,null,null,null,0]
[null,null,324,null,null,null,null,null,null,null,null,null,null,null,null,null,null,null,null,0]
[null,null,325,null,null,null,null,null,null,null,null,null,null,null,null,null,null,null,null,0]
[null,null,326,null,null,null,null,null,null,null,null,null,null,null,null,null,null,null,null,0]
[null,null,327,null,null,null,null,null,null,null,null,null,null,null,null,null,null,null,null,0]
[null,null,328,null,null,null,null,null,null,null,null,null,null,null,null,null,null,null,null,0]
[null,null,329,null,null,null,null,null,null,null,null,null,null,null,null,null,null,null,null,0]
[null,null,330,null,null,null,null,null,null,null,null,null,null,null,null,null,null,null,null,0]
[null,null,331,null,null,null,null,null,null,null,null,null,null,null,null,null,null,null,null,0]
[null,null,332,null,null,null,null,null,null,null,null,null,null,null,null,null,null,null,null,0]
[null,null,333,null,null,null,null,null,null,null,null,null,null,null,null,null,null,null,null,0]
[null,null,334,null,null,null,null,null,null,null,null,null,null,null,null,null,null,null,null,0]
[null,null,335,null,null,null,null,null,null,null,null,null,null,null,null,null,null,null,null,0]
[null,null,336,null,null,null,null,null,null,null,null,null,null,null,null,null,null,null,null,0]
[null,null,337,null,null,null,null,null,null,null,null,null,null,null,null,null,null,null,null,0]
[null,null,338,null,null,null,null,null,null,null,null,null,null,null,null,null,null,null,null,0]
[null,null,339,null,null,null,null,null,null,null,null,null,null,null,null,null,null,null,null,0]
[null,null,340,null,null,null,null,null,null,null,null,null,null,null,null,null,null,null,null,0]
[]
[]
[null,null,"【収入の部】",null,null,null,"（単位：円）"]
[null,null,"No.",null,"費目","内　　訳","金  額"]
[null,null,1,null,null,null,null,null,null,null,null,null,null,null,null,null,null,null,null,null,null,null,"自己負担金",{"$f":"SUMIFS($G$352:$G$410,$E$352:$E$410,W352)","v":0}]
[null,null,2,null,null,null,null,null,null,null,null,null,null,null,null,null,null,null,null,null,null,null,"助成金等",{"$f":"SUMIFS($G$352:$G$410,$E$352:$E$410,W353)","v":0}]
[null,null,3,null,null,null,null,null,null,null,null,null,null,null,null,null,null,null,null,null,null,null,"その他収入",0]
[null,null,4]
[null,null,5]
[null,null,6]
[null,null,7]
[null,null,8]
[null,null,9]
[null,null,10]
[null,null,11]
[null,null,12]
[null,null,13]
[null,null,14]
[null,null,15]
[null,null,16]
[null,null,17]
[null,null,18]
[null,null,19]
[null,null,20]
[null,null,21]
[null,null,22]
[null,null,23]
[null,null,24]
[null,null,25]
[null,null,26]
[null,null,27]
[null,null,28]
[null,null,29]
[null,null,30]
[null,null,31]
[null,null,32]
[null,null,33]
[null,null,34]
[null,null,35]
[null,null,36]
[null,null,37]
[null,null,38]
[null,null,39]
[null,null,40]
[null,null,41]
[null,null,42]
[null,null,43]
[null,null,44]
[null,null,45]
[null,null,46]
[null,null,47]
[null,null,48]
[null,null,49]
[null,null,50]
[null,null,51]
[null,null,52]
[null,null,53]
[null,null,54,null,null,null,null,null,null,null,null,null,null,null,null,null,null,null,null,null,null,null,"（統合計算用）"]
[null,null,55,null,null,null,null,null,null,null,null,null,null,null,null,null,null,null,null,null,null,null,"自己負担金",{"$f":"SUMIFS(G352:G410,E352:E410,W406)","v":0}]
[null,null,56,null,null,null,null,null,null,null,null,null,null,null,null,null,null,null,null,null,null,null,"助成金等",{"$f":"SUMIFS(G352:G410,E352:E410,W407)","v":0}]
[null,null,57,null,null,null,null,null,null,null,null,null,null,null,null,null,null,null,null,null,null,null,"その他収入",{"$f":"SUMIFS(G352:G410,E352:E410,W408)","v":0}]
[null,null,58]
[null,null,59]

{"sheet":"スタート_マスター","index":7,"n_rows":18,"n_cols":18,"rows_kept":18,"cut":false,"hidden":true,"merged":[]}
["事務局経費プルダウン","事業実施経費プルダウン","収入の部プルダウン"]
["人件費","人件費","自己負担金",null,"人件費","諸謝金","旅費","借損料","消耗品費","通信運搬費","雑役務費","保険料","消費税相当額","一般管理費","再委託費",null,null,"事業形態"]
["諸謝金","諸謝金","助成金等",null,"賃金（臨時雇用）","出演謝金（演技披露等）","講師，指導者，実演者の旅費","会場使用料","消耗品費","通信運搬費","雑役務費","参加者保険料","消費税相当額","一般管理費","人件費",null,null,"補助事業者"]
["旅費","旅費","その他収入",null,"賃金（既雇用職員等）","特別指導等謝金","事前打ち合わせに係る旅費","用具・機材等借料",null,null,null,"その他",null,null,"諸謝金",null,null,"補助事業者以外"]
["借損料","借損料",null,null,"その他","外部指導者謝金","宿泊費","衣装・楽器等借料",null,null,null,null,null,null,"旅費"]
["消耗品費","消耗品費",null,null,null,"内部指導者謝金","自家用車の使用等に係る旅費","車両借り上げ代",null,null,null,null,null,null,"借損料"]
["通信運搬費","通信運搬費",null,null,null,"協力謝金","その他","その他",null,null,null,null,null,null,"消耗品費"]
["雑役務費","雑役務費",null,null,null,"その他",null,null,null,null,null,null,null,null,"通信運搬費"]
["保険料","保険料",null,null,null,null,null,null,null,null,null,null,null,null,"雑役務費"]
["消費税相当額","消費税相当額",null,null,null,null,null,null,null,null,null,null,null,null,"保険料",null,null," "]
["一般管理費","再委託費",null,null,null,null,null,null,null,null,null,null,null,null,"消費税相当額"]
["再委託費",null,null,null,null,null,null,null,null,null,null,null,null,null,"一般管理費"]
[]
[]
[]
[]
["対象外",null,null,null,null,null,"このシートは教室の統一計算用に保持してあるものです"]
[null,null,null,null,null,null,"消さないでください！"]

{"sheet":"【事業①】支出・収入内訳明細書","index":8,"n_rows":410,"n_cols":24,"rows_kept":410,"cut":false,"hidden":false,"merged":[[409,2,409,3],[405,2,405,3],[406,2,406,3],[407,2,407,3],[402,2,402,3],[403,2,403,3],[404,2,404,3],[399,2,399,3],[400,2,400,3],[401,2,401,3],[397,2,397,3],[398,2,398,3],[393,2,393,3],[394,2,394,3],[395,2,395,3],[390,2,390,3],[391,2,391,3],[392,2,392,3],[408,2,408,3],[388,2,388,3],[389,2,389,3],[384,2,384,3],[385,2,385,3],[386,2,386,3],[381,2,381,3],[382,2,382,3],[383,2,383,3],[396,2,396,3],[379,2,379,3],[380,2,380,3],[375,2,375,3],[376,2,376,3],[377,2,377,3],[372,2,372,3],[373,2,373,3],[374,2,374,3],[387,2,387,3],[370,2,370,3],[371,2,371,3],[366,2,366,3],[367,2,367,3],[368,2,368,3],[363,2,363,3],[364,2,364,3],[365,2,365,3],[378,2,378,3],[361,2,361,3],[362,2,362,3],[357,2,357,3],[358,2,358,3],[359,2,359,3],[354,2,354,3],[355,2,355,3],[356,2,356,3],[369,2,369,3],[351,2,351,3],[352,2,352,3],[353,2,353,3],[345,2,345,3],[346,2,346,3],[349,2,349,4],[350,2,350,3],[347,2,347,3],[360,2,360,3],[339,2,339,3],[340,2,340,3],[341,2,341,3],[342,2,342,3],[343,2,343,3],[344,2,344,3],[333,2,333,3],[334,2,334,3],[335,2,335,3],[336,2,336,3],[337,2,337,3],[338,2,338,3],[327,2,327,3],[328,2,328,3],[329,2,329,3],[330,2,330,3],[331,2,331,3],[332,2,332,3],[321,2,321,3],[322,2,322,3],[323,2,323,3],[324,2,324,3],[325,2,325,3],[326,2,326,3],[315,2,315,3],[316,2,316,3],[317,2,317,3],[318,2,318,3],[319,2,319,3],[320,2,320,3],[309,2,309,3],[310,2,310,3],[311,2,311,3],[312,2,312,3],[313,2,313,3],[314,2,314,3],[303,2,303,3],[304,2,304,3],[305,2,305,3],[306,2,306,3],[307,2,307,3],[308,2,308,3],[297,2,297,3],[298,2,298,3],[299,2,299,3],[300,2,300,3],[301,2,301,3],[302,2,302,3],[291,2,291,3],[292,2,292,3],[293,2,293,3],[294,2,294,3],[295,2,295,3],[296,2,296,3],[285,2,285,3],[286,2,286,3],[287,2,287,3],[288,2,288,3],[289,2,289,3],[290,2,290,3],[279,2,279,3],[280,2,280,3],[281,2,281,3],[282,2,282,3],[283,2,283,3],[284,2,284,3],[273,2,273,3],[274,2,274,3],[275,2,275,3],[276,2,276,3],[277,2,277,3],[278,2,278,3],[267,2,267,3],[268,2,268,3],[269,2,269,3],[270,2,270,3],[271,2,271,3],[272,2,272,3],[261,2,261,3],[262,2,262,3],[263,2,263,3],[264,2,264,3],[265,2,265,3],[266,2,266,3],[255,2,255,3],[256,2,256,3],[257,2,257,3],[258,2,258,3],[259,2,259,3],[260,2,260,3],[249,2,249,3],[250,2,250,3],[251,2,251,3],[252,2,252,3],[253,2,253,3],[254,2,254,3],[243,2,243,3],[244,2,244,3],[245,2,245,3],[246,2,246,3],[247,2,247,3],[248,2,248,3],[237,2,237,3],[238,2,238,3],[239,2,239,3],[240,2,240,3],[241,2,241,3],[242,2,242,3],[231,2,231,3],[232,2,232,3],[233,2,233,3],[234,2,234,3],[235,2,235,3],[236,2,236,3],[225,2,225,3],[226,2,226,3],[227,2,227,3],[228,2,228,3],[229,2,229,3],[230,2,230,3],[219,2,219,3],[220,2,220,3],[221,2,221,3],[222,2,222,3],[223,2,223,3],[224,2,224,3],[213,2,213,3],[214,2,214,3],[215,2,215,3],[216,2,216,3],[217,2,217,3],[218,2,218,3],[207,2,207,3],[208,2,208,3],[209,2,209,3],[210,2,210,3],[211,2,211,3],[212,2,212,3],[201,2,201,3],[202,2,202,3],[203,2,203,3],[204,2,204,3],[205,2,205,3],[206,2,206,3],[195,2,195,3],[196,2,196,3],[197,2,197,3],[198,2,198,3],[199,2,199,3],[200,2,200,3],[189,2,189,3],[190,2,190,3],[191,2,191,3],[192,2,192,3],[193,2,193,3],[194,2,194,3],[183,2,183,3],[184,2,184,3],[185,2,185,3],[186,2,186,3],[187,2,187,3],[188,2,188,3],[177,2,177,3],[178,2,178,3],[179,2,179,3],[180,2,180,3],[181,2,181,3],[182,2,182,3],[171,2,171,3],[172,2,172,3],[173,2,173,3],[174,2,174,3],[175,2,175,3],[176,2,176,3],[165,2,165,3],[166,2,166,3],[167,2,167,3],[168,2,168,3],[169,2,169,3],[170,2,170,3],[159,2,159,3],[160,2,160,3],[161,2,161,3],[162,2,162,3],[163,2,163,3],[164,2,164,3],[153,2,153,3],[154,2,154,3],[155,2,155,3],[156,2,156,3],[157,2,157,3],[158,2,158,3],[147,2,147,3],[148,2,148,3],[149,2,149,3],[150,2,150,3],[151,2,151,3],[152,2,152,3],[141,2,141,3],[142,2,142,3],[143,2,143,3],[144,2,144,3],[145,2,145,3],[146,2,146,3],[135,2,135,3],[136,2,136,3],[137,2,137,3],[138,2,138,3],[139,2,139,3],[140,2,140,3],[129,2,129,3],[130,2,130,3],[131,2,131,3],[132,2,132,3],[133,2,133,3],[134,2,134,3],[123,2,123,3],[124,2,124,3],[125,2,125,3],[126,2,126,3],[127,2,127,3],[128,2,128,3],[117,2,117,3],[118,2,118,3],[119,2,119,3],[120,2,120,3],[121,2,121,3],[122,2,122,3],[111,2,111,3],[112,2,112,3],[113,2,113,3],[114,2,114,3],[115,2,115,3],[116,2,116,3],[105,2,105,3],[106,2,106,3],[107,2,107,3],[108,2,108,3],[109,2,109,3],[110,2,110,3],[99,2,99,3],[100,2,100,3],[101,2,101,3],[102,2,102,3],[103,2,103,3],[104,2,104,3],[93,2,93,3],[94,2,94,3],[95,2,95,3],[96,2,96,3],[97,2,97,3],[98,2,98,3],[87,2,87,3],[88,2,88,3],[89,2,89,3],[90,2,90,3],[91,2,91,3],[92,2,92,3],[81,2,81,3],[82,2,82,3],[83,2,83,3],[84,2,84,3],[85,2,85,3],[86,2,86,3],[75,2,75,3],[76,2,76,3],[77,2,77,3],[78,2,78,3],[79,2,79,3],[80,2,80,3],[69,2,69,3],[70,2,70,3],[71,2,71,3],[72,2,72,3],[73,2,73,3],[74,2,74,3],[63,2,63,3],[64,2,64,3],[65,2,65,3],[66,2,66,3],[67,2,67,3],[68,2,68,3],[57,2,57,3],[58,2,58,3],[59,2,59,3],[60,2,60,3],[61,2,61,3],[62,2,62,3],[51,2,51,3],[52,2,52,3],[53,2,53,3],[54,2,54,3],[55,2,55,3],[56,2,56,3],[45,2,45,3],[46,2,46,3],[47,2,47,3],[48,2,48,3],[49,2,49,3],[50,2,50,3],[39,2,39,3],[40,2,40,3],[41,2,41,3],[42,2,42,3],[43,2,43,3],[44,2,44,3],[33,2,33,3],[34,2,34,3],[35,2,35,3],[36,2,36,3],[37,2,37,3],[38,2,38,3],[27,2,27,3],[28,2,28,3],[29,2,29,3],[30,2,30,3],[31,2,31,3],[32,2,32,3],[21,2,21,3],[22,2,22,3],[23,2,23,3],[24,2,24,3],[25,2,25,3],[26,2,26,3],[15,2,15,3],[16,2,16,3],[17,2,17,3],[18,2,18,3],[19,2,19,3],[20,2,20,3],[10,2,10,3],[11,2,11,3],[12,2,12,3],[13,2,13,3],[14,2,14,3],[0,2,0,6],[9,2,9,3],[2,13,2,15],[2,16,2,17],[2,10,2,12],[1,2,1,6],[4,13,4,19],[5,2,5,5],[6,2,6,3],[7,2,7,3],[8,2,8,3],[1,10,1,12],[1,13,1,19],[4,10,4,12],[2,18,2,19],[2,2,2,3],[2,4,2,6]]}
[null,null,{"$f":"'様式１－１ '!A1","v":0}]
[null,null,"【事業①】支出・収入内訳明細書",null,null,null,null,null,null,null,"支出合計\n(円)",null,null,{"$f":"SUM(T8:T347)","v":0}]
[null,null,"事業名",null,null,null,null,null,null,null,"収入合計\n(円)",null,null,{"$f":"SUM(G352:G410)","v":0},null,null,"対象外経費\n合計",null,{"$f":"SUMIFS($T8:$T347,$U8:$U347,スタート_マスター!A17)","v":0}]
[]
[null,null,null,null,null,null,null,null,null,null,"対象経費\n合計",null,null,{"$f":"N2-S3","v":0}]
[null,null,"【支出の部】",null,null,null,null,null,null,null,null,null,null,null,null,null,null,null,null,null,"（単位：円）"]
[null,null,"No.",null,"区分","費目","内　　訳",null,"（単価）","×","（数量）","（単位）","×","（数量）","（単位）","×","（数量）","（単位）","＝","(金額)","対象外経費",null,"支出合計（費目ごと統一合計用）"]
[null,null,1,null,null,null,null,null,null,null,null,null,null,null,null,null,null,null,null,{"$f":"IF(I8=\"\",0,INT(SUM(PRODUCT(I8,K8,N8,Q8))))","v":0},null,null,"人件費",{"$f":"SUMIFS($T$8:$T$347,$E$8:$E$347,W8)","v":0}]
[null,null,2,null,null,null,null,null,null,null,null,null,null,null,null,null,null,null,null,{"$f":"IF(I9=\"\",0,INT(SUM(PRODUCT(I9,K9,N9,Q9))))","v":0},null,null,"諸謝金",{"$f":"SUMIFS($T$8:$T$347,$E$8:$E$347,W9)","v":0}]
[null,null,3,null,null,null,null,null,null,null,null,null,null,null,null,null,null,null,null,0,null,null,"旅費",{"$f":"SUMIFS($T$8:$T$347,$E$8:$E$347,W10)","v":0}]
[null,null,4,null,null,null,null,null,null,null,null,null,null,null,null,null,null,null,null,0,null,null,"借損料",0]
[null,null,5,null,null,null,null,null,null,null,null,null,null,null,null,null,null,null,null,0,null,null,"消耗品費",{"$f":"SUMIFS($T$8:$T$347,$E$8:$E$347,W12)","v":0}]
[null,null,6,null,null,null,null,null,null,null,null,null,null,null,null,null,null,null,null,0,null,null,"通信運搬費",0]
[null,null,7,null,null,null,null,null,null,null,null,null,null,null,null,null,null,null,null,0,null,null,"雑役務費",0]
[null,null,8,null,null,null,null,null,null,null,null,null,null,null,null,null,null,null,null,0,null,null,"保険料",0]
[null,null,9,null,null,null,null,null,null,null,null,null,null,null,null,null,null,null,null,0,null,null,"消費税相当額",0]
[null,null,10,null,null,null,null,null,null,null,null,null,null,null,null,null,null,null,null,0,null,null,"再委託費",{"$f":"SUMIFS($T$8:$T$347,$E$8:$E$347,W17)","v":0}]
[null,null,11,null,null,null,null,null,null,null,null,null,null,null,null,null,null,null,null,0]
[null,null,12,null,null,null,null,null,null,null,null,null,null,null,null,null,null,null,null,0,null,null,"対象外合計（統一計算用）"]
[null,null,13,null,null,null,null,null,null,null,null,null,null,null,null,null,null,null,null,0,null,null,"人件費",{"$f":"SUMIFS($T$8:$T$347,$E$8:$E$347,W20,$U$8:$U$347,\"対象外\")","v":0}]
[null,null,14,null,null,null,null,null,null,null,null,null,null,null,null,null,null,null,null,0,null,null,"諸謝金",{"$f":"SUMIFS($T$8:$T$347,$E$8:$E$347,W21,$U$8:$U$347,\"対象外\")","v":0}]
[null,null,15,null,null,null,null,null,null,null,null,null,null,null,null,null,null,null,null,0,null,null,"旅費",{"$f":"SUMIFS($T$8:$T$347,$E$8:$E$347,W22,$U$8:$U$347,\"対象外\")","v":0}]
[null,null,16,null,null,null,null,null,null,null,null,null,null,null,null,null,null,null,null,0,null,null,"借損料",{"$f":"SUMIFS($T$8:$T$347,$E$8:$E$347,W23,$U$8:$U$347,\"対象外\")","v":0}]
[null,null,17,null,null,null,null,null,null,null,null,null,null,null,null,null,null,null,null,0,null,null,"消耗品費",{"$f":"SUMIFS($T$8:$T$347,$E$8:$E$347,W24,$U$8:$U$347,\"対象外\")","v":0}]
[null,null,18,null,null,null,null,null,null,null,null,null,null,null,null,null,null,null,null,0,null,null,"通信運搬費",0]
[null,null,19,null,null,null,null,null,null,null,null,null,null,null,null,null,null,null,null,0,null,null,"雑役務費",0]
[null,null,20,null,null,null,null,null,null,null,null,null,null,null,null,null,null,null,null,0,null,null,"保険料",0]
[null,null,21,null,null,null,null,null,null,null,null,null,null,null,null,null,null,null,null,0,null,null,"消費税相当額",0]
[null,null,22,null,null,null,null,null,null,null,null,null,null,null,null,null,null,null,null,0,null,null,"再委託費",{"$f":"SUMIFS($T$8:$T$347,$E$8:$E$347,W29,$U$8:$U$347,\"対象外\")","v":0}]
[null,null,23,null,null,null,null,null,null,null,null,null,null,null,null,null,null,null,null,0]
[null,null,24,null,null,null,null,null,null,null,null,null,null,null,null,null,null,null,null,0]
[null,null,25,null,null,null,null,null,null,null,null,null,null,null,null,null,null,null,null,0]
[null,null,26,null,null,null,null,null,null,null,null,null,null,null,null,null,null,null,null,0]
[null,null,27,null,null,null,null,null,null,null,null,null,null,null,null,null,null,null,null,0,null,null,"再委託費"]
[null,null,28,null,null,null,null,null,null,null,null,null,null,null,null,null,null,null,null,0,null,null,"人件費",{"$f":"SUMIFS($T$8:$T$347,$E$8:$E$347,$W$34,$F$8:$F$347,W35)","v":0}]
[null,null,29,null,null,null,null,null,null,null,null,null,null,null,null,null,null,null,null,0,null,null,"諸謝金",{"$f":"SUMIFS($T$8:$T$347,$E$8:$E$347,$W$34,$F$8:$F$347,W36)","v":0}]
[null,null,30,null,null,null,null,null,null,null,null,null,null,null,null,null,null,null,null,0,null,null,"旅費",0]
[null,null,31,null,null,null,null,null,null,null,null,null,null,null,null,null,null,null,null,0,null,null,"借損料",0]
[null,null,32,null,null,null,null,null,null,null,null,null,null,null,null,null,null,null,null,0,null,null,"消耗品費",0]
[null,null,33,null,null,null,null,null,null,null,null,null,null,null,null,null,null,null,null,0,null,null,"通信運搬費",0]
[null,null,34,null,null,null,null,null,null,null,null,null,null,null,null,null,null,null,null,0,null,null,"雑役務費",0]
[null,null,35,null,null,null,null,null,null,null,null,null,null,null,null,null,null,null,null,0,null,null,"保険料",0]
[null,null,36,null,null,null,null,null,null,null,null,null,null,null,null,null,null,null,null,0,null,null,"消費税相当額",0]
[null,null,37,null,null,null,null,null,null,null,null,null,null,null,null,null,null,null,null,0,null,null,"一般管理費",0]
[null,null,38,null,null,null,null,null,null,null,null,null,null,null,null,null,null,null,null,0]
[null,null,39,null,null,null,null,null,null,null,null,null,null,null,null,null,null,null,null,0,null,null,"再委託費対象外"]
[null,null,40,null,null,null,null,null,null,null,null,null,null,null,null,null,null,null,null,0,null,null,"人件費",{"$f":"SUMIFS($T$8:$T$347,$E$8:$E$347,$W$34,$F$8:$F$347,W47,$U$8:$U$347,\"対象外\")","v":0}]
[null,null,41,null,null,null,null,null,null,null,null,null,null,null,null,null,null,null,null,0,null,null,"諸謝金",{"$f":"SUMIFS($T$8:$T$347,$E$8:$E$347,$W$34,$F$8:$F$347,W48,$U$8:$U$347,\"対象外\")","v":0}]
[null,null,42,null,null,null,null,null,null,null,null,null,null,null,null,null,null,null,null,0,null,null,"旅費",0]
[null,null,43,null,null,null,null,null,null,null,null,null,null,null,null,null,null,null,null,0,null,null,"借損料",0]
[null,null,44,null,null,null,null,null,null,null,null,null,null,null,null,null,null,null,null,0,null,null,"消耗品費",0]
[null,null,45,null,null,null,null,null,null,null,null,null,null,null,null,null,null,null,null,0,null,null,"通信運搬費",0]
[null,null,46,null,null,null,null,null,null,null,null,null,null,null,null,null,null,null,null,0,null,null,"雑役務費",0]
[null,null,47,null,null,null,null,null,null,null,null,null,null,null,null,null,null,null,null,0,null,null,"保険料",0]
[null,null,48,null,null,null,null,null,null,null,null,null,null,null,null,null,null,null,null,0,null,null,"消費税相当額",0]
[null,null,49,null,null,null,null,null,null,null,null,null,null,null,null,null,null,null,null,0,null,null,"一般管理費",0]
[null,null,50,null,null,null,null,null,null,null,null,null,null,null,null,null,null,null,null,0]
[null,null,51,null,null,null,null,null,null,null,null,null,null,null,null,null,null,null,null,0]
[null,null,52,null,null,null,null,null,null,null,null,null,null,null,null,null,null,null,null,0]
[null,null,53,null,null,null,null,null,null,null,null,null,null,null,null,null,null,null,null,0]
[null,null,54,null,null,null,null,null,null,null,null,null,null,null,null,null,null,null,null,0]
[null,null,55,null,null,null,null,null,null,null,null,null,null,null,null,null,null,null,null,0]
[null,null,56,null,null,null,null,null,null,null,null,null,null,null,null,null,null,null,null,0]
[null,null,57,null,null,null,null,null,null,null,null,null,null,null,null,null,null,null,null,0]
[null,null,58,null,null,null,null,null,null,null,null,null,null,null,null,null,null,null,null,0]
[null,null,59,null,null,null,null,null,null,null,null,null,null,null,null,null,null,null,null,0]
[null,null,60,null,null,null,null,null,null,null,null,null,null,null,null,null,null,null,null,0]
[null,null,61,null,null,null,null,null,null,null,null,null,null,null,null,null,null,null,null,0]
[null,null,62,null,null,null,null,null,null,null,null,null,null,null,null,null,null,null,null,0]
[null,null,63,null,null,null,null,null,null,null,null,null,null,null,null,null,null,null,null,0]
[null,null,64,null,null,null,null,null,null,null,null,null,null,null,null,null,null,null,null,0]
[null,null,65,null,null,null,null,null,null,null,null,null,null,null,null,null,null,null,null,0]
[null,null,66,null,null,null,null,null,null,null,null,null,null,null,null,null,null,null,null,{"$f":"IF(I73=\"\",0,INT(SUM(PRODUCT(I73,K73,N73,Q73))))","v":0}]
[null,null,67,null,null,null,null,null,null,null,null,null,null,null,null,null,null,null,null,0]
[null,null,68,null,null,null,null,null,null,null,null,null,null,null,null,null,null,null,null,0]
[null,null,69,null,null,null,null,null,null,null,null,null,null,null,null,null,null,null,null,0]
[null,null,70,null,null,null,null,null,null,null,null,null,null,null,null,null,null,null,null,0]
[null,null,71,null,null,null,null,null,null,null,null,null,null,null,null,null,null,null,null,0]
[null,null,72,null,null,null,null,null,null,null,null,null,null,null,null,null,null,null,null,0]
[null,null,73,null,null,null,null,null,null,null,null,null,null,null,null,null,null,null,null,0]
[null,null,74,null,null,null,null,null,null,null,null,null,null,null,null,null,null,null,null,0]
[null,null,75,null,null,null,null,null,null,null,null,null,null,null,null,null,null,null,null,0]
[null,null,76,null,null,null,null,null,null,null,null,null,null,null,null,null,null,null,null,0]
[null,null,77,null,null,null,null,null,null,null,null,null,null,null,null,null,null,null,null,0]
[null,null,78,null,null,null,null,null,null,null,null,null,null,null,null,null,null,null,null,0]
[null,null,79,null,null,null,null,null,null,null,null,null,null,null,null,null,null,null,null,0]
[null,null,80,null,null,null,null,null,null,null,null,null,null,null,null,null,null,null,null,0]
[null,null,81,null,null,null,null,null,null,null,null,null,null,null,null,null,null,null,null,0]
[null,null,82,null,null,null,null,null,null,null,null,null,null,null,null,null,null,null,null,0]
[null,null,83,null,null,null,null,null,null,null,null,null,null,null,null,null,null,null,null,0]
[null,null,84,null,null,null,null,null,null,null,null,null,null,null,null,null,null,null,null,0]
[null,null,85,null,null,null,null,null,null,null,null,null,null,null,null,null,null,null,null,0]
[null,null,86,null,null,null,null,null,null,null,null,null,null,null,null,null,null,null,null,0]
[null,null,87,null,null,null,null,null,null,null,null,null,null,null,null,null,null,null,null,0]
[null,null,88,null,null,null,null,null,null,null,null,null,null,null,null,null,null,null,null,0]
[null,null,89,null,null,null,null,null,null,null,null,null,null,null,null,null,null,null,null,0]
[null,null,90,null,null,null,null,null,null,null,null,null,null,null,null,null,null,null,null,0]
[null,null,91,null,null,null,null,null,null,null,null,null,null,null,null,null,null,null,null,0]
[null,null,92,null,null,null,null,null,null,null,null,null,null,null,null,null,null,null,null,0]
[null,null,93,null,null,null,null,null,null,null,null,null,null,null,null,null,null,null,null,0]
[null,null,94,null,null,null,null,null,null,null,null,null,null,null,null,null,null,null,null,0]
[null,null,95,null,null,null,null,null,null,null,null,null,null,null,null,null,null,null,null,0]
[null,null,96,null,null,null,null,null,null,null,null,null,null,null,null,null,null,null,null,0]
[null,null,97,null,null,null,null,null,null,null,null,null,null,null,null,null,null,null,null,0]
[null,null,98,null,null,null,null,null,null,null,null,null,null,null,null,null,null,null,null,0]
[null,null,99,null,null,null,null,null,null,null,null,null,null,null,null,null,null,null,null,0]
[null,null,100,null,null,null,null,null,null,null,null,null,null,null,null,null,null,null,null,0]
[null,null,101,null,null,null,null,null,null,null,null,null,null,null,null,null,null,null,null,0]
[null,null,102,null,null,null,null,null,null,null,null,null,null,null,null,null,null,null,null,0]
[null,null,103,null,null,null,null,null,null,null,null,null,null,null,null,null,null,null,null,0]
[null,null,104,null,null,null,null,null,null,null,null,null,null,null,null,null,null,null,null,0]
[null,null,105,null,null,null,null,null,null,null,null,null,null,null,null,null,null,null,null,0]
[null,null,106,null,null,null,null,null,null,null,null,null,null,null,null,null,null,null,null,0]
[null,null,107,null,null,null,null,null,null,null,null,null,null,null,null,null,null,null,null,0]
[null,null,108,null,null,null,null,null,null,null,null,null,null,null,null,null,null,null,null,0]
[null,null,109,null,null,null,null,null,null,null,null,null,null,null,null,null,null,null,null,0]
[null,null,110,null,null,null,null,null,null,null,null,null,null,null,null,null,null,null,null,0]
[null,null,111,null,null,null,null,null,null,null,null,null,null,null,null,null,null,null,null,{"$f":"IF(I118=\"\",0,INT(SUM(PRODUCT(I118,K118,N118,Q118))))","v":0}]
[null,null,112,null,null,null,null,null,null,null,null,null,null,null,null,null,null,null,null,0]
[null,null,113,null,null,null,null,null,null,null,null,null,null,null,null,null,null,null,null,0]
[null,null,114,null,null,null,null,null,null,null,null,null,null,null,null,null,null,null,null,0]
[null,null,115,null,null,null,null,null,null,null,null,null,null,null,null,null,null,null,null,0]
[null,null,116,null,null,null,null,null,null,null,null,null,null,null,null,null,null,null,null,0]
[null,null,117,null,null,null,null,null,null,null,null,null,null,null,null,null,null,null,null,0]
[null,null,118,null,null,null,null,null,null,null,null,null,null,null,null,null,null,null,null,0]
[null,null,119,null,null,null,null,null,null,null,null,null,null,null,null,null,null,null,null,0]
[null,null,120,null,null,null,null,null,null,null,null,null,null,null,null,null,null,null,null,0]
[null,null,121,null,null,null,null,null,null,null,null,null,null,null,null,null,null,null,null,0]
[null,null,122,null,null,null,null,null,null,null,null,null,null,null,null,null,null,null,null,0]
[null,null,123,null,null,null,null,null,null,null,null,null,null,null,null,null,null,null,null,0]
[null,null,124,null,null,null,null,null,null,null,null,null,null,null,null,null,null,null,null,0]
[null,null,125,null,null,null,null,null,null,null,null,null,null,null,null,null,null,null,null,0]
[null,null,126,null,null,null,null,null,null,null,null,null,null,null,null,null,null,null,null,0]
[null,null,127,null,null,null,null,null,null,null,null,null,null,null,null,null,null,null,null,0]
[null,null,128,null,null,null,null,null,null,null,null,null,null,null,null,null,null,null,null,0]
[null,null,129,null,null,null,null,null,null,null,null,null,null,null,null,null,null,null,null,0]
[null,null,130,null,null,null,null,null,null,null,null,null,null,null,null,null,null,null,null,{"$f":"IF(I137=\"\",0,INT(SUM(PRODUCT(I137,K137,N137,Q137))))","v":0}]
[null,null,131,null,null,null,null,null,null,null,null,null,null,null,null,null,null,null,null,0]
[null,null,132,null,null,null,null,null,null,null,null,null,null,null,null,null,null,null,null,0]
[null,null,133,null,null,null,null,null,null,null,null,null,null,null,null,null,null,null,null,0]
[null,null,134,null,null,null,null,null,null,null,null,null,null,null,null,null,null,null,null,0]
[null,null,135,null,null,null,null,null,null,null,null,null,null,null,null,null,null,null,null,0]
[null,null,136,null,null,null,null,null,null,null,null,null,null,null,null,null,null,null,null,0]
[null,null,137,null,null,null,null,null,null,null,null,null,null,null,null,null,null,null,null,0]
[null,null,138,null,null,null,null,null,null,null,null,null,null,null,null,null,null,null,null,0]
[null,null,139,null,null,null,null,null,null,null,null,null,null,null,null,null,null,null,null,0]
[null,null,140,null,null,null,null,null,null,null,null,null,null,null,null,null,null,null,null,0]
[null,null,141,null,null,null,null,null,null,null,null,null,null,null,null,null,null,null,null,0]
[null,null,142,null,null,null,null,null,null,null,null,null,null,null,null,null,null,null,null,0]
[null,null,143,null,null,null,null,null,null,null,null,null,null,null,null,null,null,null,null,0]
[null,null,144,null,null,null,null,null,null,null,null,null,null,null,null,null,null,null,null,0]
[null,null,145,null,null,null,null,null,null,null,null,null,null,null,null,null,null,null,null,0]
[null,null,146,null,null,null,null,null,null,null,null,null,null,null,null,null,null,null,null,0]
[null,null,147,null,null,null,null,null,null,null,null,null,null,null,null,null,null,null,null,0]
[null,null,148,null,null,null,null,null,null,null,null,null,null,null,null,null,null,null,null,0]
[null,null,149,null,null,null,null,null,null,null,null,null,null,null,null,null,null,null,null,0]
[null,null,150,null,null,null,null,null,null,null,null,null,null,null,null,null,null,null,null,0]
[null,null,151,null,null,null,null,null,null,null,null,null,null,null,null,null,null,null,null,0]
[null,null,152,null,null,null,null,null,null,null,null,null,null,null,null,null,null,null,null,0]
[null,null,153,null,null,null,null,null,null,null,null,null,null,null,null,null,null,null,null,0]
[null,null,154,null,null,null,null,null,null,null,null,null,null,null,null,null,null,null,null,0]
[null,null,155,null,null,null,null,null,null,null,null,null,null,null,null,null,null,null,null,0]
[null,null,156,null,null,null,null,null,null,null,null,null,null,null,null,null,null,null,null,0]
[null,null,157,null,null,null,null,null,null,null,null,null,null,null,null,null,null,null,null,0]
[null,null,158,null,null,null,null,null,null,null,null,null,null,null,null,null,null,null,null,0]
[null,null,159,null,null,null,null,null,null,null,null,null,null,null,null,null,null,null,null,0]
[null,null,160,null,null,null,null,null,null,null,null,null,null,null,null,null,null,null,null,0]
[null,null,161,null,null,null,null,null,null,null,null,null,null,null,null,null,null,null,null,0]
[null,null,162,null,null,null,null,null,null,null,null,null,null,null,null,null,null,null,null,0]
[null,null,163,null,null,null,null,null,null,null,null,null,null,null,null,null,null,null,null,0]
[null,null,164,null,null,null,null,null,null,null,null,null,null,null,null,null,null,null,null,0]
[null,null,165,null,null,null,null,null,null,null,null,null,null,null,null,null,null,null,null,0]
[null,null,166,null,null,null,null,null,null,null,null,null,null,null,null,null,null,null,null,0]
[null,null,167,null,null,null,null,null,null,null,null,null,null,null,null,null,null,null,null,0]
[null,null,168,null,null,null,null,null,null,null,null,null,null,null,null,null,null,null,null,0]
[null,null,169,null,null,null,null,null,null,null,null,null,null,null,null,null,null,null,null,0]
[null,null,170,null,null,null,null,null,null,null,null,null,null,null,null,null,null,null,null,0]
[null,null,171,null,null,null,null,null,null,null,null,null,null,null,null,null,null,null,null,0]
[null,null,172,null,null,null,null,null,null,null,null,null,null,null,null,null,null,null,null,0]
[null,null,173,null,null,null,null,null,null,null,null,null,null,null,null,null,null,null,null,0]
[null,null,174,null,null,null,null,null,null,null,null,null,null,null,null,null,null,null,null,0]
[null,null,175,null,null,null,null,null,null,null,null,null,null,null,null,null,null,null,null,0]
[null,null,176,null,null,null,null,null,null,null,null,null,null,null,null,null,null,null,null,0]
[null,null,177,null,null,null,null,null,null,null,null,null,null,null,null,null,null,null,null,0]
[null,null,178,null,null,null,null,null,null,null,null,null,null,null,null,null,null,null,null,0]
[null,null,179,null,null,null,null,null,null,null,null,null,null,null,null,null,null,null,null,0]
[null,null,180,null,null,null,null,null,null,null,null,null,null,null,null,null,null,null,null,0]
[null,null,181,null,null,null,null,null,null,null,null,null,null,null,null,null,null,null,null,0]
[null,null,182,null,null,null,null,null,null,null,null,null,null,null,null,null,null,null,null,0]
[null,null,183,null,null,null,null,null,null,null,null,null,null,null,null,null,null,null,null,0]
[null,null,184,null,null,null,null,null,null,null,null,null,null,null,null,null,null,null,null,0]
[null,null,185,null,null,null,null,null,null,null,null,null,null,null,null,null,null,null,null,0]
[null,null,186,null,null,null,null,null,null,null,null,null,null,null,null,null,null,null,null,0]
[null,null,187,null,null,null,null,null,null,null,null,null,null,null,null,null,null,null,null,0]
[null,null,188,null,null,null,null,null,null,null,null,null,null,null,null,null,null,null,null,0]
[null,null,189,null,null,null,null,null,null,null,null,null,null,null,null,null,null,null,null,0]
[null,null,190,null,null,null,null,null,null,null,null,null,null,null,null,null,null,null,null,0]
[null,null,191,null,null,null,null,null,null,null,null,null,null,null,null,null,null,null,null,0]
[null,null,192,null,null,null,null,null,null,null,null,null,null,null,null,null,null,null,null,0]
[null,null,193,null,null,null,null,null,null,null,null,null,null,null,null,null,null,null,null,0]
[null,null,194,null,null,null,null,null,null,null,null,null,null,null,null,null,null,null,null,{"$f":"IF(I201=\"\",0,INT(SUM(PRODUCT(I201,K201,N201,Q201))))","v":0}]
[null,null,195,null,null,null,null,null,null,null,null,null,null,null,null,null,null,null,null,0]
[null,null,196,null,null,null,null,null,null,null,null,null,null,null,null,null,null,null,null,0]
[null,null,197,null,null,null,null,null,null,null,null,null,null,null,null,null,null,null,null,0]
[null,null,198,null,null,null,null,null,null,null,null,null,null,null,null,null,null,null,null,0]
[null,null,199,null,null,null,null,null,null,null,null,null,null,null,null,null,null,null,null,0]
[null,null,200,null,null,null,null,null,null,null,null,null,null,null,null,null,null,null,null,0]
[null,null,201,null,null,null,null,null,null,null,null,null,null,null,null,null,null,null,null,0]
[null,null,202,null,null,null,null,null,null,null,null,null,null,null,null,null,null,null,null,0]
[null,null,203,null,null,null,null,null,null,null,null,null,null,null,null,null,null,null,null,0]
[null,null,204,null,null,null,null,null,null,null,null,null,null,null,null,null,null,null,null,0]
[null,null,205,null,null,null,null,null,null,null,null,null,null,null,null,null,null,null,null,0]
[null,null,206,null,null,null,null,null,null,null,null,null,null,null,null,null,null,null,null,0]
[null,null,207,null,null,null,null,null,null,null,null,null,null,null,null,null,null,null,null,0]
[null,null,208,null,null,null,null,null,null,null,null,null,null,null,null,null,null,null,null,0]
[null,null,209,null,null,null,null,null,null,null,null,null,null,null,null,null,null,null,null,0]
[null,null,210,null,null,null,null,null,null,null,null,null,null,null,null,null,null,null,null,0]
[null,null,211,null,null,null,null,null,null,null,null,null,null,null,null,null,null,null,null,0]
[null,null,212,null,null,null,null,null,null,null,null,null,null,null,null,null,null,null,null,0]
[null,null,213,null,null,null,null,null,null,null,null,null,null,null,null,null,null,null,null,0]
[null,null,214,null,null,null,null,null,null,null,null,null,null,null,null,null,null,null,null,0]
[null,null,215,null,null,null,null,null,null,null,null,null,null,null,null,null,null,null,null,0]
[null,null,216,null,null,null,null,null,null,null,null,null,null,null,null,null,null,null,null,0]
[null,null,217,null,null,null,null,null,null,null,null,null,null,null,null,null,null,null,null,0]
[null,null,218,null,null,null,null,null,null,null,null,null,null,null,null,null,null,null,null,0]
[null,null,219,null,null,null,null,null,null,null,null,null,null,null,null,null,null,null,null,0]
[null,null,220,null,null,null,null,null,null,null,null,null,null,null,null,null,null,null,null,0]
[null,null,221,null,null,null,null,null,null,null,null,null,null,null,null,null,null,null,null,0]
[null,null,222,null,null,null,null,null,null,null,null,null,null,null,null,null,null,null,null,0]
[null,null,223,null,null,null,null,null,null,null,null,null,null,null,null,null,null,null,null,0]
[null,null,224,null,null,null,null,null,null,null,null,null,null,null,null,null,null,null,null,0]
[null,null,225,null,null,null,null,null,null,null,null,null,null,null,null,null,null,null,null,0]
[null,null,226,null,null,null,null,null,null,null,null,null,null,null,null,null,null,null,null,0]
[null,null,227,null,null,null,null,null,null,null,null,null,null,null,null,null,null,null,null,0]
[null,null,228,null,null,null,null,null,null,null,null,null,null,null,null,null,null,null,null,0]
[null,null,229,null,null,null,null,null,null,null,null,null,null,null,null,null,null,null,null,0]
[null,null,230,null,null,null,null,null,null,null,null,null,null,null,null,null,null,null,null,0]
[null,null,231,null,null,null,null,null,null,null,null,null,null,null,null,null,null,null,null,0]
[null,null,232,null,null,null,null,null,null,null,null,null,null,null,null,null,null,null,null,0]
[null,null,233,null,null,null,null,null,null,null,null,null,null,null,null,null,null,null,null,0]
[null,null,234,null,null,null,null,null,null,null,null,null,null,null,null,null,null,null,null,0]
[null,null,235,null,null,null,null,null,null,null,null,null,null,null,null,null,null,null,null,0]
[null,null,236,null,null,null,null,null,null,null,null,null,null,null,null,null,null,null,null,0]
[null,null,237,null,null,null,null,null,null,null,null,null,null,null,null,null,null,null,null,0]
[null,null,238,null,null,null,null,null,null,null,null,null,null,null,null,null,null,null,null,0]
[null,null,239,null,null,null,null,null,null,null,null,null,null,null,null,null,null,null,null,0]
[null,null,240,null,null,null,null,null,null,null,null,null,null,null,null,null,null,null,null,0]
[null,null,241,null,null,null,null,null,null,null,null,null,null,null,null,null,null,null,null,0]
[null,null,242,null,null,null,null,null,null,null,null,null,null,null,null,null,null,null,null,0]
[null,null,243,null,null,null,null,null,null,null,null,null,null,null,null,null,null,null,null,0]
[null,null,244,null,null,null,null,null,null,null,null,null,null,null,null,null,null,null,null,0]
[null,null,245,null,null,null,null,null,null,null,null,null,null,null,null,null,null,null,null,0]
[null,null,246,null,null,null,null,null,null,null,null,null,null,null,null,null,null,null,null,0]
[null,null,247,null,null,null,null,null,null,null,null,null,null,null,null,null,null,null,null,0]
[null,null,248,null,null,null,null,null,null,null,null,null,null,null,null,null,null,null,null,0]
[null,null,249,null,null,null,null,null,null,null,null,null,null,null,null,null,null,null,null,0]
[null,null,250,null,null,null,null,null,null,null,null,null,null,null,null,null,null,null,null,0]
[null,null,251,null,null,null,null,null,null,null,null,null,null,null,null,null,null,null,null,0]
[null,null,252,null,null,null,null,null,null,null,null,null,null,null,null,null,null,null,null,0]
[null,null,253,null,null,null,null,null,null,null,null,null,null,null,null,null,null,null,null,0]
[null,null,254,null,null,null,null,null,null,null,null,null,null,null,null,null,null,null,null,0]
[null,null,255,null,null,null,null,null,null,null,null,null,null,null,null,null,null,null,null,0]
[null,null,256,null,null,null,null,null,null,null,null,null,null,null,null,null,null,null,null,0]
[null,null,257,null,null,null,null,null,null,null,null,null,null,null,null,null,null,null,null,0]
[null,null,258,null,null,null,null,null,null,null,null,null,null,null,null,null,null,null,null,{"$f":"IF(I265=\"\",0,INT(SUM(PRODUCT(I265,K265,N265,Q265))))","v":0}]
[null,null,259,null,null,null,null,null,null,null,null,null,null,null,null,null,null,null,null,0]
[null,null,260,null,null,null,null,null,null,null,null,null,null,null,null,null,null,null,null,0]
[null,null,261,null,null,null,null,null,null,null,null,null,null,null,null,null,null,null,null,0]
[null,null,262,null,null,null,null,null,null,null,null,null,null,null,null,null,null,null,null,0]
[null,null,263,null,null,null,null,null,null,null,null,null,null,null,null,null,null,null,null,0]
[null,null,264,null,null,null,null,null,null,null,null,null,null,null,null,null,null,null,null,0]
[null,null,265,null,null,null,null,null,null,null,null,null,null,null,null,null,null,null,null,0]
[null,null,266,null,null,null,null,null,null,null,null,null,null,null,null,null,null,null,null,0]
[null,null,267,null,null,null,null,null,null,null,null,null,null,null,null,null,null,null,null,0]
[null,null,268,null,null,null,null,null,null,null,null,null,null,null,null,null,null,null,null,0]
[null,null,269,null,null,null,null,null,null,null,null,null,null,null,null,null,null,null,null,0]
[null,null,270,null,null,null,null,null,null,null,null,null,null,null,null,null,null,null,null,0]
[null,null,271,null,null,null,null,null,null,null,null,null,null,null,null,null,null,null,null,0]
[null,null,272,null,null,null,null,null,null,null,null,null,null,null,null,null,null,null,null,0]
[null,null,273,null,null,null,null,null,null,null,null,null,null,null,null,null,null,null,null,0]
[null,null,274,null,null,null,null,null,null,null,null,null,null,null,null,null,null,null,null,0]
[null,null,275,null,null,null,null,null,null,null,null,null,null,null,null,null,null,null,null,0]
[null,null,276,null,null,null,null,null,null,null,null,null,null,null,null,null,null,null,null,0]
[null,null,277,null,null,null,null,null,null,null,null,null,null,null,null,null,null,null,null,0]
[null,null,278,null,null,null,null,null,null,null,null,null,null,null,null,null,null,null,null,0]
[null,null,279,null,null,null,null,null,null,null,null,null,null,null,null,null,null,null,null,0]
[null,null,280,null,null,null,null,null,null,null,null,null,null,null,null,null,null,null,null,0]
[null,null,281,null,null,null,null,null,null,null,null,null,null,null,null,null,null,null,null,0]
[null,null,282,null,null,null,null,null,null,null,null,null,null,null,null,null,null,null,null,0]
[null,null,283,null,null,null,null,null,null,null,null,null,null,null,null,null,null,null,null,0]
[null,null,284,null,null,null,null,null,null,null,null,null,null,null,null,null,null,null,null,0]
[null,null,285,null,null,null,null,null,null,null,null,null,null,null,null,null,null,null,null,0]
[null,null,286,null,null,null,null,null,null,null,null,null,null,null,null,null,null,null,null,0]
[null,null,287,null,null,null,null,null,null,null,null,null,null,null,null,null,null,null,null,0]
[null,null,288,null,null,null,null,null,null,null,null,null,null,null,null,null,null,null,null,0]
[null,null,289,null,null,null,null,null,null,null,null,null,null,null,null,null,null,null,null,0]
[null,null,290,null,null,null,null,null,null,null,null,null,null,null,null,null,null,null,null,0]
[null,null,291,null,null,null,null,null,null,null,null,null,null,null,null,null,null,null,null,0]
[null,null,292,null,null,null,null,null,null,null,null,null,null,null,null,null,null,null,null,0]
[null,null,293,null,null,null,null,null,null,null,null,null,null,null,null,null,null,null,null,0]
[null,null,294,null,null,null,null,null,null,null,null,null,null,null,null,null,null,null,null,0]
[null,null,295,null,null,null,null,null,null,null,null,null,null,null,null,null,null,null,null,0]
[null,null,296,null,null,null,null,null,null,null,null,null,null,null,null,null,null,null,null,0]
[null,null,297,null,null,null,null,null,null,null,null,null,null,null,null,null,null,null,null,0]
[null,null,298,null,null,null,null,null,null,null,null,null,null,null,null,null,null,null,null,0]
[null,null,299,null,null,null,null,null,null,null,null,null,null,null,null,null,null,null,null,0]
[null,null,300,null,null,null,null,null,null,null,null,null,null,null,null,null,null,null,null,0]
[null,null,301,null,null,null,null,null,null,null,null,null,null,null,null,null,null,null,null,0]
[null,null,302,null,null,null,null,null,null,null,null,null,null,null,null,null,null,null,null,0]
[null,null,303,null,null,null,null,null,null,null,null,null,null,null,null,null,null,null,null,0]
[null,null,304,null,null,null,null,null,null,null,null,null,null,null,null,null,null,null,null,0]
[null,null,305,null,null,null,null,null,null,null,null,null,null,null,null,null,null,null,null,0]
[null,null,306,null,null,null,null,null,null,null,null,null,null,null,null,null,null,null,null,0]
[null,null,307,null,null,null,null,null,null,null,null,null,null,null,null,null,null,null,null,0]
[null,null,308,null,null,null,null,null,null,null,null,null,null,null,null,null,null,null,null,0]
[null,null,309,null,null,null,null,null,null,null,null,null,null,null,null,null,null,null,null,0]
[null,null,310,null,null,null,null,null,null,null,null,null,null,null,null,null,null,null,null,0]
[null,null,311,null,null,null,null,null,null,null,null,null,null,null,null,null,null,null,null,0]
[null,null,312,null,null,null,null,null,null,null,null,null,null,null,null,null,null,null,null,0]
[null,null,313,null,null,null,null,null,null,null,null,null,null,null,null,null,null,null,null,0]
[null,null,314,null,null,null,null,null,null,null,null,null,null,null,null,null,null,null,null,0]
[null,null,315,null,null,null,null,null,null,null,null,null,null,null,null,null,null,null,null,0]
[null,null,316,null,null,null,null,null,null,null,null,null,null,null,null,null,null,null,null,0]
[null,null,317,null,null,null,null,null,null,null,null,null,null,null,null,null,null,null,null,0]
[null,null,318,null,null,null,null,null,null,null,null,null,null,null,null,null,null,null,null,0]
[null,null,319,null,null,null,null,null,null,null,null,null,null,null,null,null,null,null,null,0]
[null,null,320,null,null,null,null,null,null,null,null,null,null,null,null,null,null,null,null,0]
[null,null,321,null,null,null,null,null,null,null,null,null,null,null,null,null,null,null,null,0]
[null,null,322,null,null,null,null,null,null,null,null,null,null,null,null,null,null,null,null,{"$f":"IF(I329=\"\",0,INT(SUM(PRODUCT(I329,K329,N329,Q329))))","v":0}]
[null,null,323,null,null,null,null,null,null,null,null,null,null,null,null,null,null,null,null,0]
[null,null,324,null,null,null,null,null,null,null,null,null,null,null,null,null,null,null,null,0]
[null,null,325,null,null,null,null,null,null,null,null,null,null,null,null,null,null,null,null,0]
[null,null,326,null,null,null,null,null,null,null,null,null,null,null,null,null,null,null,null,0]
[null,null,327,null,null,null,null,null,null,null,null,null,null,null,null,null,null,null,null,0]
[null,null,328,null,null,null,null,null,null,null,null,null,null,null,null,null,null,null,null,0]
[null,null,329,null,null,null,null,null,null,null,null,null,null,null,null,null,null,null,null,0]
[null,null,330,null,null,null,null,null,null,null,null,null,null,null,null,null,null,null,null,0]
[null,null,331,null,null,null,null,null,null,null,null,null,null,null,null,null,null,null,null,0]
[null,null,332,null,null,null,null,null,null,null,null,null,null,null,null,null,null,null,null,0]
[null,null,333,null,null,null,null,null,null,null,null,null,null,null,null,null,null,null,null,0]
[null,null,334,null,null,null,null,null,null,null,null,null,null,null,null,null,null,null,null,0]
[null,null,335,null,null,null,null,null,null,null,null,null,null,null,null,null,null,null,null,0]
[null,null,336,null,null,null,null,null,null,null,null,null,null,null,null,null,null,null,null,0]
[null,null,337,null,null,null,null,null,null,null,null,null,null,null,null,null,null,null,null,0]
[null,null,338,null,null,null,null,null,null,null,null,null,null,null,null,null,null,null,null,0]
[null,null,339,null,null,null,null,null,null,null,null,null,null,null,null,null,null,null,null,0]
[null,null,340,null,null,null,null,null,null,null,null,null,null,null,null,null,null,null,null,0]
[]
[]
[null,null,"【収入の部】",null,null,null,"（単位：円）"]
[null,null,"No.",null,"費目","内　　訳","金  額",null,null,null,null,null,null,null,null,null,null,null,null,null,null,null,"収入合計（統一用）"]
[null,null,1,null,null,null,null,null,null,null,null,null,null,null,null,null,null,null,null,null,null,null,"自己負担金",{"$f":"SUMIFS($G$352:$G$410,$E$352:$E$410,W352)","v":0}]
[null,null,2,null,null,null,null,null,null,null,null,null,null,null,null,null,null,null,null,null,null,null,"助成金等",{"$f":"SUMIFS($G$352:$G$410,$E$352:$E$410,W353)","v":0}]
[null,null,3,null,null,null,null,null,null,null,null,null,null,null,null,null,null,null,null,null,null,null,"その他収入",{"$f":"SUMIFS($G$352:$G$410,$E$352:$E$410,W354)","v":0}]
[null,null,4]
[null,null,5]
[null,null,6]
[null,null,7]
[null,null,8]
[null,null,9]
[null,null,10]
[null,null,11]
[null,null,12]
[null,null,13]
[null,null,14]
[null,null,15]
[null,null,16]
[null,null,17]
[null,null,18]
[null,null,19]
[null,null,20]
[null,null,21]
[null,null,22]
[null,null,23]
[null,null,24]
[null,null,25]
[null,null,26]
[null,null,27]
[null,null,28]
[null,null,29]
[null,null,30]
[null,null,31]
[null,null,32]
[null,null,33]
[null,null,34]
[null,null,35]
[null,null,36]
[null,null,37]
[null,null,38]
[null,null,39]
[null,null,40]
[null,null,41]
[null,null,42]
[null,null,43]
[null,null,44]
[null,null,45]
[null,null,46]
[null,null,47]
[null,null,48]
[null,null,49]
[null,null,50]
[null,null,51]
[null,null,52]
[null,null,53]
[null,null,54,null,null,null,null,null,null,null,null,null,null,null,null,null,null,null,null,null,null,null,"（統合計算用）"]
[null,null,55,null,null,null,null,null,null,null,null,null,null,null,null,null,null,null,null,null,null,null,"自己負担金",{"$f":"SUMIFS(G352:G410,E352:E410,W406)","v":0}]
[null,null,56,null,null,null,null,null,null,null,null,null,null,null,null,null,null,null,null,null,null,null,"助成金等",{"$f":"SUMIFS(G352:G410,E352:E410,W407)","v":0}]
[null,null,57,null,null,null,null,null,null,null,null,null,null,null,null,null,null,null,null,null,null,null,"その他収入",{"$f":"SUMIFS(G352:G410,E352:E410,W408)","v":0}]
[null,null,58]
[null,null,59]

{"sheet":"【事業②】支出・収入内訳明細書","index":9,"n_rows":410,"n_cols":24,"rows_kept":410,"cut":false,"hidden":false,"merged":[[0,2,0,6],[1,2,1,6],[1,10,1,12],[1,13,1,19],[2,2,2,3],[2,4,2,6],[2,10,2,12],[2,13,2,15],[2,16,2,17],[2,18,2,19],[9,2,9,3],[10,2,10,3],[11,2,11,3],[12,2,12,3],[13,2,13,3],[14,2,14,3],[4,10,4,12],[4,13,4,19],[5,2,5,5],[6,2,6,3],[7,2,7,3],[8,2,8,3],[21,2,21,3],[22,2,22,3],[23,2,23,3],[24,2,24,3],[25,2,25,3],[26,2,26,3],[15,2,15,3],[16,2,16,3],[17,2,17,3],[18,2,18,3],[19,2,19,3],[20,2,20,3],[33,2,33,3],[34,2,34,3],[35,2,35,3],[36,2,36,3],[37,2,37,3],[38,2,38,3],[27,2,27,3],[28,2,28,3],[29,2,29,3],[30,2,30,3],[31,2,31,3],[32,2,32,3],[45,2,45,3],[46,2,46,3],[47,2,47,3],[48,2,48,3],[49,2,49,3],[50,2,50,3],[39,2,39,3],[40,2,40,3],[41,2,41,3],[42,2,42,3],[43,2,43,3],[44,2,44,3],[57,2,57,3],[58,2,58,3],[59,2,59,3],[60,2,60,3],[61,2,61,3],[62,2,62,3],[51,2,51,3],[52,2,52,3],[53,2,53,3],[54,2,54,3],[55,2,55,3],[56,2,56,3],[69,2,69,3],[70,2,70,3],[71,2,71,3],[72,2,72,3],[73,2,73,3],[74,2,74,3],[63,2,63,3],[64,2,64,3],[65,2,65,3],[66,2,66,3],[67,2,67,3],[68,2,68,3],[81,2,81,3],[82,2,82,3],[83,2,83,3],[84,2,84,3],[85,2,85,3],[86,2,86,3],[75,2,75,3],[76,2,76,3],[77,2,77,3],[78,2,78,3],[79,2,79,3],[80,2,80,3],[93,2,93,3],[94,2,94,3],[95,2,95,3],[96,2,96,3],[97,2,97,3],[98,2,98,3],[87,2,87,3],[88,2,88,3],[89,2,89,3],[90,2,90,3],[91,2,91,3],[92,2,92,3],[105,2,105,3],[106,2,106,3],[107,2,107,3],[108,2,108,3],[109,2,109,3],[110,2,110,3],[99,2,99,3],[100,2,100,3],[101,2,101,3],[102,2,102,3],[103,2,103,3],[104,2,104,3],[117,2,117,3],[118,2,118,3],[119,2,119,3],[120,2,120,3],[121,2,121,3],[122,2,122,3],[111,2,111,3],[112,2,112,3],[113,2,113,3],[114,2,114,3],[115,2,115,3],[116,2,116,3],[129,2,129,3],[130,2,130,3],[131,2,131,3],[132,2,132,3],[133,2,133,3],[134,2,134,3],[123,2,123,3],[124,2,124,3],[125,2,125,3],[126,2,126,3],[127,2,127,3],[128,2,128,3],[141,2,141,3],[142,2,142,3],[143,2,143,3],[144,2,144,3],[145,2,145,3],[146,2,146,3],[135,2,135,3],[136,2,136,3],[137,2,137,3],[138,2,138,3],[139,2,139,3],[140,2,140,3],[153,2,153,3],[154,2,154,3],[155,2,155,3],[156,2,156,3],[157,2,157,3],[158,2,158,3],[147,2,147,3],[148,2,148,3],[149,2,149,3],[150,2,150,3],[151,2,151,3],[152,2,152,3],[165,2,165,3],[166,2,166,3],[167,2,167,3],[168,2,168,3],[169,2,169,3],[170,2,170,3],[159,2,159,3],[160,2,160,3],[161,2,161,3],[162,2,162,3],[163,2,163,3],[164,2,164,3],[177,2,177,3],[178,2,178,3],[179,2,179,3],[180,2,180,3],[181,2,181,3],[182,2,182,3],[171,2,171,3],[172,2,172,3],[173,2,173,3],[174,2,174,3],[175,2,175,3],[176,2,176,3],[189,2,189,3],[190,2,190,3],[191,2,191,3],[192,2,192,3],[193,2,193,3],[194,2,194,3],[183,2,183,3],[184,2,184,3],[185,2,185,3],[186,2,186,3],[187,2,187,3],[188,2,188,3],[201,2,201,3],[202,2,202,3],[203,2,203,3],[204,2,204,3],[205,2,205,3],[206,2,206,3],[195,2,195,3],[196,2,196,3],[197,2,197,3],[198,2,198,3],[199,2,199,3],[200,2,200,3],[213,2,213,3],[214,2,214,3],[215,2,215,3],[216,2,216,3],[217,2,217,3],[218,2,218,3],[207,2,207,3],[208,2,208,3],[209,2,209,3],[210,2,210,3],[211,2,211,3],[212,2,212,3],[225,2,225,3],[226,2,226,3],[227,2,227,3],[228,2,228,3],[229,2,229,3],[230,2,230,3],[219,2,219,3],[220,2,220,3],[221,2,221,3],[222,2,222,3],[223,2,223,3],[224,2,224,3],[237,2,237,3],[238,2,238,3],[239,2,239,3],[240,2,240,3],[241,2,241,3],[242,2,242,3],[231,2,231,3],[232,2,232,3],[233,2,233,3],[234,2,234,3],[235,2,235,3],[236,2,236,3],[249,2,249,3],[250,2,250,3],[251,2,251,3],[252,2,252,3],[253,2,253,3],[254,2,254,3],[243,2,243,3],[244,2,244,3],[245,2,245,3],[246,2,246,3],[247,2,247,3],[248,2,248,3],[261,2,261,3],[262,2,262,3],[263,2,263,3],[264,2,264,3],[265,2,265,3],[266,2,266,3],[255,2,255,3],[256,2,256,3],[257,2,257,3],[258,2,258,3],[259,2,259,3],[260,2,260,3],[273,2,273,3],[274,2,274,3],[275,2,275,3],[276,2,276,3],[277,2,277,3],[278,2,278,3],[267,2,267,3],[268,2,268,3],[269,2,269,3],[270,2,270,3],[271,2,271,3],[272,2,272,3],[285,2,285,3],[286,2,286,3],[287,2,287,3],[288,2,288,3],[289,2,289,3],[290,2,290,3],[279,2,279,3],[280,2,280,3],[281,2,281,3],[282,2,282,3],[283,2,283,3],[284,2,284,3],[297,2,297,3],[298,2,298,3],[299,2,299,3],[300,2,300,3],[301,2,301,3],[302,2,302,3],[291,2,291,3],[292,2,292,3],[293,2,293,3],[294,2,294,3],[295,2,295,3],[296,2,296,3],[309,2,309,3],[310,2,310,3],[311,2,311,3],[312,2,312,3],[313,2,313,3],[314,2,314,3],[303,2,303,3],[304,2,304,3],[305,2,305,3],[306,2,306,3],[307,2,307,3],[308,2,308,3],[321,2,321,3],[322,2,322,3],[323,2,323,3],[324,2,324,3],[325,2,325,3],[326,2,326,3],[315,2,315,3],[316,2,316,3],[317,2,317,3],[318,2,318,3],[319,2,319,3],[320,2,320,3],[333,2,333,3],[334,2,334,3],[335,2,335,3],[336,2,336,3],[337,2,337,3],[338,2,338,3],[327,2,327,3],[328,2,328,3],[329,2,329,3],[330,2,330,3],[331,2,331,3],[332,2,332,3],[345,2,345,3],[346,2,346,3],[347,2,347,3],[349,2,349,4],[339,2,339,3],[340,2,340,3],[341,2,341,3],[342,2,342,3],[343,2,343,3],[344,2,344,3],[356,2,356,3],[357,2,357,3],[358,2,358,3],[359,2,359,3],[360,2,360,3],[361,2,361,3],[350,2,350,3],[351,2,351,3],[352,2,352,3],[353,2,353,3],[354,2,354,3],[355,2,355,3],[368,2,368,3],[369,2,369,3],[370,2,370,3],[371,2,371,3],[372,2,372,3],[373,2,373,3],[362,2,362,3],[363,2,363,3],[364,2,364,3],[365,2,365,3],[366,2,366,3],[367,2,367,3],[380,2,380,3],[381,2,381,3],[382,2,382,3],[383,2,383,3],[384,2,384,3],[385,2,385,3],[374,2,374,3],[375,2,375,3],[376,2,376,3],[377,2,377,3],[378,2,378,3],[379,2,379,3],[392,2,392,3],[393,2,393,3],[394,2,394,3],[395,2,395,3],[396,2,396,3],[397,2,397,3],[386,2,386,3],[387,2,387,3],[388,2,388,3],[389,2,389,3],[390,2,390,3],[391,2,391,3],[404,2,404,3],[405,2,405,3],[406,2,406,3],[407,2,407,3],[408,2,408,3],[409,2,409,3],[398,2,398,3],[399,2,399,3],[400,2,400,3],[401,2,401,3],[402,2,402,3],[403,2,403,3]]}
[null,null,{"$f":"'様式１－１ '!A1","v":0}]
[null,null,"【事業②】支出・収入内訳明細書",null,null,null,null,null,null,null,"支出合計\n(円)",null,null,{"$f":"SUM(T8:T347)","v":0}]
[null,null,"事業名",null,null,null,null,null,null,null,"収入合計\n(円)",null,null,{"$f":"SUM(G352:G410)","v":0},null,null,"対象外経費\n合計",null,{"$f":"SUMIFS($T8:$T347,$U8:$U347,スタート_マスター!A17)","v":0}]
[]
[null,null,null,null,null,null,null,null,null,null,"対象経費\n合計",null,null,{"$f":"N2-S3","v":0}]
[null,null,"【支出の部】",null,null,null,null,null,null,null,null,null,null,null,null,null,null,null,null,null,"（単位：円）"]
[null,null,"No.",null,"区分","費目","内　　訳",null,"（単価）","×","（数量）","（単位）","×","（数量）","（単位）","×","（数量）","（単位）","＝","(金額)","対象外経費",null,"支出合計（費目ごと統一合計用）"]
[null,null,1,null,null,null,null,null,null,null,null,null,null,null,null,null,null,null,null,{"$f":"IF(I8=\"\",0,INT(SUM(PRODUCT(I8,K8,N8,Q8))))","v":0},null,null,"人件費",{"$f":"SUMIFS($T$8:$T$347,$E$8:$E$347,W8)","v":0}]
[null,null,2,null,null,null,null,null,null,null,null,null,null,null,null,null,null,null,null,{"$f":"IF(I9=\"\",0,INT(SUM(PRODUCT(I9,K9,N9,Q9))))","v":0},null,null,"諸謝金",{"$f":"SUMIFS($T$8:$T$347,$E$8:$E$347,W9)","v":0}]
[null,null,3,null,null,null,null,null,null,null,null,null,null,null,null,null,null,null,null,0,null,null,"旅費",{"$f":"SUMIFS($T$8:$T$347,$E$8:$E$347,W10)","v":0}]
[null,null,4,null,null,null,null,null,null,null,null,null,null,null,null,null,null,null,null,0,null,null,"借損料",0]
[null,null,5,null,null,null,null,null,null,null,null,null,null,null,null,null,null,null,null,0,null,null,"消耗品費",{"$f":"SUMIFS($T$8:$T$347,$E$8:$E$347,W12)","v":0}]
[null,null,6,null,null,null,null,null,null,null,null,null,null,null,null,null,null,null,null,0,null,null,"通信運搬費",0]
[null,null,7,null,null,null,null,null,null,null,null,null,null,null,null,null,null,null,null,0,null,null,"雑役務費",0]
[null,null,8,null,null,null,null,null,null,null,null,null,null,null,null,null,null,null,null,0,null,null,"保険料",0]
[null,null,9,null,null,null,null,null,null,null,null,null,null,null,null,null,null,null,null,0,null,null,"消費税相当額",0]
[null,null,10,null,null,null,null,null,null,null,null,null,null,null,null,null,null,null,null,0,null,null,"再委託費",{"$f":"SUMIFS($T$8:$T$347,$E$8:$E$347,W17)","v":0}]
[null,null,11,null,null,null,null,null,null,null,null,null,null,null,null,null,null,null,null,0]
[null,null,12,null,null,null,null,null,null,null,null,null,null,null,null,null,null,null,null,0,null,null,"対象外合計（統一計算用）"]
[null,null,13,null,null,null,null,null,null,null,null,null,null,null,null,null,null,null,null,0,null,null,"人件費",{"$f":"SUMIFS($T$8:$T$347,$E$8:$E$347,W20,$U$8:$U$347,\"対象外\")","v":0}]
[null,null,14,null,null,null,null,null,null,null,null,null,null,null,null,null,null,null,null,0,null,null,"諸謝金",{"$f":"SUMIFS($T$8:$T$347,$E$8:$E$347,W21,$U$8:$U$347,\"対象外\")","v":0}]
[null,null,15,null,null,null,null,null,null,null,null,null,null,null,null,null,null,null,null,0,null,null,"旅費",{"$f":"SUMIFS($T$8:$T$347,$E$8:$E$347,W22,$U$8:$U$347,\"対象外\")","v":0}]
[null,null,16,null,null,null,null,null,null,null,null,null,null,null,null,null,null,null,null,0,null,null,"借損料",0]
[null,null,17,null,null,null,null,null,null,null,null,null,null,null,null,null,null,null,null,0,null,null,"消耗品費",{"$f":"SUMIFS($T$8:$T$347,$E$8:$E$347,W24,$U$8:$U$347,\"対象外\")","v":0}]
[null,null,18,null,null,null,null,null,null,null,null,null,null,null,null,null,null,null,null,0,null,null,"通信運搬費",0]
[null,null,19,null,null,null,null,null,null,null,null,null,null,null,null,null,null,null,null,0,null,null,"雑役務費",0]
[null,null,20,null,null,null,null,null,null,null,null,null,null,null,null,null,null,null,null,0,null,null,"保険料",0]
[null,null,21,null,null,null,null,null,null,null,null,null,null,null,null,null,null,null,null,0,null,null,"消費税相当額",0]
[null,null,22,null,null,null,null,null,null,null,null,null,null,null,null,null,null,null,null,0,null,null,"再委託費",{"$f":"SUMIFS($T$8:$T$347,$E$8:$E$347,W29,$U$8:$U$347,\"対象外\")","v":0}]
[null,null,23,null,null,null,null,null,null,null,null,null,null,null,null,null,null,null,null,0]
[null,null,24,null,null,null,null,null,null,null,null,null,null,null,null,null,null,null,null,0]
[null,null,25,null,null,null,null,null,null,null,null,null,null,null,null,null,null,null,null,0]
[null,null,26,null,null,null,null,null,null,null,null,null,null,null,null,null,null,null,null,0]
[null,null,27,null,null,null,null,null,null,null,null,null,null,null,null,null,null,null,null,0,null,null,"再委託費"]
[null,null,28,null,null,null,null,null,null,null,null,null,null,null,null,null,null,null,null,0,null,null,"人件費",{"$f":"SUMIFS($T$8:$T$347,$E$8:$E$347,$W$34,$F$8:$F$347,W35)","v":0}]
[null,null,29,null,null,null,null,null,null,null,null,null,null,null,null,null,null,null,null,0,null,null,"諸謝金",{"$f":"SUMIFS($T$8:$T$347,$E$8:$E$347,$W$34,$F$8:$F$347,W36)","v":0}]
[null,null,30,null,null,null,null,null,null,null,null,null,null,null,null,null,null,null,null,0,null,null,"旅費",0]
[null,null,31,null,null,null,null,null,null,null,null,null,null,null,null,null,null,null,null,0,null,null,"借損料",0]
[null,null,32,null,null,null,null,null,null,null,null,null,null,null,null,null,null,null,null,0,null,null,"消耗品費",0]
[null,null,33,null,null,null,null,null,null,null,null,null,null,null,null,null,null,null,null,0,null,null,"通信運搬費",0]
[null,null,34,null,null,null,null,null,null,null,null,null,null,null,null,null,null,null,null,0,null,null,"雑役務費",0]
[null,null,35,null,null,null,null,null,null,null,null,null,null,null,null,null,null,null,null,0,null,null,"保険料",0]
[null,null,36,null,null,null,null,null,null,null,null,null,null,null,null,null,null,null,null,0,null,null,"消費税相当額",0]
[null,null,37,null,null,null,null,null,null,null,null,null,null,null,null,null,null,null,null,0,null,null,"一般管理費",0]
[null,null,38,null,null,null,null,null,null,null,null,null,null,null,null,null,null,null,null,0]
[null,null,39,null,null,null,null,null,null,null,null,null,null,null,null,null,null,null,null,0,null,null,"再委託費対象外"]
[null,null,40,null,null,null,null,null,null,null,null,null,null,null,null,null,null,null,null,0,null,null,"人件費",{"$f":"SUMIFS($T$8:$T$347,$E$8:$E$347,$W$34,$F$8:$F$347,W47,$U$8:$U$347,\"対象外\")","v":0}]
[null,null,41,null,null,null,null,null,null,null,null,null,null,null,null,null,null,null,null,0,null,null,"諸謝金",{"$f":"SUMIFS($T$8:$T$347,$E$8:$E$347,$W$34,$F$8:$F$347,W48,$U$8:$U$347,\"対象外\")","v":0}]
[null,null,42,null,null,null,null,null,null,null,null,null,null,null,null,null,null,null,null,0,null,null,"旅費",0]
[null,null,43,null,null,null,null,null,null,null,null,null,null,null,null,null,null,null,null,0,null,null,"借損料",0]
[null,null,44,null,null,null,null,null,null,null,null,null,null,null,null,null,null,null,null,0,null,null,"消耗品費",0]
[null,null,45,null,null,null,null,null,null,null,null,null,null,null,null,null,null,null,null,0,null,null,"通信運搬費",0]
[null,null,46,null,null,null,null,null,null,null,null,null,null,null,null,null,null,null,null,0,null,null,"雑役務費",0]
[null,null,47,null,null,null,null,null,null,null,null,null,null,null,null,null,null,null,null,0,null,null,"保険料",0]
[null,null,48,null,null,null,null,null,null,null,null,null,null,null,null,null,null,null,null,0,null,null,"消費税相当額",0]
[null,null,49,null,null,null,null,null,null,null,null,null,null,null,null,null,null,null,null,0,null,null,"一般管理費",0]
[null,null,50,null,null,null,null,null,null,null,null,null,null,null,null,null,null,null,null,0]
[null,null,51,null,null,null,null,null,null,null,null,null,null,null,null,null,null,null,null,0]
[null,null,52,null,null,null,null,null,null,null,null,null,null,null,null,null,null,null,null,0]
[null,null,53,null,null,null,null,null,null,null,null,null,null,null,null,null,null,null,null,0]
[null,null,54,null,null,null,null,null,null,null,null,null,null,null,null,null,null,null,null,0]
[null,null,55,null,null,null,null,null,null,null,null,null,null,null,null,null,null,null,null,0]
[null,null,56,null,null,null,null,null,null,null,null,null,null,null,null,null,null,null,null,0]
[null,null,57,null,null,null,null,null,null,null,null,null,null,null,null,null,null,null,null,0]
[null,null,58,null,null,null,null,null,null,null,null,null,null,null,null,null,null,null,null,0]
[null,null,59,null,null,null,null,null,null,null,null,null,null,null,null,null,null,null,null,0]
[null,null,60,null,null,null,null,null,null,null,null,null,null,null,null,null,null,null,null,0]
[null,null,61,null,null,null,null,null,null,null,null,null,null,null,null,null,null,null,null,0]
[null,null,62,null,null,null,null,null,null,null,null,null,null,null,null,null,null,null,null,0]
[null,null,63,null,null,null,null,null,null,null,null,null,null,null,null,null,null,null,null,0]
[null,null,64,null,null,null,null,null,null,null,null,null,null,null,null,null,null,null,null,0]
[null,null,65,null,null,null,null,null,null,null,null,null,null,null,null,null,null,null,null,0]
[null,null,66,null,null,null,null,null,null,null,null,null,null,null,null,null,null,null,null,{"$f":"IF(I73=\"\",0,INT(SUM(PRODUCT(I73,K73,N73,Q73))))","v":0}]
[null,null,67,null,null,null,null,null,null,null,null,null,null,null,null,null,null,null,null,0]
[null,null,68,null,null,null,null,null,null,null,null,null,null,null,null,null,null,null,null,0]
[null,null,69,null,null,null,null,null,null,null,null,null,null,null,null,null,null,null,null,0]
[null,null,70,null,null,null,null,null,null,null,null,null,null,null,null,null,null,null,null,0]
[null,null,71,null,null,null,null,null,null,null,null,null,null,null,null,null,null,null,null,0]
[null,null,72,null,null,null,null,null,null,null,null,null,null,null,null,null,null,null,null,0]
[null,null,73,null,null,null,null,null,null,null,null,null,null,null,null,null,null,null,null,0]
[null,null,74,null,null,null,null,null,null,null,null,null,null,null,null,null,null,null,null,0]
[null,null,75,null,null,null,null,null,null,null,null,null,null,null,null,null,null,null,null,0]
[null,null,76,null,null,null,null,null,null,null,null,null,null,null,null,null,null,null,null,0]
[null,null,77,null,null,null,null,null,null,null,null,null,null,null,null,null,null,null,null,0]
[null,null,78,null,null,null,null,null,null,null,null,null,null,null,null,null,null,null,null,0]
[null,null,79,null,null,null,null,null,null,null,null,null,null,null,null,null,null,null,null,0]
[null,null,80,null,null,null,null,null,null,null,null,null,null,null,null,null,null,null,null,0]
[null,null,81,null,null,null,null,null,null,null,null,null,null,null,null,null,null,null,null,0]
[null,null,82,null,null,null,null,null,null,null,null,null,null,null,null,null,null,null,null,0]
[null,null,83,null,null,null,null,null,null,null,null,null,null,null,null,null,null,null,null,0]
[null,null,84,null,null,null,null,null,null,null,null,null,null,null,null,null,null,null,null,0]
[null,null,85,null,null,null,null,null,null,null,null,null,null,null,null,null,null,null,null,0]
[null,null,86,null,null,null,null,null,null,null,null,null,null,null,null,null,null,null,null,0]
[null,null,87,null,null,null,null,null,null,null,null,null,null,null,null,null,null,null,null,0]
[null,null,88,null,null,null,null,null,null,null,null,null,null,null,null,null,null,null,null,0]
[null,null,89,null,null,null,null,null,null,null,null,null,null,null,null,null,null,null,null,0]
[null,null,90,null,null,null,null,null,null,null,null,null,null,null,null,null,null,null,null,0]
[null,null,91,null,null,null,null,null,null,null,null,null,null,null,null,null,null,null,null,0]
[null,null,92,null,null,null,null,null,null,null,null,null,null,null,null,null,null,null,null,0]
[null,null,93,null,null,null,null,null,null,null,null,null,null,null,null,null,null,null,null,0]
[null,null,94,null,null,null,null,null,null,null,null,null,null,null,null,null,null,null,null,0]
[null,null,95,null,null,null,null,null,null,null,null,null,null,null,null,null,null,null,null,0]
[null,null,96,null,null,null,null,null,null,null,null,null,null,null,null,null,null,null,null,0]
[null,null,97,null,null,null,null,null,null,null,null,null,null,null,null,null,null,null,null,0]
[null,null,98,null,null,null,null,null,null,null,null,null,null,null,null,null,null,null,null,0]
[null,null,99,null,null,null,null,null,null,null,null,null,null,null,null,null,null,null,null,0]
[null,null,100,null,null,null,null,null,null,null,null,null,null,null,null,null,null,null,null,0]
[null,null,101,null,null,null,null,null,null,null,null,null,null,null,null,null,null,null,null,0]
[null,null,102,null,null,null,null,null,null,null,null,null,null,null,null,null,null,null,null,0]
[null,null,103,null,null,null,null,null,null,null,null,null,null,null,null,null,null,null,null,0]
[null,null,104,null,null,null,null,null,null,null,null,null,null,null,null,null,null,null,null,0]
[null,null,105,null,null,null,null,null,null,null,null,null,null,null,null,null,null,null,null,0]
[null,null,106,null,null,null,null,null,null,null,null,null,null,null,null,null,null,null,null,0]
[null,null,107,null,null,null,null,null,null,null,null,null,null,null,null,null,null,null,null,0]
[null,null,108,null,null,null,null,null,null,null,null,null,null,null,null,null,null,null,null,0]
[null,null,109,null,null,null,null,null,null,null,null,null,null,null,null,null,null,null,null,0]
[null,null,110,null,null,null,null,null,null,null,null,null,null,null,null,null,null,null,null,0]
[null,null,111,null,null,null,null,null,null,null,null,null,null,null,null,null,null,null,null,0]
[null,null,112,null,null,null,null,null,null,null,null,null,null,null,null,null,null,null,null,0]
[null,null,113,null,null,null,null,null,null,null,null,null,null,null,null,null,null,null,null,0]
[null,null,114,null,null,null,null,null,null,null,null,null,null,null,null,null,null,null,null,0]
[null,null,115,null,null,null,null,null,null,null,null,null,null,null,null,null,null,null,null,0]
[null,null,116,null,null,null,null,null,null,null,null,null,null,null,null,null,null,null,null,0]
[null,null,117,null,null,null,null,null,null,null,null,null,null,null,null,null,null,null,null,0]
[null,null,118,null,null,null,null,null,null,null,null,null,null,null,null,null,null,null,null,0]
[null,null,119,null,null,null,null,null,null,null,null,null,null,null,null,null,null,null,null,0]
[null,null,120,null,null,null,null,null,null,null,null,null,null,null,null,null,null,null,null,0]
[null,null,121,null,null,null,null,null,null,null,null,null,null,null,null,null,null,null,null,0]
[null,null,122,null,null,null,null,null,null,null,null,null,null,null,null,null,null,null,null,0]
[null,null,123,null,null,null,null,null,null,null,null,null,null,null,null,null,null,null,null,0]
[null,null,124,null,null,null,null,null,null,null,null,null,null,null,null,null,null,null,null,0]
[null,null,125,null,null,null,null,null,null,null,null,null,null,null,null,null,null,null,null,0]
[null,null,126,null,null,null,null,null,null,null,null,null,null,null,null,null,null,null,null,0]
[null,null,127,null,null,null,null,null,null,null,null,null,null,null,null,null,null,null,null,0]
[null,null,128,null,null,null,null,null,null,null,null,null,null,null,null,null,null,null,null,0]
[null,null,129,null,null,null,null,null,null,null,null,null,null,null,null,null,null,null,null,0]
[null,null,130,null,null,null,null,null,null,null,null,null,null,null,null,null,null,null,null,{"$f":"IF(I137=\"\",0,INT(SUM(PRODUCT(I137,K137,N137,Q137))))","v":0}]
[null,null,131,null,null,null,null,null,null,null,null,null,null,null,null,null,null,null,null,0]
[null,null,132,null,null,null,null,null,null,null,null,null,null,null,null,null,null,null,null,0]
[null,null,133,null,null,null,null,null,null,null,null,null,null,null,null,null,null,null,null,0]
[null,null,134,null,null,null,null,null,null,null,null,null,null,null,null,null,null,null,null,0]
[null,null,135,null,null,null,null,null,null,null,null,null,null,null,null,null,null,null,null,0]
[null,null,136,null,null,null,null,null,null,null,null,null,null,null,null,null,null,null,null,0]
[null,null,137,null,null,null,null,null,null,null,null,null,null,null,null,null,null,null,null,0]
[null,null,138,null,null,null,null,null,null,null,null,null,null,null,null,null,null,null,null,0]
[null,null,139,null,null,null,null,null,null,null,null,null,null,null,null,null,null,null,null,0]
[null,null,140,null,null,null,null,null,null,null,null,null,null,null,null,null,null,null,null,0]
[null,null,141,null,null,null,null,null,null,null,null,null,null,null,null,null,null,null,null,0]
[null,null,142,null,null,null,null,null,null,null,null,null,null,null,null,null,null,null,null,0]
[null,null,143,null,null,null,null,null,null,null,null,null,null,null,null,null,null,null,null,0]
[null,null,144,null,null,null,null,null,null,null,null,null,null,null,null,null,null,null,null,0]
[null,null,145,null,null,null,null,null,null,null,null,null,null,null,null,null,null,null,null,0]
[null,null,146,null,null,null,null,null,null,null,null,null,null,null,null,null,null,null,null,0]
[null,null,147,null,null,null,null,null,null,null,null,null,null,null,null,null,null,null,null,0]
[null,null,148,null,null,null,null,null,null,null,null,null,null,null,null,null,null,null,null,0]
[null,null,149,null,null,null,null,null,null,null,null,null,null,null,null,null,null,null,null,0]
[null,null,150,null,null,null,null,null,null,null,null,null,null,null,null,null,null,null,null,0]
[null,null,151,null,null,null,null,null,null,null,null,null,null,null,null,null,null,null,null,0]
[null,null,152,null,null,null,null,null,null,null,null,null,null,null,null,null,null,null,null,0]
[null,null,153,null,null,null,null,null,null,null,null,null,null,null,null,null,null,null,null,0]
[null,null,154,null,null,null,null,null,null,null,null,null,null,null,null,null,null,null,null,0]
[null,null,155,null,null,null,null,null,null,null,null,null,null,null,null,null,null,null,null,0]
[null,null,156,null,null,null,null,null,null,null,null,null,null,null,null,null,null,null,null,0]
[null,null,157,null,null,null,null,null,null,null,null,null,null,null,null,null,null,null,null,0]
[null,null,158,null,null,null,null,null,null,null,null,null,null,null,null,null,null,null,null,0]
[null,null,159,null,null,null,null,null,null,null,null,null,null,null,null,null,null,null,null,0]
[null,null,160,null,null,null,null,null,null,null,null,null,null,null,null,null,null,null,null,0]
[null,null,161,null,null,null,null,null,null,null,null,null,null,null,null,null,null,null,null,0]
[null,null,162,null,null,null,null,null,null,null,null,null,null,null,null,null,null,null,null,0]
[null,null,163,null,null,null,null,null,null,null,null,null,null,null,null,null,null,null,null,0]
[null,null,164,null,null,null,null,null,null,null,null,null,null,null,null,null,null,null,null,0]
[null,null,165,null,null,null,null,null,null,null,null,null,null,null,null,null,null,null,null,0]
[null,null,166,null,null,null,null,null,null,null,null,null,null,null,null,null,null,null,null,0]
[null,null,167,null,null,null,null,null,null,null,null,null,null,null,null,null,null,null,null,0]
[null,null,168,null,null,null,null,null,null,null,null,null,null,null,null,null,null,null,null,0]
[null,null,169,null,null,null,null,null,null,null,null,null,null,null,null,null,null,null,null,0]
[null,null,170,null,null,null,null,null,null,null,null,null,null,null,null,null,null,null,null,0]
[null,null,171,null,null,null,null,null,null,null,null,null,null,null,null,null,null,null,null,0]
[null,null,172,null,null,null,null,null,null,null,null,null,null,null,null,null,null,null,null,0]
[null,null,173,null,null,null,null,null,null,null,null,null,null,null,null,null,null,null,null,0]
[null,null,174,null,null,null,null,null,null,null,null,null,null,null,null,null,null,null,null,0]
[null,null,175,null,null,null,null,null,null,null,null,null,null,null,null,null,null,null,null,0]
[null,null,176,null,null,null,null,null,null,null,null,null,null,null,null,null,null,null,null,0]
[null,null,177,null,null,null,null,null,null,null,null,null,null,null,null,null,null,null,null,0]
[null,null,178,null,null,null,null,null,null,null,null,null,null,null,null,null,null,null,null,0]
[null,null,179,null,null,null,null,null,null,null,null,null,null,null,null,null,null,null,null,0]
[null,null,180,null,null,null,null,null,null,null,null,null,null,null,null,null,null,null,null,0]
[null,null,181,null,null,null,null,null,null,null,null,null,null,null,null,null,null,null,null,0]
[null,null,182,null,null,null,null,null,null,null,null,null,null,null,null,null,null,null,null,0]
[null,null,183,null,null,null,null,null,null,null,null,null,null,null,null,null,null,null,null,0]
[null,null,184,null,null,null,null,null,null,null,null,null,null,null,null,null,null,null,null,0]
[null,null,185,null,null,null,null,null,null,null,null,null,null,null,null,null,null,null,null,0]
[null,null,186,null,null,null,null,null,null,null,null,null,null,null,null,null,null,null,null,0]
[null,null,187,null,null,null,null,null,null,null,null,null,null,null,null,null,null,null,null,0]
[null,null,188,null,null,null,null,null,null,null,null,null,null,null,null,null,null,null,null,0]
[null,null,189,null,null,null,null,null,null,null,null,null,null,null,null,null,null,null,null,0]
[null,null,190,null,null,null,null,null,null,null,null,null,null,null,null,null,null,null,null,0]
[null,null,191,null,null,null,null,null,null,null,null,null,null,null,null,null,null,null,null,0]
[null,null,192,null,null,null,null,null,null,null,null,null,null,null,null,null,null,null,null,0]
[null,null,193,null,null,null,null,null,null,null,null,null,null,null,null,null,null,null,null,0]
[null,null,194,null,null,null,null,null,null,null,null,null,null,null,null,null,null,null,null,{"$f":"IF(I201=\"\",0,INT(SUM(PRODUCT(I201,K201,N201,Q201))))","v":0}]
[null,null,195,null,null,null,null,null,null,null,null,null,null,null,null,null,null,null,null,0]
[null,null,196,null,null,null,null,null,null,null,null,null,null,null,null,null,null,null,null,0]
[null,null,197,null,null,null,null,null,null,null,null,null,null,null,null,null,null,null,null,0]
[null,null,198,null,null,null,null,null,null,null,null,null,null,null,null,null,null,null,null,0]
[null,null,199,null,null,null,null,null,null,null,null,null,null,null,null,null,null,null,null,0]
[null,null,200,null,null,null,null,null,null,null,null,null,null,null,null,null,null,null,null,0]
[null,null,201,null,null,null,null,null,null,null,null,null,null,null,null,null,null,null,null,0]
[null,null,202,null,null,null,null,null,null,null,null,null,null,null,null,null,null,null,null,0]
[null,null,203,null,null,null,null,null,null,null,null,null,null,null,null,null,null,null,null,0]
[null,null,204,null,null,null,null,null,null,null,null,null,null,null,null,null,null,null,null,0]
[null,null,205,null,null,null,null,null,null,null,null,null,null,null,null,null,null,null,null,0]
[null,null,206,null,null,null,null,null,null,null,null,null,null,null,null,null,null,null,null,0]
[null,null,207,null,null,null,null,null,null,null,null,null,null,null,null,null,null,null,null,0]
[null,null,208,null,null,null,null,null,null,null,null,null,null,null,null,null,null,null,null,0]
[null,null,209,null,null,null,null,null,null,null,null,null,null,null,null,null,null,null,null,0]
[null,null,210,null,null,null,null,null,null,null,null,null,null,null,null,null,null,null,null,0]
[null,null,211,null,null,null,null,null,null,null,null,null,null,null,null,null,null,null,null,0]
[null,null,212,null,null,null,null,null,null,null,null,null,null,null,null,null,null,null,null,0]
[null,null,213,null,null,null,null,null,null,null,null,null,null,null,null,null,null,null,null,0]
[null,null,214,null,null,null,null,null,null,null,null,null,null,null,null,null,null,null,null,0]
[null,null,215,null,null,null,null,null,null,null,null,null,null,null,null,null,null,null,null,0]
[null,null,216,null,null,null,null,null,null,null,null,null,null,null,null,null,null,null,null,0]
[null,null,217,null,null,null,null,null,null,null,null,null,null,null,null,null,null,null,null,0]
[null,null,218,null,null,null,null,null,null,null,null,null,null,null,null,null,null,null,null,0]
[null,null,219,null,null,null,null,null,null,null,null,null,null,null,null,null,null,null,null,0]
[null,null,220,null,null,null,null,null,null,null,null,null,null,null,null,null,null,null,null,0]
[null,null,221,null,null,null,null,null,null,null,null,null,null,null,null,null,null,null,null,0]
[null,null,222,null,null,null,null,null,null,null,null,null,null,null,null,null,null,null,null,0]
[null,null,223,null,null,null,null,null,null,null,null,null,null,null,null,null,null,null,null,0]
[null,null,224,null,null,null,null,null,null,null,null,null,null,null,null,null,null,null,null,0]
[null,null,225,null,null,null,null,null,null,null,null,null,null,null,null,null,null,null,null,0]
[null,null,226,null,null,null,null,null,null,null,null,null,null,null,null,null,null,null,null,0]
[null,null,227,null,null,null,null,null,null,null,null,null,null,null,null,null,null,null,null,0]
[null,null,228,null,null,null,null,null,null,null,null,null,null,null,null,null,null,null,null,0]
[null,null,229,null,null,null,null,null,null,null,null,null,null,null,null,null,null,null,null,0]
[null,null,230,null,null,null,null,null,null,null,null,null,null,null,null,null,null,null,null,0]
[null,null,231,null,null,null,null,null,null,null,null,null,null,null,null,null,null,null,null,0]
[null,null,232,null,null,null,null,null,null,null,null,null,null,null,null,null,null,null,null,0]
[null,null,233,null,null,null,null,null,null,null,null,null,null,null,null,null,null,null,null,0]
[null,null,234,null,null,null,null,null,null,null,null,null,null,null,null,null,null,null,null,0]
[null,null,235,null,null,null,null,null,null,null,null,null,null,null,null,null,null,null,null,0]
[null,null,236,null,null,null,null,null,null,null,null,null,null,null,null,null,null,null,null,0]
[null,null,237,null,null,null,null,null,null,null,null,null,null,null,null,null,null,null,null,0]
[null,null,238,null,null,null,null,null,null,null,null,null,null,null,null,null,null,null,null,0]
[null,null,239,null,null,null,null,null,null,null,null,null,null,null,null,null,null,null,null,0]
[null,null,240,null,null,null,null,null,null,null,null,null,null,null,null,null,null,null,null,0]
[null,null,241,null,null,null,null,null,null,null,null,null,null,null,null,null,null,null,null,0]
[null,null,242,null,null,null,null,null,null,null,null,null,null,null,null,null,null,null,null,0]
[null,null,243,null,null,null,null,null,null,null,null,null,null,null,null,null,null,null,null,0]
[null,null,244,null,null,null,null,null,null,null,null,null,null,null,null,null,null,null,null,0]
[null,null,245,null,null,null,null,null,null,null,null,null,null,null,null,null,null,null,null,0]
[null,null,246,null,null,null,null,null,null,null,null,null,null,null,null,null,null,null,null,0]
[null,null,247,null,null,null,null,null,null,null,null,null,null,null,null,null,null,null,null,0]
[null,null,248,null,null,null,null,null,null,null,null,null,null,null,null,null,null,null,null,0]
[null,null,249,null,null,null,null,null,null,null,null,null,null,null,null,null,null,null,null,0]
[null,null,250,null,null,null,null,null,null,null,null,null,null,null,null,null,null,null,null,0]
[null,null,251,null,null,null,null,null,null,null,null,null,null,null,null,null,null,null,null,0]
[null,null,252,null,null,null,null,null,null,null,null,null,null,null,null,null,null,null,null,0]
[null,null,253,null,null,null,null,null,null,null,null,null,null,null,null,null,null,null,null,0]
[null,null,254,null,null,null,null,null,null,null,null,null,null,null,null,null,null,null,null,0]
[null,null,255,null,null,null,null,null,null,null,null,null,null,null,null,null,null,null,null,0]
[null,null,256,null,null,null,null,null,null,null,null,null,null,null,null,null,null,null,null,0]
[null,null,257,null,null,null,null,null,null,null,null,null,null,null,null,null,null,null,null,0]
[null,null,258,null,null,null,null,null,null,null,null,null,null,null,null,null,null,null,null,{"$f":"IF(I265=\"\",0,INT(SUM(PRODUCT(I265,K265,N265,Q265))))","v":0}]
[null,null,259,null,null,null,null,null,null,null,null,null,null,null,null,null,null,null,null,0]
[null,null,260,null,null,null,null,null,null,null,null,null,null,null,null,null,null,null,null,0]
[null,null,261,null,null,null,null,null,null,null,null,null,null,null,null,null,null,null,null,0]
[null,null,262,null,null,null,null,null,null,null,null,null,null,null,null,null,null,null,null,0]
[null,null,263,null,null,null,null,null,null,null,null,null,null,null,null,null,null,null,null,0]
[null,null,264,null,null,null,null,null,null,null,null,null,null,null,null,null,null,null,null,0]
[null,null,265,null,null,null,null,null,null,null,null,null,null,null,null,null,null,null,null,0]
[null,null,266,null,null,null,null,null,null,null,null,null,null,null,null,null,null,null,null,0]
[null,null,267,null,null,null,null,null,null,null,null,null,null,null,null,null,null,null,null,0]
[null,null,268,null,null,null,null,null,null,null,null,null,null,null,null,null,null,null,null,0]
[null,null,269,null,null,null,null,null,null,null,null,null,null,null,null,null,null,null,null,0]
[null,null,270,null,null,null,null,null,null,null,null,null,null,null,null,null,null,null,null,0]
[null,null,271,null,null,null,null,null,null,null,null,null,null,null,null,null,null,null,null,0]
[null,null,272,null,null,null,null,null,null,null,null,null,null,null,null,null,null,null,null,0]
[null,null,273,null,null,null,null,null,null,null,null,null,null,null,null,null,null,null,null,0]
[null,null,274,null,null,null,null,null,null,null,null,null,null,null,null,null,null,null,null,0]
[null,null,275,null,null,null,null,null,null,null,null,null,null,null,null,null,null,null,null,0]
[null,null,276,null,null,null,null,null,null,null,null,null,null,null,null,null,null,null,null,0]
[null,null,277,null,null,null,null,null,null,null,null,null,null,null,null,null,null,null,null,0]
[null,null,278,null,null,null,null,null,null,null,null,null,null,null,null,null,null,null,null,0]
[null,null,279,null,null,null,null,null,null,null,null,null,null,null,null,null,null,null,null,0]
[null,null,280,null,null,null,null,null,null,null,null,null,null,null,null,null,null,null,null,0]
[null,null,281,null,null,null,null,null,null,null,null,null,null,null,null,null,null,null,null,0]
[null,null,282,null,null,null,null,null,null,null,null,null,null,null,null,null,null,null,null,0]
[null,null,283,null,null,null,null,null,null,null,null,null,null,null,null,null,null,null,null,0]
[null,null,284,null,null,null,null,null,null,null,null,null,null,null,null,null,null,null,null,0]
[null,null,285,null,null,null,null,null,null,null,null,null,null,null,null,null,null,null,null,0]
[null,null,286,null,null,null,null,null,null,null,null,null,null,null,null,null,null,null,null,0]
[null,null,287,null,null,null,null,null,null,null,null,null,null,null,null,null,null,null,null,0]
[null,null,288,null,null,null,null,null,null,null,null,null,null,null,null,null,null,null,null,0]
[null,null,289,null,null,null,null,null,null,null,null,null,null,null,null,null,null,null,null,0]
[null,null,290,null,null,null,null,null,null,null,null,null,null,null,null,null,null,null,null,0]
[null,null,291,null,null,null,null,null,null,null,null,null,null,null,null,null,null,null,null,0]
[null,null,292,null,null,null,null,null,null,null,null,null,null,null,null,null,null,null,null,0]
[null,null,293,null,null,null,null,null,null,null,null,null,null,null,null,null,null,null,null,0]
[null,null,294,null,null,null,null,null,null,null,null,null,null,null,null,null,null,null,null,0]
[null,null,295,null,null,null,null,null,null,null,null,null,null,null,null,null,null,null,null,0]
[null,null,296,null,null,null,null,null,null,null,null,null,null,null,null,null,null,null,null,0]
[null,null,297,null,null,null,null,null,null,null,null,null,null,null,null,null,null,null,null,0]
[null,null,298,null,null,null,null,null,null,null,null,null,null,null,null,null,null,null,null,0]
[null,null,299,null,null,null,null,null,null,null,null,null,null,null,null,null,null,null,null,0]
[null,null,300,null,null,null,null,null,null,null,null,null,null,null,null,null,null,null,null,0]
[null,null,301,null,null,null,null,null,null,null,null,null,null,null,null,null,null,null,null,0]
[null,null,302,null,null,null,null,null,null,null,null,null,null,null,null,null,null,null,null,0]
[null,null,303,null,null,null,null,null,null,null,null,null,null,null,null,null,null,null,null,0]
[null,null,304,null,null,null,null,null,null,null,null,null,null,null,null,null,null,null,null,0]
[null,null,305,null,null,null,null,null,null,null,null,null,null,null,null,null,null,null,null,0]
[null,null,306,null,null,null,null,null,null,null,null,null,null,null,null,null,null,null,null,0]
[null,null,307,null,null,null,null,null,null,null,null,null,null,null,null,null,null,null,null,0]
[null,null,308,null,null,null,null,null,null,null,null,null,null,null,null,null,null,null,null,0]
[null,null,309,null,null,null,null,null,null,null,null,null,null,null,null,null,null,null,null,0]
[null,null,310,null,null,null,null,null,null,null,null,null,null,null,null,null,null,null,null,0]
[null,null,311,null,null,null,null,null,null,null,null,null,null,null,null,null,null,null,null,0]
[null,null,312,null,null,null,null,null,null,null,null,null,null,null,null,null,null,null,null,0]
[null,null,313,null,null,null,null,null,null,null,null,null,null,null,null,null,null,null,null,0]
[null,null,314,null,null,null,null,null,null,null,null,null,null,null,null,null,null,null,null,0]
[null,null,315,null,null,null,null,null,null,null,null,null,null,null,null,null,null,null,null,0]
[null,null,316,null,null,null,null,null,null,null,null,null,null,null,null,null,null,null,null,0]
[null,null,317,null,null,null,null,null,null,null,null,null,null,null,null,null,null,null,null,0]
[null,null,318,null,null,null,null,null,null,null,null,null,null,null,null,null,null,null,null,0]
[null,null,319,null,null,null,null,null,null,null,null,null,null,null,null,null,null,null,null,0]
[null,null,320,null,null,null,null,null,null,null,null,null,null,null,null,null,null,null,null,0]
[null,null,321,null,null,null,null,null,null,null,null,null,null,null,null,null,null,null,null,0]
[null,null,322,null,null,null,null,null,null,null,null,null,null,null,null,null,null,null,null,{"$f":"IF(I329=\"\",0,INT(SUM(PRODUCT(I329,K329,N329,Q329))))","v":0}]
[null,null,323,null,null,null,null,null,null,null,null,null,null,null,null,null,null,null,null,0]
[null,null,324,null,null,null,null,null,null,null,null,null,null,null,null,null,null,null,null,0]
[null,null,325,null,null,null,null,null,null,null,null,null,null,null,null,null,null,null,null,0]
[null,null,326,null,null,null,null,null,null,null,null,null,null,null,null,null,null,null,null,0]
[null,null,327,null,null,null,null,null,null,null,null,null,null,null,null,null,null,null,null,0]
[null,null,328,null,null,null,null,null,null,null,null,null,null,null,null,null,null,null,null,0]
[null,null,329,null,null,null,null,null,null,null,null,null,null,null,null,null,null,null,null,0]
[null,null,330,null,null,null,null,null,null,null,null,null,null,null,null,null,null,null,null,0]
[null,null,331,null,null,null,null,null,null,null,null,null,null,null,null,null,null,null,null,0]
[null,null,332,null,null,null,null,null,null,null,null,null,null,null,null,null,null,null,null,0]
[null,null,333,null,null,null,null,null,null,null,null,null,null,null,null,null,null,null,null,0]
[null,null,334,null,null,null,null,null,null,null,null,null,null,null,null,null,null,null,null,0]
[null,null,335,null,null,null,null,null,null,null,null,null,null,null,null,null,null,null,null,0]
[null,null,336,null,null,null,null,null,null,null,null,null,null,null,null,null,null,null,null,0]
[null,null,337,null,null,null,null,null,null,null,null,null,null,null,null,null,null,null,null,0]
[null,null,338,null,null,null,null,null,null,null,null,null,null,null,null,null,null,null,null,0]
[null,null,339,null,null,null,null,null,null,null,null,null,null,null,null,null,null,null,null,0]
[null,null,340,null,null,null,null,null,null,null,null,null,null,null,null,null,null,null,null,0]
[]
[]
[null,null,"【収入の部】",null,null,null,"（単位：円）"]
[null,null,"No.",null,"費目","内　　訳","金  額",null,null,null,null,null,null,null,null,null,null,null,null,null,null,null,"収入合計（統一用）"]
[null,null,1,null,null,null,null,null,null,null,null,null,null,null,null,null,null,null,null,null,null,null,"自己負担金",{"$f":"SUMIFS($G$352:$G$410,$E$352:$E$410,W352)","v":0}]
[null,null,2,null,null,null,null,null,null,null,null,null,null,null,null,null,null,null,null,null,null,null,"助成金等",{"$f":"SUMIFS($G$352:$G$410,$E$352:$E$410,W353)","v":0}]
[null,null,3,null,null,null,null,null,null,null,null,null,null,null,null,null,null,null,null,null,null,null,"その他収入",0]
[null,null,4]
[null,null,5]
[null,null,6]
[null,null,7]
[null,null,8]
[null,null,9]
[null,null,10]
[null,null,11]
[null,null,12]
[null,null,13]
[null,null,14]
[null,null,15]
[null,null,16]
[null,null,17]
[null,null,18]
[null,null,19]
[null,null,20]
[null,null,21]
[null,null,22]
[null,null,23]
[null,null,24]
[null,null,25]
[null,null,26]
[null,null,27]
[null,null,28]
[null,null,29]
[null,null,30]
[null,null,31]
[null,null,32]
[null,null,33]
[null,null,34]
[null,null,35]
[null,null,36]
[null,null,37]
[null,null,38]
[null,null,39]
[null,null,40]
[null,null,41]
[null,null,42]
[null,null,43]
[null,null,44]
[null,null,45]
[null,null,46]
[null,null,47]
[null,null,48]
[null,null,49]
[null,null,50]
[null,null,51]
[null,null,52]
[null,null,53]
[null,null,54,null,null,null,null,null,null,null,null,null,null,null,null,null,null,null,null,null,null,null,"（統合計算用）"]
[null,null,55,null,null,null,null,null,null,null,null,null,null,null,null,null,null,null,null,null,null,null,"自己負担金",{"$f":"SUMIFS(G352:G410,E352:E410,W406)","v":0}]
[null,null,56,null,null,null,null,null,null,null,null,null,null,null,null,null,null,null,null,null,null,null,"助成金等",{"$f":"SUMIFS(G352:G410,E352:E410,W407)","v":0}]
[null,null,57,null,null,null,null,null,null,null,null,null,null,null,null,null,null,null,null,null,null,null,"その他収入",{"$f":"SUMIFS(G352:G410,E352:E410,W408)","v":0}]
[null,null,58]
[null,null,59]

{"sheet":"【事業③】支出・収入内訳明細書","index":10,"n_rows":410,"n_cols":24,"rows_kept":410,"cut":false,"hidden":false,"merged":[[0,2,0,6],[1,2,1,6],[1,10,1,12],[1,13,1,19],[2,2,2,3],[2,4,2,6],[2,10,2,12],[2,13,2,15],[2,16,2,17],[2,18,2,19],[9,2,9,3],[10,2,10,3],[11,2,11,3],[12,2,12,3],[13,2,13,3],[14,2,14,3],[4,10,4,12],[4,13,4,19],[5,2,5,5],[6,2,6,3],[7,2,7,3],[8,2,8,3],[21,2,21,3],[22,2,22,3],[23,2,23,3],[24,2,24,3],[25,2,25,3],[26,2,26,3],[15,2,15,3],[16,2,16,3],[17,2,17,3],[18,2,18,3],[19,2,19,3],[20,2,20,3],[33,2,33,3],[34,2,34,3],[35,2,35,3],[36,2,36,3],[37,2,37,3],[38,2,38,3],[27,2,27,3],[28,2,28,3],[29,2,29,3],[30,2,30,3],[31,2,31,3],[32,2,32,3],[45,2,45,3],[46,2,46,3],[47,2,47,3],[48,2,48,3],[49,2,49,3],[50,2,50,3],[39,2,39,3],[40,2,40,3],[41,2,41,3],[42,2,42,3],[43,2,43,3],[44,2,44,3],[57,2,57,3],[58,2,58,3],[59,2,59,3],[60,2,60,3],[61,2,61,3],[62,2,62,3],[51,2,51,3],[52,2,52,3],[53,2,53,3],[54,2,54,3],[55,2,55,3],[56,2,56,3],[69,2,69,3],[70,2,70,3],[71,2,71,3],[72,2,72,3],[73,2,73,3],[74,2,74,3],[63,2,63,3],[64,2,64,3],[65,2,65,3],[66,2,66,3],[67,2,67,3],[68,2,68,3],[81,2,81,3],[82,2,82,3],[83,2,83,3],[84,2,84,3],[85,2,85,3],[86,2,86,3],[75,2,75,3],[76,2,76,3],[77,2,77,3],[78,2,78,3],[79,2,79,3],[80,2,80,3],[93,2,93,3],[94,2,94,3],[95,2,95,3],[96,2,96,3],[97,2,97,3],[98,2,98,3],[87,2,87,3],[88,2,88,3],[89,2,89,3],[90,2,90,3],[91,2,91,3],[92,2,92,3],[105,2,105,3],[106,2,106,3],[107,2,107,3],[108,2,108,3],[109,2,109,3],[110,2,110,3],[99,2,99,3],[100,2,100,3],[101,2,101,3],[102,2,102,3],[103,2,103,3],[104,2,104,3],[117,2,117,3],[118,2,118,3],[119,2,119,3],[120,2,120,3],[121,2,121,3],[122,2,122,3],[111,2,111,3],[112,2,112,3],[113,2,113,3],[114,2,114,3],[115,2,115,3],[116,2,116,3],[129,2,129,3],[130,2,130,3],[131,2,131,3],[132,2,132,3],[133,2,133,3],[134,2,134,3],[123,2,123,3],[124,2,124,3],[125,2,125,3],[126,2,126,3],[127,2,127,3],[128,2,128,3],[141,2,141,3],[142,2,142,3],[143,2,143,3],[144,2,144,3],[145,2,145,3],[146,2,146,3],[135,2,135,3],[136,2,136,3],[137,2,137,3],[138,2,138,3],[139,2,139,3],[140,2,140,3],[153,2,153,3],[154,2,154,3],[155,2,155,3],[156,2,156,3],[157,2,157,3],[158,2,158,3],[147,2,147,3],[148,2,148,3],[149,2,149,3],[150,2,150,3],[151,2,151,3],[152,2,152,3],[165,2,165,3],[166,2,166,3],[167,2,167,3],[168,2,168,3],[169,2,169,3],[170,2,170,3],[159,2,159,3],[160,2,160,3],[161,2,161,3],[162,2,162,3],[163,2,163,3],[164,2,164,3],[177,2,177,3],[178,2,178,3],[179,2,179,3],[180,2,180,3],[181,2,181,3],[182,2,182,3],[171,2,171,3],[172,2,172,3],[173,2,173,3],[174,2,174,3],[175,2,175,3],[176,2,176,3],[189,2,189,3],[190,2,190,3],[191,2,191,3],[192,2,192,3],[193,2,193,3],[194,2,194,3],[183,2,183,3],[184,2,184,3],[185,2,185,3],[186,2,186,3],[187,2,187,3],[188,2,188,3],[201,2,201,3],[202,2,202,3],[203,2,203,3],[204,2,204,3],[205,2,205,3],[206,2,206,3],[195,2,195,3],[196,2,196,3],[197,2,197,3],[198,2,198,3],[199,2,199,3],[200,2,200,3],[213,2,213,3],[214,2,214,3],[215,2,215,3],[216,2,216,3],[217,2,217,3],[218,2,218,3],[207,2,207,3],[208,2,208,3],[209,2,209,3],[210,2,210,3],[211,2,211,3],[212,2,212,3],[225,2,225,3],[226,2,226,3],[227,2,227,3],[228,2,228,3],[229,2,229,3],[230,2,230,3],[219,2,219,3],[220,2,220,3],[221,2,221,3],[222,2,222,3],[223,2,223,3],[224,2,224,3],[237,2,237,3],[238,2,238,3],[239,2,239,3],[240,2,240,3],[241,2,241,3],[242,2,242,3],[231,2,231,3],[232,2,232,3],[233,2,233,3],[234,2,234,3],[235,2,235,3],[236,2,236,3],[249,2,249,3],[250,2,250,3],[251,2,251,3],[252,2,252,3],[253,2,253,3],[254,2,254,3],[243,2,243,3],[244,2,244,3],[245,2,245,3],[246,2,246,3],[247,2,247,3],[248,2,248,3],[261,2,261,3],[262,2,262,3],[263,2,263,3],[264,2,264,3],[265,2,265,3],[266,2,266,3],[255,2,255,3],[256,2,256,3],[257,2,257,3],[258,2,258,3],[259,2,259,3],[260,2,260,3],[273,2,273,3],[274,2,274,3],[275,2,275,3],[276,2,276,3],[277,2,277,3],[278,2,278,3],[267,2,267,3],[268,2,268,3],[269,2,269,3],[270,2,270,3],[271,2,271,3],[272,2,272,3],[285,2,285,3],[286,2,286,3],[287,2,287,3],[288,2,288,3],[289,2,289,3],[290,2,290,3],[279,2,279,3],[280,2,280,3],[281,2,281,3],[282,2,282,3],[283,2,283,3],[284,2,284,3],[297,2,297,3],[298,2,298,3],[299,2,299,3],[300,2,300,3],[301,2,301,3],[302,2,302,3],[291,2,291,3],[292,2,292,3],[293,2,293,3],[294,2,294,3],[295,2,295,3],[296,2,296,3],[309,2,309,3],[310,2,310,3],[311,2,311,3],[312,2,312,3],[313,2,313,3],[314,2,314,3],[303,2,303,3],[304,2,304,3],[305,2,305,3],[306,2,306,3],[307,2,307,3],[308,2,308,3],[321,2,321,3],[322,2,322,3],[323,2,323,3],[324,2,324,3],[325,2,325,3],[326,2,326,3],[315,2,315,3],[316,2,316,3],[317,2,317,3],[318,2,318,3],[319,2,319,3],[320,2,320,3],[333,2,333,3],[334,2,334,3],[335,2,335,3],[336,2,336,3],[337,2,337,3],[338,2,338,3],[327,2,327,3],[328,2,328,3],[329,2,329,3],[330,2,330,3],[331,2,331,3],[332,2,332,3],[345,2,345,3],[346,2,346,3],[347,2,347,3],[349,2,349,4],[339,2,339,3],[340,2,340,3],[341,2,341,3],[342,2,342,3],[343,2,343,3],[344,2,344,3],[356,2,356,3],[357,2,357,3],[358,2,358,3],[359,2,359,3],[360,2,360,3],[361,2,361,3],[350,2,350,3],[351,2,351,3],[352,2,352,3],[353,2,353,3],[354,2,354,3],[355,2,355,3],[368,2,368,3],[369,2,369,3],[370,2,370,3],[371,2,371,3],[372,2,372,3],[373,2,373,3],[362,2,362,3],[363,2,363,3],[364,2,364,3],[365,2,365,3],[366,2,366,3],[367,2,367,3],[380,2,380,3],[381,2,381,3],[382,2,382,3],[383,2,383,3],[384,2,384,3],[385,2,385,3],[374,2,374,3],[375,2,375,3],[376,2,376,3],[377,2,377,3],[378,2,378,3],[379,2,379,3],[392,2,392,3],[393,2,393,3],[394,2,394,3],[395,2,395,3],[396,2,396,3],[397,2,397,3],[386,2,386,3],[387,2,387,3],[388,2,388,3],[389,2,389,3],[390,2,390,3],[391,2,391,3],[404,2,404,3],[405,2,405,3],[406,2,406,3],[407,2,407,3],[408,2,408,3],[409,2,409,3],[398,2,398,3],[399,2,399,3],[400,2,400,3],[401,2,401,3],[402,2,402,3],[403,2,403,3]]}
[null,null,{"$f":"'様式１－１ '!A1","v":0}]
[null,null,"【事業③】支出・収入内訳明細書",null,null,null,null,null,null,null,"支出合計\n(円)",null,null,{"$f":"SUM(T8:T347)","v":0}]
[null,null,"事業名",null,null,null,null,null,null,null,"収入合計\n(円)",null,null,{"$f":"SUM(G352:G410)","v":0},null,null,"対象外経費\n合計",null,{"$f":"SUMIFS($T8:$T347,$U8:$U347,スタート_マスター!A17)","v":0}]
[]
[null,null,null,null,null,null,null,null,null,null,"対象経費\n合計",null,null,{"$f":"N2-S3","v":0}]
[null,null,"【支出の部】",null,null,null,null,null,null,null,null,null,null,null,null,null,null,null,null,null,"（単位：円）"]
[null,null,"No.",null,"区分","費目","内　　訳",null,"（単価）","×","（数量）","（単位）","×","（数量）","（単位）","×","（数量）","（単位）","＝","(金額)","対象外経費",null,"支出合計（費目ごと統一合計用）"]
[null,null,1,null,null,null,null,null,null,null,null,null,null,null,null,null,null,null,null,{"$f":"IF(I8=\"\",0,INT(SUM(PRODUCT(I8,K8,N8,Q8))))","v":0},null,null,"人件費",{"$f":"SUMIFS($T$8:$T$347,$E$8:$E$347,W8)","v":0}]
[null,null,2,null,null,null,null,null,null,null,null,null,null,null,null,null,null,null,null,{"$f":"IF(I9=\"\",0,INT(SUM(PRODUCT(I9,K9,N9,Q9))))","v":0},null,null,"諸謝金",{"$f":"SUMIFS($T$8:$T$347,$E$8:$E$347,W9)","v":0}]
[null,null,3,null,null,null,null,null,null,null,null,null,null,null,null,null,null,null,null,0,null,null,"旅費",{"$f":"SUMIFS($T$8:$T$347,$E$8:$E$347,W10)","v":0}]
[null,null,4,null,null,null,null,null,null,null,null,null,null,null,null,null,null,null,null,0,null,null,"借損料",0]
[null,null,5,null,null,null,null,null,null,null,null,null,null,null,null,null,null,null,null,0,null,null,"消耗品費",{"$f":"SUMIFS($T$8:$T$347,$E$8:$E$347,W12)","v":0}]
[null,null,6,null,null,null,null,null,null,null,null,null,null,null,null,null,null,null,null,0,null,null,"通信運搬費",0]
[null,null,7,null,null,null,null,null,null,null,null,null,null,null,null,null,null,null,null,0,null,null,"雑役務費",0]
[null,null,8,null,null,null,null,null,null,null,null,null,null,null,null,null,null,null,null,0,null,null,"保険料",0]
[null,null,9,null,null,null,null,null,null,null,null,null,null,null,null,null,null,null,null,0,null,null,"消費税相当額",0]
[null,null,10,null,null,null,null,null,null,null,null,null,null,null,null,null,null,null,null,0,null,null,"再委託費",{"$f":"SUMIFS($T$8:$T$347,$E$8:$E$347,W17)","v":0}]
[null,null,11,null,null,null,null,null,null,null,null,null,null,null,null,null,null,null,null,0]
[null,null,12,null,null,null,null,null,null,null,null,null,null,null,null,null,null,null,null,0,null,null,"対象外合計（統一計算用）"]
[null,null,13,null,null,null,null,null,null,null,null,null,null,null,null,null,null,null,null,0,null,null,"人件費",{"$f":"SUMIFS($T$8:$T$347,$E$8:$E$347,W20,$U$8:$U$347,\"対象外\")","v":0}]
[null,null,14,null,null,null,null,null,null,null,null,null,null,null,null,null,null,null,null,0,null,null,"諸謝金",{"$f":"SUMIFS($T$8:$T$347,$E$8:$E$347,W21,$U$8:$U$347,\"対象外\")","v":0}]
[null,null,15,null,null,null,null,null,null,null,null,null,null,null,null,null,null,null,null,0,null,null,"旅費",{"$f":"SUMIFS($T$8:$T$347,$E$8:$E$347,W22,$U$8:$U$347,\"対象外\")","v":0}]
[null,null,16,null,null,null,null,null,null,null,null,null,null,null,null,null,null,null,null,0,null,null,"借損料",0]
[null,null,17,null,null,null,null,null,null,null,null,null,null,null,null,null,null,null,null,0,null,null,"消耗品費",{"$f":"SUMIFS($T$8:$T$347,$E$8:$E$347,W24,$U$8:$U$347,\"対象外\")","v":0}]
[null,null,18,null,null,null,null,null,null,null,null,null,null,null,null,null,null,null,null,0,null,null,"通信運搬費",0]
[null,null,19,null,null,null,null,null,null,null,null,null,null,null,null,null,null,null,null,0,null,null,"雑役務費",0]
[null,null,20,null,null,null,null,null,null,null,null,null,null,null,null,null,null,null,null,0,null,null,"保険料",0]
[null,null,21,null,null,null,null,null,null,null,null,null,null,null,null,null,null,null,null,0,null,null,"消費税相当額",0]
[null,null,22,null,null,null,null,null,null,null,null,null,null,null,null,null,null,null,null,0,null,null,"再委託費",{"$f":"SUMIFS($T$8:$T$347,$E$8:$E$347,W29,$U$8:$U$347,\"対象外\")","v":0}]
[null,null,23,null,null,null,null,null,null,null,null,null,null,null,null,null,null,null,null,0]
[null,null,24,null,null,null,null,null,null,null,null,null,null,null,null,null,null,null,null,0]
[null,null,25,null,null,null,null,null,null,null,null,null,null,null,null,null,null,null,null,0]
[null,null,26,null,null,null,null,null,null,null,null,null,null,null,null,null,null,null,null,0]
[null,null,27,null,null,null,null,null,null,null,null,null,null,null,null,null,null,null,null,0,null,null,"再委託費"]
[null,null,28,null,null,null,null,null,null,null,null,null,null,null,null,null,null,null,null,0,null,null,"人件費",{"$f":"SUMIFS($T$8:$T$347,$E$8:$E$347,$W$34,$F$8:$F$347,W35)","v":0}]
[null,null,29,null,null,null,null,null,null,null,null,null,null,null,null,null,null,null,null,0,null,null,"諸謝金",{"$f":"SUMIFS($T$8:$T$347,$E$8:$E$347,$W$34,$F$8:$F$347,W36)","v":0}]
[null,null,30,null,null,null,null,null,null,null,null,null,null,null,null,null,null,null,null,0,null,null,"旅費",0]
[null,null,31,null,null,null,null,null,null,null,null,null,null,null,null,null,null,null,null,0,null,null,"借損料",0]
[null,null,32,null,null,null,null,null,null,null,null,null,null,null,null,null,null,null,null,0,null,null,"消耗品費",0]
[null,null,33,null,null,null,null,null,null,null,null,null,null,null,null,null,null,null,null,0,null,null,"通信運搬費",0]
[null,null,34,null,null,null,null,null,null,null,null,null,null,null,null,null,null,null,null,0,null,null,"雑役務費",0]
[null,null,35,null,null,null,null,null,null,null,null,null,null,null,null,null,null,null,null,0,null,null,"保険料",0]
[null,null,36,null,null,null,null,null,null,null,null,null,null,null,null,null,null,null,null,0,null,null,"消費税相当額",0]
[null,null,37,null,null,null,null,null,null,null,null,null,null,null,null,null,null,null,null,0,null,null,"一般管理費",0]
[null,null,38,null,null,null,null,null,null,null,null,null,null,null,null,null,null,null,null,0]
[null,null,39,null,null,null,null,null,null,null,null,null,null,null,null,null,null,null,null,0,null,null,"再委託費対象外"]
[null,null,40,null,null,null,null,null,null,null,null,null,null,null,null,null,null,null,null,0,null,null,"人件費",{"$f":"SUMIFS($T$8:$T$347,$E$8:$E$347,$W$34,$F$8:$F$347,W47,$U$8:$U$347,\"対象外\")","v":0}]
[null,null,41,null,null,null,null,null,null,null,null,null,null,null,null,null,null,null,null,0,null,null,"諸謝金",{"$f":"SUMIFS($T$8:$T$347,$E$8:$E$347,$W$34,$F$8:$F$347,W48,$U$8:$U$347,\"対象外\")","v":0}]
[null,null,42,null,null,null,null,null,null,null,null,null,null,null,null,null,null,null,null,0,null,null,"旅費",0]
[null,null,43,null,null,null,null,null,null,null,null,null,null,null,null,null,null,null,null,0,null,null,"借損料",0]
[null,null,44,null,null,null,null,null,null,null,null,null,null,null,null,null,null,null,null,0,null,null,"消耗品費",0]
[null,null,45,null,null,null,null,null,null,null,null,null,null,null,null,null,null,null,null,0,null,null,"通信運搬費",0]
[null,null,46,null,null,null,null,null,null,null,null,null,null,null,null,null,null,null,null,0,null,null,"雑役務費",0]
[null,null,47,null,null,null,null,null,null,null,null,null,null,null,null,null,null,null,null,0,null,null,"保険料",0]
[null,null,48,null,null,null,null,null,null,null,null,null,null,null,null,null,null,null,null,0,null,null,"消費税相当額",0]
[null,null,49,null,null,null,null,null,null,null,null,null,null,null,null,null,null,null,null,0,null,null,"一般管理費",0]
[null,null,50,null,null,null,null,null,null,null,null,null,null,null,null,null,null,null,null,0]
[null,null,51,null,null,null,null,null,null,null,null,null,null,null,null,null,null,null,null,0]
[null,null,52,null,null,null,null,null,null,null,null,null,null,null,null,null,null,null,null,0]
[null,null,53,null,null,null,null,null,null,null,null,null,null,null,null,null,null,null,null,0]
[null,null,54,null,null,null,null,null,null,null,null,null,null,null,null,null,null,null,null,0]
[null,null,55,null,null,null,null,null,null,null,null,null,null,null,null,null,null,null,null,0]
[null,null,56,null,null,null,null,null,null,null,null,null,null,null,null,null,null,null,null,0]
[null,null,57,null,null,null,null,null,null,null,null,null,null,null,null,null,null,null,null,0]
[null,null,58,null,null,null,null,null,null,null,null,null,null,null,null,null,null,null,null,0]
[null,null,59,null,null,null,null,null,null,null,null,null,null,null,null,null,null,null,null,0]
[null,null,60,null,null,null,null,null,null,null,null,null,null,null,null,null,null,null,null,0]
[null,null,61,null,null,null,null,null,null,null,null,null,null,null,null,null,null,null,null,0]
[null,null,62,null,null,null,null,null,null,null,null,null,null,null,null,null,null,null,null,0]
[null,null,63,null,null,null,null,null,null,null,null,null,null,null,null,null,null,null,null,0]
[null,null,64,null,null,null,null,null,null,null,null,null,null,null,null,null,null,null,null,0]
[null,null,65,null,null,null,null,null,null,null,null,null,null,null,null,null,null,null,null,0]
[null,null,66,null,null,null,null,null,null,null,null,null,null,null,null,null,null,null,null,{"$f":"IF(I73=\"\",0,INT(SUM(PRODUCT(I73,K73,N73,Q73))))","v":0}]
[null,null,67,null,null,null,null,null,null,null,null,null,null,null,null,null,null,null,null,0]
[null,null,68,null,null,null,null,null,null,null,null,null,null,null,null,null,null,null,null,0]
[null,null,69,null,null,null,null,null,null,null,null,null,null,null,null,null,null,null,null,0]
[null,null,70,null,null,null,null,null,null,null,null,null,null,null,null,null,null,null,null,0]
[null,null,71,null,null,null,null,null,null,null,null,null,null,null,null,null,null,null,null,0]
[null,null,72,null,null,null,null,null,null,null,null,null,null,null,null,null,null,null,null,0]
[null,null,73,null,null,null,null,null,null,null,null,null,null,null,null,null,null,null,null,0]
[null,null,74,null,null,null,null,null,null,null,null,null,null,null,null,null,null,null,null,0]
[null,null,75,null,null,null,null,null,null,null,null,null,null,null,null,null,null,null,null,0]
[null,null,76,null,null,null,null,null,null,null,null,null,null,null,null,null,null,null,null,0]
[null,null,77,null,null,null,null,null,null,null,null,null,null,null,null,null,null,null,null,0]
[null,null,78,null,null,null,null,null,null,null,null,null,null,null,null,null,null,null,null,0]
[null,null,79,null,null,null,null,null,null,null,null,null,null,null,null,null,null,null,null,0]
[null,null,80,null,null,null,null,null,null,null,null,null,null,null,null,null,null,null,null,0]
[null,null,81,null,null,null,null,null,null,null,null,null,null,null,null,null,null,null,null,0]
[null,null,82,null,null,null,null,null,null,null,null,null,null,null,null,null,null,null,null,0]
[null,null,83,null,null,null,null,null,null,null,null,null,null,null,null,null,null,null,null,0]
[null,null,84,null,null,null,null,null,null,null,null,null,null,null,null,null,null,null,null,0]
[null,null,85,null,null,null,null,null,null,null,null,null,null,null,null,null,null,null,null,0]
[null,null,86,null,null,null,null,null,null,null,null,null,null,null,null,null,null,null,null,0]
[null,null,87,null,null,null,null,null,null,null,null,null,null,null,null,null,null,null,null,0]
[null,null,88,null,null,null,null,null,null,null,null,null,null,null,null,null,null,null,null,0]
[null,null,89,null,null,null,null,null,null,null,null,null,null,null,null,null,null,null,null,0]
[null,null,90,null,null,null,null,null,null,null,null,null,null,null,null,null,null,null,null,0]
[null,null,91,null,null,null,null,null,null,null,null,null,null,null,null,null,null,null,null,0]
[null,null,92,null,null,null,null,null,null,null,null,null,null,null,null,null,null,null,null,0]
[null,null,93,null,null,null,null,null,null,null,null,null,null,null,null,null,null,null,null,0]
[null,null,94,null,null,null,null,null,null,null,null,null,null,null,null,null,null,null,null,0]
[null,null,95,null,null,null,null,null,null,null,null,null,null,null,null,null,null,null,null,0]
[null,null,96,null,null,null,null,null,null,null,null,null,null,null,null,null,null,null,null,0]
[null,null,97,null,null,null,null,null,null,null,null,null,null,null,null,null,null,null,null,0]
[null,null,98,null,null,null,null,null,null,null,null,null,null,null,null,null,null,null,null,0]
[null,null,99,null,null,null,null,null,null,null,null,null,null,null,null,null,null,null,null,0]
[null,null,100,null,null,null,null,null,null,null,null,null,null,null,null,null,null,null,null,0]
[null,null,101,null,null,null,null,null,null,null,null,null,null,null,null,null,null,null,null,0]
[null,null,102,null,null,null,null,null,null,null,null,null,null,null,null,null,null,null,null,0]
[null,null,103,null,null,null,null,null,null,null,null,null,null,null,null,null,null,null,null,0]
[null,null,104,null,null,null,null,null,null,null,null,null,null,null,null,null,null,null,null,0]
[null,null,105,null,null,null,null,null,null,null,null,null,null,null,null,null,null,null,null,0]
[null,null,106,null,null,null,null,null,null,null,null,null,null,null,null,null,null,null,null,0]
[null,null,107,null,null,null,null,null,null,null,null,null,null,null,null,null,null,null,null,0]
[null,null,108,null,null,null,null,null,null,null,null,null,null,null,null,null,null,null,null,0]
[null,null,109,null,null,null,null,null,null,null,null,null,null,null,null,null,null,null,null,0]
[null,null,110,null,null,null,null,null,null,null,null,null,null,null,null,null,null,null,null,0]
[null,null,111,null,null,null,null,null,null,null,null,null,null,null,null,null,null,null,null,0]
[null,null,112,null,null,null,null,null,null,null,null,null,null,null,null,null,null,null,null,0]
[null,null,113,null,null,null,null,null,null,null,null,null,null,null,null,null,null,null,null,0]
[null,null,114,null,null,null,null,null,null,null,null,null,null,null,null,null,null,null,null,0]
[null,null,115,null,null,null,null,null,null,null,null,null,null,null,null,null,null,null,null,0]
[null,null,116,null,null,null,null,null,null,null,null,null,null,null,null,null,null,null,null,0]
[null,null,117,null,null,null,null,null,null,null,null,null,null,null,null,null,null,null,null,0]
[null,null,118,null,null,null,null,null,null,null,null,null,null,null,null,null,null,null,null,0]
[null,null,119,null,null,null,null,null,null,null,null,null,null,null,null,null,null,null,null,0]
[null,null,120,null,null,null,null,null,null,null,null,null,null,null,null,null,null,null,null,0]
[null,null,121,null,null,null,null,null,null,null,null,null,null,null,null,null,null,null,null,0]
[null,null,122,null,null,null,null,null,null,null,null,null,null,null,null,null,null,null,null,0]
[null,null,123,null,null,null,null,null,null,null,null,null,null,null,null,null,null,null,null,0]
[null,null,124,null,null,null,null,null,null,null,null,null,null,null,null,null,null,null,null,0]
[null,null,125,null,null,null,null,null,null,null,null,null,null,null,null,null,null,null,null,0]
[null,null,126,null,null,null,null,null,null,null,null,null,null,null,null,null,null,null,null,0]
[null,null,127,null,null,null,null,null,null,null,null,null,null,null,null,null,null,null,null,0]
[null,null,128,null,null,null,null,null,null,null,null,null,null,null,null,null,null,null,null,0]
[null,null,129,null,null,null,null,null,null,null,null,null,null,null,null,null,null,null,null,0]
[null,null,130,null,null,null,null,null,null,null,null,null,null,null,null,null,null,null,null,{"$f":"IF(I137=\"\",0,INT(SUM(PRODUCT(I137,K137,N137,Q137))))","v":0}]
[null,null,131,null,null,null,null,null,null,null,null,null,null,null,null,null,null,null,null,0]
[null,null,132,null,null,null,null,null,null,null,null,null,null,null,null,null,null,null,null,0]
[null,null,133,null,null,null,null,null,null,null,null,null,null,null,null,null,null,null,null,0]
[null,null,134,null,null,null,null,null,null,null,null,null,null,null,null,null,null,null,null,0]
[null,null,135,null,null,null,null,null,null,null,null,null,null,null,null,null,null,null,null,0]
[null,null,136,null,null,null,null,null,null,null,null,null,null,null,null,null,null,null,null,0]
[null,null,137,null,null,null,null,null,null,null,null,null,null,null,null,null,null,null,null,0]
[null,null,138,null,null,null,null,null,null,null,null,null,null,null,null,null,null,null,null,0]
[null,null,139,null,null,null,null,null,null,null,null,null,null,null,null,null,null,null,null,0]
[null,null,140,null,null,null,null,null,null,null,null,null,null,null,null,null,null,null,null,0]
[null,null,141,null,null,null,null,null,null,null,null,null,null,null,null,null,null,null,null,0]
[null,null,142,null,null,null,null,null,null,null,null,null,null,null,null,null,null,null,null,0]
[null,null,143,null,null,null,null,null,null,null,null,null,null,null,null,null,null,null,null,0]
[null,null,144,null,null,null,null,null,null,null,null,null,null,null,null,null,null,null,null,0]
[null,null,145,null,null,null,null,null,null,null,null,null,null,null,null,null,null,null,null,0]
[null,null,146,null,null,null,null,null,null,null,null,null,null,null,null,null,null,null,null,0]
[null,null,147,null,null,null,null,null,null,null,null,null,null,null,null,null,null,null,null,0]
[null,null,148,null,null,null,null,null,null,null,null,null,null,null,null,null,null,null,null,0]
[null,null,149,null,null,null,null,null,null,null,null,null,null,null,null,null,null,null,null,0]
[null,null,150,null,null,null,null,null,null,null,null,null,null,null,null,null,null,null,null,0]
[null,null,151,null,null,null,null,null,null,null,null,null,null,null,null,null,null,null,null,0]
[null,null,152,null,null,null,null,null,null,null,null,null,null,null,null,null,null,null,null,0]
[null,null,153,null,null,null,null,null,null,null,null,null,null,null,null,null,null,null,null,0]
[null,null,154,null,null,null,null,null,null,null,null,null,null,null,null,null,null,null,null,0]
[null,null,155,null,null,null,null,null,null,null,null,null,null,null,null,null,null,null,null,0]
[null,null,156,null,null,null,null,null,null,null,null,null,null,null,null,null,null,null,null,0]
[null,null,157,null,null,null,null,null,null,null,null,null,null,null,null,null,null,null,null,0]
[null,null,158,null,null,null,null,null,null,null,null,null,null,null,null,null,null,null,null,0]
[null,null,159,null,null,null,null,null,null,null,null,null,null,null,null,null,null,null,null,0]
[null,null,160,null,null,null,null,null,null,null,null,null,null,null,null,null,null,null,null,0]
[null,null,161,null,null,null,null,null,null,null,null,null,null,null,null,null,null,null,null,0]
[null,null,162,null,null,null,null,null,null,null,null,null,null,null,null,null,null,null,null,0]
[null,null,163,null,null,null,null,null,null,null,null,null,null,null,null,null,null,null,null,0]
[null,null,164,null,null,null,null,null,null,null,null,null,null,null,null,null,null,null,null,0]
[null,null,165,null,null,null,null,null,null,null,null,null,null,null,null,null,null,null,null,0]
[null,null,166,null,null,null,null,null,null,null,null,null,null,null,null,null,null,null,null,0]
[null,null,167,null,null,null,null,null,null,null,null,null,null,null,null,null,null,null,null,0]
[null,null,168,null,null,null,null,null,null,null,null,null,null,null,null,null,null,null,null,0]
[null,null,169,null,null,null,null,null,null,null,null,null,null,null,null,null,null,null,null,0]
[null,null,170,null,null,null,null,null,null,null,null,null,null,null,null,null,null,null,null,0]
[null,null,171,null,null,null,null,null,null,null,null,null,null,null,null,null,null,null,null,0]
[null,null,172,null,null,null,null,null,null,null,null,null,null,null,null,null,null,null,null,0]
[null,null,173,null,null,null,null,null,null,null,null,null,null,null,null,null,null,null,null,0]
[null,null,174,null,null,null,null,null,null,null,null,null,null,null,null,null,null,null,null,0]
[null,null,175,null,null,null,null,null,null,null,null,null,null,null,null,null,null,null,null,0]
[null,null,176,null,null,null,null,null,null,null,null,null,null,null,null,null,null,null,null,0]
[null,null,177,null,null,null,null,null,null,null,null,null,null,null,null,null,null,null,null,0]
[null,null,178,null,null,null,null,null,null,null,null,null,null,null,null,null,null,null,null,0]
[null,null,179,null,null,null,null,null,null,null,null,null,null,null,null,null,null,null,null,0]
[null,null,180,null,null,null,null,null,null,null,null,null,null,null,null,null,null,null,null,0]
[null,null,181,null,null,null,null,null,null,null,null,null,null,null,null,null,null,null,null,0]
[null,null,182,null,null,null,null,null,null,null,null,null,null,null,null,null,null,null,null,0]
[null,null,183,null,null,null,null,null,null,null,null,null,null,null,null,null,null,null,null,0]
[null,null,184,null,null,null,null,null,null,null,null,null,null,null,null,null,null,null,null,0]
[null,null,185,null,null,null,null,null,null,null,null,null,null,null,null,null,null,null,null,0]
[null,null,186,null,null,null,null,null,null,null,null,null,null,null,null,null,null,null,null,0]
[null,null,187,null,null,null,null,null,null,null,null,null,null,null,null,null,null,null,null,0]
[null,null,188,null,null,null,null,null,null,null,null,null,null,null,null,null,null,null,null,0]
[null,null,189,null,null,null,null,null,null,null,null,null,null,null,null,null,null,null,null,0]
[null,null,190,null,null,null,null,null,null,null,null,null,null,null,null,null,null,null,null,0]
[null,null,191,null,null,null,null,null,null,null,null,null,null,null,null,null,null,null,null,0]
[null,null,192,null,null,null,null,null,null,null,null,null,null,null,null,null,null,null,null,0]
[null,null,193,null,null,null,null,null,null,null,null,null,null,null,null,null,null,null,null,0]
[null,null,194,null,null,null,null,null,null,null,null,null,null,null,null,null,null,null,null,{"$f":"IF(I201=\"\",0,INT(SUM(PRODUCT(I201,K201,N201,Q201))))","v":0}]
[null,null,195,null,null,null,null,null,null,null,null,null,null,null,null,null,null,null,null,0]
[null,null,196,null,null,null,null,null,null,null,null,null,null,null,null,null,null,null,null,0]
[null,null,197,null,null,null,null,null,null,null,null,null,null,null,null,null,null,null,null,0]
[null,null,198,null,null,null,null,null,null,null,null,null,null,null,null,null,null,null,null,0]
[null,null,199,null,null,null,null,null,null,null,null,null,null,null,null,null,null,null,null,0]
[null,null,200,null,null,null,null,null,null,null,null,null,null,null,null,null,null,null,null,0]
[null,null,201,null,null,null,null,null,null,null,null,null,null,null,null,null,null,null,null,0]
[null,null,202,null,null,null,null,null,null,null,null,null,null,null,null,null,null,null,null,0]
[null,null,203,null,null,null,null,null,null,null,null,null,null,null,null,null,null,null,null,0]
[null,null,204,null,null,null,null,null,null,null,null,null,null,null,null,null,null,null,null,0]
[null,null,205,null,null,null,null,null,null,null,null,null,null,null,null,null,null,null,null,0]
[null,null,206,null,null,null,null,null,null,null,null,null,null,null,null,null,null,null,null,0]
[null,null,207,null,null,null,null,null,null,null,null,null,null,null,null,null,null,null,null,0]
[null,null,208,null,null,null,null,null,null,null,null,null,null,null,null,null,null,null,null,0]
[null,null,209,null,null,null,null,null,null,null,null,null,null,null,null,null,null,null,null,0]
[null,null,210,null,null,null,null,null,null,null,null,null,null,null,null,null,null,null,null,0]
[null,null,211,null,null,null,null,null,null,null,null,null,null,null,null,null,null,null,null,0]
[null,null,212,null,null,null,null,null,null,null,null,null,null,null,null,null,null,null,null,0]
[null,null,213,null,null,null,null,null,null,null,null,null,null,null,null,null,null,null,null,0]
[null,null,214,null,null,null,null,null,null,null,null,null,null,null,null,null,null,null,null,0]
[null,null,215,null,null,null,null,null,null,null,null,null,null,null,null,null,null,null,null,0]
[null,null,216,null,null,null,null,null,null,null,null,null,null,null,null,null,null,null,null,0]
[null,null,217,null,null,null,null,null,null,null,null,null,null,null,null,null,null,null,null,0]
[null,null,218,null,null,null,null,null,null,null,null,null,null,null,null,null,null,null,null,0]
[null,null,219,null,null,null,null,null,null,null,null,null,null,null,null,null,null,null,null,0]
[null,null,220,null,null,null,null,null,null,null,null,null,null,null,null,null,null,null,null,0]
[null,null,221,null,null,null,null,null,null,null,null,null,null,null,null,null,null,null,null,0]
[null,null,222,null,null,null,null,null,null,null,null,null,null,null,null,null,null,null,null,0]
[null,null,223,null,null,null,null,null,null,null,null,null,null,null,null,null,null,null,null,0]
[null,null,224,null,null,null,null,null,null,null,null,null,null,null,null,null,null,null,null,0]
[null,null,225,null,null,null,null,null,null,null,null,null,null,null,null,null,null,null,null,0]
[null,null,226,null,null,null,null,null,null,null,null,null,null,null,null,null,null,null,null,0]
[null,null,227,null,null,null,null,null,null,null,null,null,null,null,null,null,null,null,null,0]
[null,null,228,null,null,null,null,null,null,null,null,null,null,null,null,null,null,null,null,0]
[null,null,229,null,null,null,null,null,null,null,null,null,null,null,null,null,null,null,null,0]
[null,null,230,null,null,null,null,null,null,null,null,null,null,null,null,null,null,null,null,0]
[null,null,231,null,null,null,null,null,null,null,null,null,null,null,null,null,null,null,null,0]
[null,null,232,null,null,null,null,null,null,null,null,null,null,null,null,null,null,null,null,0]
[null,null,233,null,null,null,null,null,null,null,null,null,null,null,null,null,null,null,null,0]
[null,null,234,null,null,null,null,null,null,null,null,null,null,null,null,null,null,null,null,0]
[null,null,235,null,null,null,null,null,null,null,null,null,null,null,null,null,null,null,null,0]
[null,null,236,null,null,null,null,null,null,null,null,null,null,null,null,null,null,null,null,0]
[null,null,237,null,null,null,null,null,null,null,null,null,null,null,null,null,null,null,null,0]
[null,null,238,null,null,null,null,null,null,null,null,null,null,null,null,null,null,null,null,0]
[null,null,239,null,null,null,null,null,null,null,null,null,null,null,null,null,null,null,null,0]
[null,null,240,null,null,null,null,null,null,null,null,null,null,null,null,null,null,null,null,0]
[null,null,241,null,null,null,null,null,null,null,null,null,null,null,null,null,null,null,null,0]
[null,null,242,null,null,null,null,null,null,null,null,null,null,null,null,null,null,null,null,0]
[null,null,243,null,null,null,null,null,null,null,null,null,null,null,null,null,null,null,null,0]
[null,null,244,null,null,null,null,null,null,null,null,null,null,null,null,null,null,null,null,0]
[null,null,245,null,null,null,null,null,null,null,null,null,null,null,null,null,null,null,null,0]
[null,null,246,null,null,null,null,null,null,null,null,null,null,null,null,null,null,null,null,0]
[null,null,247,null,null,null,null,null,null,null,null,null,null,null,null,null,null,null,null,0]
[null,null,248,null,null,null,null,null,null,null,null,null,null,null,null,null,null,null,null,0]
[null,null,249,null,null,null,null,null,null,null,null,null,null,null,null,null,null,null,null,0]
[null,null,250,null,null,null,null,null,null,null,null,null,null,null,null,null,null,null,null,0]
[null,null,251,null,null,null,null,null,null,null,null,null,null,null,null,null,null,null,null,0]
[null,null,252,null,null,null,null,null,null,null,null,null,null,null,null,null,null,null,null,0]
[null,null,253,null,null,null,null,null,null,null,null,null,null,null,null,null,null,null,null,0]
[null,null,254,null,null,null,null,null,null,null,null,null,null,null,null,null,null,null,null,0]
[null,null,255,null,null,null,null,null,null,null,null,null,null,null,null,null,null,null,null,0]
[null,null,256,null,null,null,null,null,null,null,null,null,null,null,null,null,null,null,null,0]
[null,null,257,null,null,null,null,null,null,null,null,null,null,null,null,null,null,null,null,0]
[null,null,258,null,null,null,null,null,null,null,null,null,null,null,null,null,null,null,null,{"$f":"IF(I265=\"\",0,INT(SUM(PRODUCT(I265,K265,N265,Q265))))","v":0}]
[null,null,259,null,null,null,null,null,null,null,null,null,null,null,null,null,null,null,null,0]
[null,null,260,null,null,null,null,null,null,null,null,null,null,null,null,null,null,null,null,0]
[null,null,261,null,null,null,null,null,null,null,null,null,null,null,null,null,null,null,null,0]
[null,null,262,null,null,null,null,null,null,null,null,null,null,null,null,null,null,null,null,0]
[null,null,263,null,null,null,null,null,null,null,null,null,null,null,null,null,null,null,null,0]
[null,null,264,null,null,null,null,null,null,null,null,null,null,null,null,null,null,null,null,0]
[null,null,265,null,null,null,null,null,null,null,null,null,null,null,null,null,null,null,null,0]
[null,null,266,null,null,null,null,null,null,null,null,null,null,null,null,null,null,null,null,0]
[null,null,267,null,null,null,null,null,null,null,null,null,null,null,null,null,null,null,null,0]
[null,null,268,null,null,null,null,null,null,null,null,null,null,null,null,null,null,null,null,0]
[null,null,269,null,null,null,null,null,null,null,null,null,null,null,null,null,null,null,null,0]
[null,null,270,null,null,null,null,null,null,null,null,null,null,null,null,null,null,null,null,0]
[null,null,271,null,null,null,null,null,null,null,null,null,null,null,null,null,null,null,null,0]
[null,null,272,null,null,null,null,null,null,null,null,null,null,null,null,null,null,null,null,0]
[null,null,273,null,null,null,null,null,null,null,null,null,null,null,null,null,null,null,null,0]
[null,null,274,null,null,null,null,null,null,null,null,null,null,null,null,null,null,null,null,0]
[null,null,275,null,null,null,null,null,null,null,null,null,null,null,null,null,null,null,null,0]
[null,null,276,null,null,null,null,null,null,null,null,null,null,null,null,null,null,null,null,0]
[null,null,277,null,null,null,null,null,null,null,null,null,null,null,null,null,null,null,null,0]
[null,null,278,null,null,null,null,null,null,null,null,null,null,null,null,null,null,null,null,0]
[null,null,279,null,null,null,null,null,null,null,null,null,null,null,null,null,null,null,null,0]
[null,null,280,null,null,null,null,null,null,null,null,null,null,null,null,null,null,null,null,0]
[null,null,281,null,null,null,null,null,null,null,null,null,null,null,null,null,null,null,null,0]
[null,null,282,null,null,null,null,null,null,null,null,null,null,null,null,null,null,null,null,0]
[null,null,283,null,null,null,null,null,null,null,null,null,null,null,null,null,null,null,null,0]
[null,null,284,null,null,null,null,null,null,null,null,null,null,null,null,null,null,null,null,0]
[null,null,285,null,null,null,null,null,null,null,null,null,null,null,null,null,null,null,null,0]
[null,null,286,null,null,null,null,null,null,null,null,null,null,null,null,null,null,null,null,0]
[null,null,287,null,null,null,null,null,null,null,null,null,null,null,null,null,null,null,null,0]
[null,null,288,null,null,null,null,null,null,null,null,null,null,null,null,null,null,null,null,0]
[null,null,289,null,null,null,null,null,null,null,null,null,null,null,null,null,null,null,null,0]
[null,null,290,null,null,null,null,null,null,null,null,null,null,null,null,null,null,null,null,0]
[null,null,291,null,null,null,null,null,null,null,null,null,null,null,null,null,null,null,null,0]
[null,null,292,null,null,null,null,null,null,null,null,null,null,null,null,null,null,null,null,0]
[null,null,293,null,null,null,null,null,null,null,null,null,null,null,null,null,null,null,null,0]
[null,null,294,null,null,null,null,null,null,null,null,null,null,null,null,null,null,null,null,0]
[null,null,295,null,null,null,null,null,null,null,null,null,null,null,null,null,null,null,null,0]
[null,null,296,null,null,null,null,null,null,null,null,null,null,null,null,null,null,null,null,0]
[null,null,297,null,null,null,null,null,null,null,null,null,null,null,null,null,null,null,null,0]
[null,null,298,null,null,null,null,null,null,null,null,null,null,null,null,null,null,null,null,0]
[null,null,299,null,null,null,null,null,null,null,null,null,null,null,null,null,null,null,null,0]
[null,null,300,null,null,null,null,null,null,null,null,null,null,null,null,null,null,null,null,0]
[null,null,301,null,null,null,null,null,null,null,null,null,null,null,null,null,null,null,null,0]
[null,null,302,null,null,null,null,null,null,null,null,null,null,null,null,null,null,null,null,0]
[null,null,303,null,null,null,null,null,null,null,null,null,null,null,null,null,null,null,null,0]
[null,null,304,null,null,null,null,null,null,null,null,null,null,null,null,null,null,null,null,0]
[null,null,305,null,null,null,null,null,null,null,null,null,null,null,null,null,null,null,null,0]
[null,null,306,null,null,null,null,null,null,null,null,null,null,null,null,null,null,null,null,0]
[null,null,307,null,null,null,null,null,null,null,null,null,null,null,null,null,null,null,null,0]
[null,null,308,null,null,null,null,null,null,null,null,null,null,null,null,null,null,null,null,0]
[null,null,309,null,null,null,null,null,null,null,null,null,null,null,null,null,null,null,null,0]
[null,null,310,null,null,null,null,null,null,null,null,null,null,null,null,null,null,null,null,0]
[null,null,311,null,null,null,null,null,null,null,null,null,null,null,null,null,null,null,null,0]
[null,null,312,null,null,null,null,null,null,null,null,null,null,null,null,null,null,null,null,0]
[null,null,313,null,null,null,null,null,null,null,null,null,null,null,null,null,null,null,null,0]
[null,null,314,null,null,null,null,null,null,null,null,null,null,null,null,null,null,null,null,0]
[null,null,315,null,null,null,null,null,null,null,null,null,null,null,null,null,null,null,null,0]
[null,null,316,null,null,null,null,null,null,null,null,null,null,null,null,null,null,null,null,0]
[null,null,317,null,null,null,null,null,null,null,null,null,null,null,null,null,null,null,null,0]
[null,null,318,null,null,null,null,null,null,null,null,null,null,null,null,null,null,null,null,0]
[null,null,319,null,null,null,null,null,null,null,null,null,null,null,null,null,null,null,null,0]
[null,null,320,null,null,null,null,null,null,null,null,null,null,null,null,null,null,null,null,0]
[null,null,321,null,null,null,null,null,null,null,null,null,null,null,null,null,null,null,null,0]
[null,null,322,null,null,null,null,null,null,null,null,null,null,null,null,null,null,null,null,{"$f":"IF(I329=\"\",0,INT(SUM(PRODUCT(I329,K329,N329,Q329))))","v":0}]
[null,null,323,null,null,null,null,null,null,null,null,null,null,null,null,null,null,null,null,0]
[null,null,324,null,null,null,null,null,null,null,null,null,null,null,null,null,null,null,null,0]
[null,null,325,null,null,null,null,null,null,null,null,null,null,null,null,null,null,null,null,0]
[null,null,326,null,null,null,null,null,null,null,null,null,null,null,null,null,null,null,null,0]
[null,null,327,null,null,null,null,null,null,null,null,null,null,null,null,null,null,null,null,0]
[null,null,328,null,null,null,null,null,null,null,null,null,null,null,null,null,null,null,null,0]
[null,null,329,null,null,null,null,null,null,null,null,null,null,null,null,null,null,null,null,0]
[null,null,330,null,null,null,null,null,null,null,null,null,null,null,null,null,null,null,null,0]
[null,null,331,null,null,null,null,null,null,null,null,null,null,null,null,null,null,null,null,0]
[null,null,332,null,null,null,null,null,null,null,null,null,null,null,null,null,null,null,null,0]
[null,null,333,null,null,null,null,null,null,null,null,null,null,null,null,null,null,null,null,0]
[null,null,334,null,null,null,null,null,null,null,null,null,null,null,null,null,null,null,null,0]
[null,null,335,null,null,null,null,null,null,null,null,null,null,null,null,null,null,null,null,0]
[null,null,336,null,null,null,null,null,null,null,null,null,null,null,null,null,null,null,null,0]
[null,null,337,null,null,null,null,null,null,null,null,null,null,null,null,null,null,null,null,0]
[null,null,338,null,null,null,null,null,null,null,null,null,null,null,null,null,null,null,null,0]
[null,null,339,null,null,null,null,null,null,null,null,null,null,null,null,null,null,null,null,0]
[null,null,340,null,null,null,null,null,null,null,null,null,null,null,null,null,null,null,null,0]
[]
[]
[null,null,"【収入の部】",null,null,null,"（単位：円）"]
[null,null,"No.",null,"費目","内　　訳","金  額",null,null,null,null,null,null,null,null,null,null,null,null,null,null,null,"収入合計（統一用）"]
[null,null,1,null,null,null,null,null,null,null,null,null,null,null,null,null,null,null,null,null,null,null,"自己負担金",{"$f":"SUMIFS($G$352:$G$410,$E$352:$E$410,W352)","v":0}]
[null,null,2,null,null,null,null,null,null,null,null,null,null,null,null,null,null,null,null,null,null,null,"助成金等",{"$f":"SUMIFS($G$352:$G$410,$E$352:$E$410,W353)","v":0}]
[null,null,3,null,null,null,null,null,null,null,null,null,null,null,null,null,null,null,null,null,null,null,"その他収入",0]
[null,null,4]
[null,null,5]
[null,null,6]
[null,null,7]
[null,null,8]
[null,null,9]
[null,null,10]
[null,null,11]
[null,null,12]
[null,null,13]
[null,null,14]
[null,null,15]
[null,null,16]
[null,null,17]
[null,null,18]
[null,null,19]
[null,null,20]
[null,null,21]
[null,null,22]
[null,null,23]
[null,null,24]
[null,null,25]
[null,null,26]
[null,null,27]
[null,null,28]
[null,null,29]
[null,null,30]
[null,null,31]
[null,null,32]
[null,null,33]
[null,null,34]
[null,null,35]
[null,null,36]
[null,null,37]
[null,null,38]
[null,null,39]
[null,null,40]
[null,null,41]
[null,null,42]
[null,null,43]
[null,null,44]
[null,null,45]
[null,null,46]
[null,null,47]
[null,null,48]
[null,null,49]
[null,null,50]
[null,null,51]
[null,null,52]
[null,null,53]
[null,null,54,null,null,null,null,null,null,null,null,null,null,null,null,null,null,null,null,null,null,null,"（統合計算用）"]
[null,null,55,null,null,null,null,null,null,null,null,null,null,null,null,null,null,null,null,null,null,null,"自己負担金",{"$f":"SUMIFS(G352:G410,E352:E410,W406)","v":0}]
[null,null,56,null,null,null,null,null,null,null,null,null,null,null,null,null,null,null,null,null,null,null,"助成金等",{"$f":"SUMIFS(G352:G410,E352:E410,W407)","v":0}]
[null,null,57,null,null,null,null,null,null,null,null,null,null,null,null,null,null,null,null,null,null,null,"その他収入",{"$f":"SUMIFS(G352:G410,E352:E410,W408)","v":0}]
[null,null,58]
[null,null,59]

{"sheet":"【事業④】支出・収入内訳明細書","index":11,"n_rows":410,"n_cols":24,"rows_kept":410,"cut":false,"hidden":false,"merged":[[0,2,0,6],[1,2,1,6],[1,10,1,12],[1,13,1,19],[2,2,2,3],[2,4,2,6],[2,10,2,12],[2,13,2,15],[2,16,2,17],[2,18,2,19],[9,2,9,3],[10,2,10,3],[11,2,11,3],[12,2,12,3],[13,2,13,3],[14,2,14,3],[4,10,4,12],[4,13,4,19],[5,2,5,5],[6,2,6,3],[7,2,7,3],[8,2,8,3],[21,2,21,3],[22,2,22,3],[23,2,23,3],[24,2,24,3],[25,2,25,3],[26,2,26,3],[15,2,15,3],[16,2,16,3],[17,2,17,3],[18,2,18,3],[19,2,19,3],[20,2,20,3],[33,2,33,3],[34,2,34,3],[35,2,35,3],[36,2,36,3],[37,2,37,3],[38,2,38,3],[27,2,27,3],[28,2,28,3],[29,2,29,3],[30,2,30,3],[31,2,31,3],[32,2,32,3],[45,2,45,3],[46,2,46,3],[47,2,47,3],[48,2,48,3],[49,2,49,3],[50,2,50,3],[39,2,39,3],[40,2,40,3],[41,2,41,3],[42,2,42,3],[43,2,43,3],[44,2,44,3],[57,2,57,3],[58,2,58,3],[59,2,59,3],[60,2,60,3],[61,2,61,3],[62,2,62,3],[51,2,51,3],[52,2,52,3],[53,2,53,3],[54,2,54,3],[55,2,55,3],[56,2,56,3],[69,2,69,3],[70,2,70,3],[71,2,71,3],[72,2,72,3],[73,2,73,3],[74,2,74,3],[63,2,63,3],[64,2,64,3],[65,2,65,3],[66,2,66,3],[67,2,67,3],[68,2,68,3],[81,2,81,3],[82,2,82,3],[83,2,83,3],[84,2,84,3],[85,2,85,3],[86,2,86,3],[75,2,75,3],[76,2,76,3],[77,2,77,3],[78,2,78,3],[79,2,79,3],[80,2,80,3],[93,2,93,3],[94,2,94,3],[95,2,95,3],[96,2,96,3],[97,2,97,3],[98,2,98,3],[87,2,87,3],[88,2,88,3],[89,2,89,3],[90,2,90,3],[91,2,91,3],[92,2,92,3],[105,2,105,3],[106,2,106,3],[107,2,107,3],[108,2,108,3],[109,2,109,3],[110,2,110,3],[99,2,99,3],[100,2,100,3],[101,2,101,3],[102,2,102,3],[103,2,103,3],[104,2,104,3],[117,2,117,3],[118,2,118,3],[119,2,119,3],[120,2,120,3],[121,2,121,3],[122,2,122,3],[111,2,111,3],[112,2,112,3],[113,2,113,3],[114,2,114,3],[115,2,115,3],[116,2,116,3],[129,2,129,3],[130,2,130,3],[131,2,131,3],[132,2,132,3],[133,2,133,3],[134,2,134,3],[123,2,123,3],[124,2,124,3],[125,2,125,3],[126,2,126,3],[127,2,127,3],[128,2,128,3],[141,2,141,3],[142,2,142,3],[143,2,143,3],[144,2,144,3],[145,2,145,3],[146,2,146,3],[135,2,135,3],[136,2,136,3],[137,2,137,3],[138,2,138,3],[139,2,139,3],[140,2,140,3],[153,2,153,3],[154,2,154,3],[155,2,155,3],[156,2,156,3],[157,2,157,3],[158,2,158,3],[147,2,147,3],[148,2,148,3],[149,2,149,3],[150,2,150,3],[151,2,151,3],[152,2,152,3],[165,2,165,3],[166,2,166,3],[167,2,167,3],[168,2,168,3],[169,2,169,3],[170,2,170,3],[159,2,159,3],[160,2,160,3],[161,2,161,3],[162,2,162,3],[163,2,163,3],[164,2,164,3],[177,2,177,3],[178,2,178,3],[179,2,179,3],[180,2,180,3],[181,2,181,3],[182,2,182,3],[171,2,171,3],[172,2,172,3],[173,2,173,3],[174,2,174,3],[175,2,175,3],[176,2,176,3],[189,2,189,3],[190,2,190,3],[191,2,191,3],[192,2,192,3],[193,2,193,3],[194,2,194,3],[183,2,183,3],[184,2,184,3],[185,2,185,3],[186,2,186,3],[187,2,187,3],[188,2,188,3],[201,2,201,3],[202,2,202,3],[203,2,203,3],[204,2,204,3],[205,2,205,3],[206,2,206,3],[195,2,195,3],[196,2,196,3],[197,2,197,3],[198,2,198,3],[199,2,199,3],[200,2,200,3],[213,2,213,3],[214,2,214,3],[215,2,215,3],[216,2,216,3],[217,2,217,3],[218,2,218,3],[207,2,207,3],[208,2,208,3],[209,2,209,3],[210,2,210,3],[211,2,211,3],[212,2,212,3],[225,2,225,3],[226,2,226,3],[227,2,227,3],[228,2,228,3],[229,2,229,3],[230,2,230,3],[219,2,219,3],[220,2,220,3],[221,2,221,3],[222,2,222,3],[223,2,223,3],[224,2,224,3],[237,2,237,3],[238,2,238,3],[239,2,239,3],[240,2,240,3],[241,2,241,3],[242,2,242,3],[231,2,231,3],[232,2,232,3],[233,2,233,3],[234,2,234,3],[235,2,235,3],[236,2,236,3],[249,2,249,3],[250,2,250,3],[251,2,251,3],[252,2,252,3],[253,2,253,3],[254,2,254,3],[243,2,243,3],[244,2,244,3],[245,2,245,3],[246,2,246,3],[247,2,247,3],[248,2,248,3],[261,2,261,3],[262,2,262,3],[263,2,263,3],[264,2,264,3],[265,2,265,3],[266,2,266,3],[255,2,255,3],[256,2,256,3],[257,2,257,3],[258,2,258,3],[259,2,259,3],[260,2,260,3],[273,2,273,3],[274,2,274,3],[275,2,275,3],[276,2,276,3],[277,2,277,3],[278,2,278,3],[267,2,267,3],[268,2,268,3],[269,2,269,3],[270,2,270,3],[271,2,271,3],[272,2,272,3],[285,2,285,3],[286,2,286,3],[287,2,287,3],[288,2,288,3],[289,2,289,3],[290,2,290,3],[279,2,279,3],[280,2,280,3],[281,2,281,3],[282,2,282,3],[283,2,283,3],[284,2,284,3],[297,2,297,3],[298,2,298,3],[299,2,299,3],[300,2,300,3],[301,2,301,3],[302,2,302,3],[291,2,291,3],[292,2,292,3],[293,2,293,3],[294,2,294,3],[295,2,295,3],[296,2,296,3],[309,2,309,3],[310,2,310,3],[311,2,311,3],[312,2,312,3],[313,2,313,3],[314,2,314,3],[303,2,303,3],[304,2,304,3],[305,2,305,3],[306,2,306,3],[307,2,307,3],[308,2,308,3],[321,2,321,3],[322,2,322,3],[323,2,323,3],[324,2,324,3],[325,2,325,3],[326,2,326,3],[315,2,315,3],[316,2,316,3],[317,2,317,3],[318,2,318,3],[319,2,319,3],[320,2,320,3],[333,2,333,3],[334,2,334,3],[335,2,335,3],[336,2,336,3],[337,2,337,3],[338,2,338,3],[327,2,327,3],[328,2,328,3],[329,2,329,3],[330,2,330,3],[331,2,331,3],[332,2,332,3],[345,2,345,3],[346,2,346,3],[347,2,347,3],[349,2,349,4],[339,2,339,3],[340,2,340,3],[341,2,341,3],[342,2,342,3],[343,2,343,3],[344,2,344,3],[356,2,356,3],[357,2,357,3],[358,2,358,3],[359,2,359,3],[360,2,360,3],[361,2,361,3],[350,2,350,3],[351,2,351,3],[352,2,352,3],[353,2,353,3],[354,2,354,3],[355,2,355,3],[368,2,368,3],[369,2,369,3],[370,2,370,3],[371,2,371,3],[372,2,372,3],[373,2,373,3],[362,2,362,3],[363,2,363,3],[364,2,364,3],[365,2,365,3],[366,2,366,3],[367,2,367,3],[380,2,380,3],[381,2,381,3],[382,2,382,3],[383,2,383,3],[384,2,384,3],[385,2,385,3],[374,2,374,3],[375,2,375,3],[376,2,376,3],[377,2,377,3],[378,2,378,3],[379,2,379,3],[392,2,392,3],[393,2,393,3],[394,2,394,3],[395,2,395,3],[396,2,396,3],[397,2,397,3],[386,2,386,3],[387,2,387,3],[388,2,388,3],[389,2,389,3],[390,2,390,3],[391,2,391,3],[404,2,404,3],[405,2,405,3],[406,2,406,3],[407,2,407,3],[408,2,408,3],[409,2,409,3],[398,2,398,3],[399,2,399,3],[400,2,400,3],[401,2,401,3],[402,2,402,3],[403,2,403,3]]}
[null,null,{"$f":"'様式１－１ '!A1","v":0}]
[null,null,"【事業④】支出・収入内訳明細書",null,null,null,null,null,null,null,"支出合計\n(円)",null,null,{"$f":"SUM(T8:T347)","v":0}]
[null,null,"事業名",null,null,null,null,null,null,null,"収入合計\n(円)",null,null,{"$f":"SUM(G352:G410)","v":0},null,null,"対象外経費\n合計",null,{"$f":"SUMIFS($T8:$T347,$U8:$U347,スタート_マスター!A17)","v":0}]
[]
[null,null,null,null,null,null,null,null,null,null,"対象経費\n合計",null,null,{"$f":"N2-S3","v":0}]
[null,null,"【支出の部】",null,null,null,null,null,null,null,null,null,null,null,null,null,null,null,null,null,"（単位：円）"]
[null,null,"No.",null,"区分","費目","内　　訳",null,"（単価）","×","（数量）","（単位）","×","（数量）","（単位）","×","（数量）","（単位）","＝","(金額)","対象外経費",null,"支出合計（費目ごと統一合計用）"]
[null,null,1,null,null,null,null,null,null,null,null,null,null,null,null,null,null,null,null,{"$f":"IF(I8=\"\",0,INT(SUM(PRODUCT(I8,K8,N8,Q8))))","v":0},null,null,"人件費",{"$f":"SUMIFS($T$8:$T$347,$E$8:$E$347,W8)","v":0}]
[null,null,2,null,null,null,null,null,null,null,null,null,null,null,null,null,null,null,null,{"$f":"IF(I9=\"\",0,INT(SUM(PRODUCT(I9,K9,N9,Q9))))","v":0},null,null,"諸謝金",{"$f":"SUMIFS($T$8:$T$347,$E$8:$E$347,W9)","v":0}]
[null,null,3,null,null,null,null,null,null,null,null,null,null,null,null,null,null,null,null,0,null,null,"旅費",{"$f":"SUMIFS($T$8:$T$347,$E$8:$E$347,W10)","v":0}]
[null,null,4,null,null,null,null,null,null,null,null,null,null,null,null,null,null,null,null,0,null,null,"借損料",0]
[null,null,5,null,null,null,null,null,null,null,null,null,null,null,null,null,null,null,null,0,null,null,"消耗品費",{"$f":"SUMIFS($T$8:$T$347,$E$8:$E$347,W12)","v":0}]
[null,null,6,null,null,null,null,null,null,null,null,null,null,null,null,null,null,null,null,0,null,null,"通信運搬費",0]
[null,null,7,null,null,null,null,null,null,null,null,null,null,null,null,null,null,null,null,0,null,null,"雑役務費",0]
[null,null,8,null,null,null,null,null,null,null,null,null,null,null,null,null,null,null,null,0,null,null,"保険料",0]
[null,null,9,null,null,null,null,null,null,null,null,null,null,null,null,null,null,null,null,0,null,null,"消費税相当額",0]
[null,null,10,null,null,null,null,null,null,null,null,null,null,null,null,null,null,null,null,0,null,null,"再委託費",{"$f":"SUMIFS($T$8:$T$347,$E$8:$E$347,W17)","v":0}]
[null,null,11,null,null,null,null,null,null,null,null,null,null,null,null,null,null,null,null,0]
[null,null,12,null,null,null,null,null,null,null,null,null,null,null,null,null,null,null,null,0,null,null,"対象外合計（統一計算用）"]
[null,null,13,null,null,null,null,null,null,null,null,null,null,null,null,null,null,null,null,0,null,null,"人件費",{"$f":"SUMIFS($T$8:$T$347,$E$8:$E$347,W20,$U$8:$U$347,\"対象外\")","v":0}]
[null,null,14,null,null,null,null,null,null,null,null,null,null,null,null,null,null,null,null,0,null,null,"諸謝金",{"$f":"SUMIFS($T$8:$T$347,$E$8:$E$347,W21,$U$8:$U$347,\"対象外\")","v":0}]
[null,null,15,null,null,null,null,null,null,null,null,null,null,null,null,null,null,null,null,0,null,null,"旅費",{"$f":"SUMIFS($T$8:$T$347,$E$8:$E$347,W22,$U$8:$U$347,\"対象外\")","v":0}]
[null,null,16,null,null,null,null,null,null,null,null,null,null,null,null,null,null,null,null,0,null,null,"借損料",0]
[null,null,17,null,null,null,null,null,null,null,null,null,null,null,null,null,null,null,null,0,null,null,"消耗品費",{"$f":"SUMIFS($T$8:$T$347,$E$8:$E$347,W24,$U$8:$U$347,\"対象外\")","v":0}]
[null,null,18,null,null,null,null,null,null,null,null,null,null,null,null,null,null,null,null,0,null,null,"通信運搬費",0]
[null,null,19,null,null,null,null,null,null,null,null,null,null,null,null,null,null,null,null,0,null,null,"雑役務費",0]
[null,null,20,null,null,null,null,null,null,null,null,null,null,null,null,null,null,null,null,0,null,null,"保険料",0]
[null,null,21,null,null,null,null,null,null,null,null,null,null,null,null,null,null,null,null,0,null,null,"消費税相当額",0]
[null,null,22,null,null,null,null,null,null,null,null,null,null,null,null,null,null,null,null,0,null,null,"再委託費",{"$f":"SUMIFS($T$8:$T$347,$E$8:$E$347,W29,$U$8:$U$347,\"対象外\")","v":0}]
[null,null,23,null,null,null,null,null,null,null,null,null,null,null,null,null,null,null,null,0]
[null,null,24,null,null,null,null,null,null,null,null,null,null,null,null,null,null,null,null,0]
[null,null,25,null,null,null,null,null,null,null,null,null,null,null,null,null,null,null,null,0]
[null,null,26,null,null,null,null,null,null,null,null,null,null,null,null,null,null,null,null,0]
[null,null,27,null,null,null,null,null,null,null,null,null,null,null,null,null,null,null,null,0,null,null,"再委託費"]
[null,null,28,null,null,null,null,null,null,null,null,null,null,null,null,null,null,null,null,0,null,null,"人件費",{"$f":"SUMIFS($T$8:$T$347,$E$8:$E$347,$W$34,$F$8:$F$347,W35)","v":0}]
[null,null,29,null,null,null,null,null,null,null,null,null,null,null,null,null,null,null,null,0,null,null,"諸謝金",{"$f":"SUMIFS($T$8:$T$347,$E$8:$E$347,$W$34,$F$8:$F$347,W36)","v":0}]
[null,null,30,null,null,null,null,null,null,null,null,null,null,null,null,null,null,null,null,0,null,null,"旅費",0]
[null,null,31,null,null,null,null,null,null,null,null,null,null,null,null,null,null,null,null,0,null,null,"借損料",0]
[null,null,32,null,null,null,null,null,null,null,null,null,null,null,null,null,null,null,null,0,null,null,"消耗品費",0]
[null,null,33,null,null,null,null,null,null,null,null,null,null,null,null,null,null,null,null,0,null,null,"通信運搬費",0]
[null,null,34,null,null,null,null,null,null,null,null,null,null,null,null,null,null,null,null,0,null,null,"雑役務費",0]
[null,null,35,null,null,null,null,null,null,null,null,null,null,null,null,null,null,null,null,0,null,null,"保険料",0]
[null,null,36,null,null,null,null,null,null,null,null,null,null,null,null,null,null,null,null,0,null,null,"消費税相当額",0]
[null,null,37,null,null,null,null,null,null,null,null,null,null,null,null,null,null,null,null,0,null,null,"一般管理費",0]
[null,null,38,null,null,null,null,null,null,null,null,null,null,null,null,null,null,null,null,0]
[null,null,39,null,null,null,null,null,null,null,null,null,null,null,null,null,null,null,null,0,null,null,"再委託費対象外"]
[null,null,40,null,null,null,null,null,null,null,null,null,null,null,null,null,null,null,null,0,null,null,"人件費",{"$f":"SUMIFS($T$8:$T$347,$E$8:$E$347,$W$34,$F$8:$F$347,W47,$U$8:$U$347,\"対象外\")","v":0}]
[null,null,41,null,null,null,null,null,null,null,null,null,null,null,null,null,null,null,null,0,null,null,"諸謝金",{"$f":"SUMIFS($T$8:$T$347,$E$8:$E$347,$W$34,$F$8:$F$347,W48,$U$8:$U$347,\"対象外\")","v":0}]
[null,null,42,null,null,null,null,null,null,null,null,null,null,null,null,null,null,null,null,0,null,null,"旅費",0]
[null,null,43,null,null,null,null,null,null,null,null,null,null,null,null,null,null,null,null,0,null,null,"借損料",0]
[null,null,44,null,null,null,null,null,null,null,null,null,null,null,null,null,null,null,null,0,null,null,"消耗品費",0]
[null,null,45,null,null,null,null,null,null,null,null,null,null,null,null,null,null,null,null,0,null,null,"通信運搬費",0]
[null,null,46,null,null,null,null,null,null,null,null,null,null,null,null,null,null,null,null,0,null,null,"雑役務費",0]
[null,null,47,null,null,null,null,null,null,null,null,null,null,null,null,null,null,null,null,0,null,null,"保険料",0]
[null,null,48,null,null,null,null,null,null,null,null,null,null,null,null,null,null,null,null,0,null,null,"消費税相当額",0]
[null,null,49,null,null,null,null,null,null,null,null,null,null,null,null,null,null,null,null,0,null,null,"一般管理費",0]
[null,null,50,null,null,null,null,null,null,null,null,null,null,null,null,null,null,null,null,0]
[null,null,51,null,null,null,null,null,null,null,null,null,null,null,null,null,null,null,null,0]
[null,null,52,null,null,null,null,null,null,null,null,null,null,null,null,null,null,null,null,0]
[null,null,53,null,null,null,null,null,null,null,null,null,null,null,null,null,null,null,null,0]
[null,null,54,null,null,null,null,null,null,null,null,null,null,null,null,null,null,null,null,0]
[null,null,55,null,null,null,null,null,null,null,null,null,null,null,null,null,null,null,null,0]
[null,null,56,null,null,null,null,null,null,null,null,null,null,null,null,null,null,null,null,0]
[null,null,57,null,null,null,null,null,null,null,null,null,null,null,null,null,null,null,null,0]
[null,null,58,null,null,null,null,null,null,null,null,null,null,null,null,null,null,null,null,0]
[null,null,59,null,null,null,null,null,null,null,null,null,null,null,null,null,null,null,null,0]
[null,null,60,null,null,null,null,null,null,null,null,null,null,null,null,null,null,null,null,0]
[null,null,61,null,null,null,null,null,null,null,null,null,null,null,null,null,null,null,null,0]
[null,null,62,null,null,null,null,null,null,null,null,null,null,null,null,null,null,null,null,0]
[null,null,63,null,null,null,null,null,null,null,null,null,null,null,null,null,null,null,null,0]
[null,null,64,null,null,null,null,null,null,null,null,null,null,null,null,null,null,null,null,0]
[null,null,65,null,null,null,null,null,null,null,null,null,null,null,null,null,null,null,null,0]
[null,null,66,null,null,null,null,null,null,null,null,null,null,null,null,null,null,null,null,{"$f":"IF(I73=\"\",0,INT(SUM(PRODUCT(I73,K73,N73,Q73))))","v":0}]
[null,null,67,null,null,null,null,null,null,null,null,null,null,null,null,null,null,null,null,0]
[null,null,68,null,null,null,null,null,null,null,null,null,null,null,null,null,null,null,null,0]
[null,null,69,null,null,null,null,null,null,null,null,null,null,null,null,null,null,null,null,0]
[null,null,70,null,null,null,null,null,null,null,null,null,null,null,null,null,null,null,null,0]
[null,null,71,null,null,null,null,null,null,null,null,null,null,null,null,null,null,null,null,0]
[null,null,72,null,null,null,null,null,null,null,null,null,null,null,null,null,null,null,null,0]
[null,null,73,null,null,null,null,null,null,null,null,null,null,null,null,null,null,null,null,0]
[null,null,74,null,null,null,null,null,null,null,null,null,null,null,null,null,null,null,null,0]
[null,null,75,null,null,null,null,null,null,null,null,null,null,null,null,null,null,null,null,0]
[null,null,76,null,null,null,null,null,null,null,null,null,null,null,null,null,null,null,null,0]
[null,null,77,null,null,null,null,null,null,null,null,null,null,null,null,null,null,null,null,0]
[null,null,78,null,null,null,null,null,null,null,null,null,null,null,null,null,null,null,null,0]
[null,null,79,null,null,null,null,null,null,null,null,null,null,null,null,null,null,null,null,0]
[null,null,80,null,null,null,null,null,null,null,null,null,null,null,null,null,null,null,null,0]
[null,null,81,null,null,null,null,null,null,null,null,null,null,null,null,null,null,null,null,0]
[null,null,82,null,null,null,null,null,null,null,null,null,null,null,null,null,null,null,null,0]
[null,null,83,null,null,null,null,null,null,null,null,null,null,null,null,null,null,null,null,0]
[null,null,84,null,null,null,null,null,null,null,null,null,null,null,null,null,null,null,null,0]
[null,null,85,null,null,null,null,null,null,null,null,null,null,null,null,null,null,null,null,0]
[null,null,86,null,null,null,null,null,null,null,null,null,null,null,null,null,null,null,null,0]
[null,null,87,null,null,null,null,null,null,null,null,null,null,null,null,null,null,null,null,0]
[null,null,88,null,null,null,null,null,null,null,null,null,null,null,null,null,null,null,null,0]
[null,null,89,null,null,null,null,null,null,null,null,null,null,null,null,null,null,null,null,0]
[null,null,90,null,null,null,null,null,null,null,null,null,null,null,null,null,null,null,null,0]
[null,null,91,null,null,null,null,null,null,null,null,null,null,null,null,null,null,null,null,0]
[null,null,92,null,null,null,null,null,null,null,null,null,null,null,null,null,null,null,null,0]
[null,null,93,null,null,null,null,null,null,null,null,null,null,null,null,null,null,null,null,0]
[null,null,94,null,null,null,null,null,null,null,null,null,null,null,null,null,null,null,null,0]
[null,null,95,null,null,null,null,null,null,null,null,null,null,null,null,null,null,null,null,0]
[null,null,96,null,null,null,null,null,null,null,null,null,null,null,null,null,null,null,null,0]
[null,null,97,null,null,null,null,null,null,null,null,null,null,null,null,null,null,null,null,0]
[null,null,98,null,null,null,null,null,null,null,null,null,null,null,null,null,null,null,null,0]
[null,null,99,null,null,null,null,null,null,null,null,null,null,null,null,null,null,null,null,0]
[null,null,100,null,null,null,null,null,null,null,null,null,null,null,null,null,null,null,null,0]
[null,null,101,null,null,null,null,null,null,null,null,null,null,null,null,null,null,null,null,0]
[null,null,102,null,null,null,null,null,null,null,null,null,null,null,null,null,null,null,null,0]
[null,null,103,null,null,null,null,null,null,null,null,null,null,null,null,null,null,null,null,0]
[null,null,104,null,null,null,null,null,null,null,null,null,null,null,null,null,null,null,null,0]
[null,null,105,null,null,null,null,null,null,null,null,null,null,null,null,null,null,null,null,0]
[null,null,106,null,null,null,null,null,null,null,null,null,null,null,null,null,null,null,null,0]
[null,null,107,null,null,null,null,null,null,null,null,null,null,null,null,null,null,null,null,0]
[null,null,108,null,null,null,null,null,null,null,null,null,null,null,null,null,null,null,null,0]
[null,null,109,null,null,null,null,null,null,null,null,null,null,null,null,null,null,null,null,0]
[null,null,110,null,null,null,null,null,null,null,null,null,null,null,null,null,null,null,null,0]
[null,null,111,null,null,null,null,null,null,null,null,null,null,null,null,null,null,null,null,0]
[null,null,112,null,null,null,null,null,null,null,null,null,null,null,null,null,null,null,null,0]
[null,null,113,null,null,null,null,null,null,null,null,null,null,null,null,null,null,null,null,0]
[null,null,114,null,null,null,null,null,null,null,null,null,null,null,null,null,null,null,null,0]
[null,null,115,null,null,null,null,null,null,null,null,null,null,null,null,null,null,null,null,0]
[null,null,116,null,null,null,null,null,null,null,null,null,null,null,null,null,null,null,null,0]
[null,null,117,null,null,null,null,null,null,null,null,null,null,null,null,null,null,null,null,0]
[null,null,118,null,null,null,null,null,null,null,null,null,null,null,null,null,null,null,null,0]
[null,null,119,null,null,null,null,null,null,null,null,null,null,null,null,null,null,null,null,0]
[null,null,120,null,null,null,null,null,null,null,null,null,null,null,null,null,null,null,null,0]
[null,null,121,null,null,null,null,null,null,null,null,null,null,null,null,null,null,null,null,0]
[null,null,122,null,null,null,null,null,null,null,null,null,null,null,null,null,null,null,null,0]
[null,null,123,null,null,null,null,null,null,null,null,null,null,null,null,null,null,null,null,0]
[null,null,124,null,null,null,null,null,null,null,null,null,null,null,null,null,null,null,null,0]
[null,null,125,null,null,null,null,null,null,null,null,null,null,null,null,null,null,null,null,0]
[null,null,126,null,null,null,null,null,null,null,null,null,null,null,null,null,null,null,null,0]
[null,null,127,null,null,null,null,null,null,null,null,null,null,null,null,null,null,null,null,0]
[null,null,128,null,null,null,null,null,null,null,null,null,null,null,null,null,null,null,null,0]
[null,null,129,null,null,null,null,null,null,null,null,null,null,null,null,null,null,null,null,0]
[null,null,130,null,null,null,null,null,null,null,null,null,null,null,null,null,null,null,null,{"$f":"IF(I137=\"\",0,INT(SUM(PRODUCT(I137,K137,N137,Q137))))","v":0}]
[null,null,131,null,null,null,null,null,null,null,null,null,null,null,null,null,null,null,null,0]
[null,null,132,null,null,null,null,null,null,null,null,null,null,null,null,null,null,null,null,0]
[null,null,133,null,null,null,null,null,null,null,null,null,null,null,null,null,null,null,null,0]
[null,null,134,null,null,null,null,null,null,null,null,null,null,null,null,null,null,null,null,0]
[null,null,135,null,null,null,null,null,null,null,null,null,null,null,null,null,null,null,null,0]
[null,null,136,null,null,null,null,null,null,null,null,null,null,null,null,null,null,null,null,0]
[null,null,137,null,null,null,null,null,null,null,null,null,null,null,null,null,null,null,null,0]
[null,null,138,null,null,null,null,null,null,null,null,null,null,null,null,null,null,null,null,0]
[null,null,139,null,null,null,null,null,null,null,null,null,null,null,null,null,null,null,null,0]
[null,null,140,null,null,null,null,null,null,null,null,null,null,null,null,null,null,null,null,0]
[null,null,141,null,null,null,null,null,null,null,null,null,null,null,null,null,null,null,null,0]
[null,null,142,null,null,null,null,null,null,null,null,null,null,null,null,null,null,null,null,0]
[null,null,143,null,null,null,null,null,null,null,null,null,null,null,null,null,null,null,null,0]
[null,null,144,null,null,null,null,null,null,null,null,null,null,null,null,null,null,null,null,0]
[null,null,145,null,null,null,null,null,null,null,null,null,null,null,null,null,null,null,null,0]
[null,null,146,null,null,null,null,null,null,null,null,null,null,null,null,null,null,null,null,0]
[null,null,147,null,null,null,null,null,null,null,null,null,null,null,null,null,null,null,null,0]
[null,null,148,null,null,null,null,null,null,null,null,null,null,null,null,null,null,null,null,0]
[null,null,149,null,null,null,null,null,null,null,null,null,null,null,null,null,null,null,null,0]
[null,null,150,null,null,null,null,null,null,null,null,null,null,null,null,null,null,null,null,0]
[null,null,151,null,null,null,null,null,null,null,null,null,null,null,null,null,null,null,null,0]
[null,null,152,null,null,null,null,null,null,null,null,null,null,null,null,null,null,null,null,0]
[null,null,153,null,null,null,null,null,null,null,null,null,null,null,null,null,null,null,null,0]
[null,null,154,null,null,null,null,null,null,null,null,null,null,null,null,null,null,null,null,0]
[null,null,155,null,null,null,null,null,null,null,null,null,null,null,null,null,null,null,null,0]
[null,null,156,null,null,null,null,null,null,null,null,null,null,null,null,null,null,null,null,0]
[null,null,157,null,null,null,null,null,null,null,null,null,null,null,null,null,null,null,null,0]
[null,null,158,null,null,null,null,null,null,null,null,null,null,null,null,null,null,null,null,0]
[null,null,159,null,null,null,null,null,null,null,null,null,null,null,null,null,null,null,null,0]
[null,null,160,null,null,null,null,null,null,null,null,null,null,null,null,null,null,null,null,0]
[null,null,161,null,null,null,null,null,null,null,null,null,null,null,null,null,null,null,null,0]
[null,null,162,null,null,null,null,null,null,null,null,null,null,null,null,null,null,null,null,0]
[null,null,163,null,null,null,null,null,null,null,null,null,null,null,null,null,null,null,null,0]
[null,null,164,null,null,null,null,null,null,null,null,null,null,null,null,null,null,null,null,0]
[null,null,165,null,null,null,null,null,null,null,null,null,null,null,null,null,null,null,null,0]
[null,null,166,null,null,null,null,null,null,null,null,null,null,null,null,null,null,null,null,0]
[null,null,167,null,null,null,null,null,null,null,null,null,null,null,null,null,null,null,null,0]
[null,null,168,null,null,null,null,null,null,null,null,null,null,null,null,null,null,null,null,0]
[null,null,169,null,null,null,null,null,null,null,null,null,null,null,null,null,null,null,null,0]
[null,null,170,null,null,null,null,null,null,null,null,null,null,null,null,null,null,null,null,0]
[null,null,171,null,null,null,null,null,null,null,null,null,null,null,null,null,null,null,null,0]
[null,null,172,null,null,null,null,null,null,null,null,null,null,null,null,null,null,null,null,0]
[null,null,173,null,null,null,null,null,null,null,null,null,null,null,null,null,null,null,null,0]
[null,null,174,null,null,null,null,null,null,null,null,null,null,null,null,null,null,null,null,0]
[null,null,175,null,null,null,null,null,null,null,null,null,null,null,null,null,null,null,null,0]
[null,null,176,null,null,null,null,null,null,null,null,null,null,null,null,null,null,null,null,0]
[null,null,177,null,null,null,null,null,null,null,null,null,null,null,null,null,null,null,null,0]
[null,null,178,null,null,null,null,null,null,null,null,null,null,null,null,null,null,null,null,0]
[null,null,179,null,null,null,null,null,null,null,null,null,null,null,null,null,null,null,null,0]
[null,null,180,null,null,null,null,null,null,null,null,null,null,null,null,null,null,null,null,0]
[null,null,181,null,null,null,null,null,null,null,null,null,null,null,null,null,null,null,null,0]
[null,null,182,null,null,null,null,null,null,null,null,null,null,null,null,null,null,null,null,0]
[null,null,183,null,null,null,null,null,null,null,null,null,null,null,null,null,null,null,null,0]
[null,null,184,null,null,null,null,null,null,null,null,null,null,null,null,null,null,null,null,0]
[null,null,185,null,null,null,null,null,null,null,null,null,null,null,null,null,null,null,null,0]
[null,null,186,null,null,null,null,null,null,null,null,null,null,null,null,null,null,null,null,0]
[null,null,187,null,null,null,null,null,null,null,null,null,null,null,null,null,null,null,null,0]
[null,null,188,null,null,null,null,null,null,null,null,null,null,null,null,null,null,null,null,0]
[null,null,189,null,null,null,null,null,null,null,null,null,null,null,null,null,null,null,null,0]
[null,null,190,null,null,null,null,null,null,null,null,null,null,null,null,null,null,null,null,0]
[null,null,191,null,null,null,null,null,null,null,null,null,null,null,null,null,null,null,null,0]
[null,null,192,null,null,null,null,null,null,null,null,null,null,null,null,null,null,null,null,0]
[null,null,193,null,null,null,null,null,null,null,null,null,null,null,null,null,null,null,null,0]
[null,null,194,null,null,null,null,null,null,null,null,null,null,null,null,null,null,null,null,{"$f":"IF(I201=\"\",0,INT(SUM(PRODUCT(I201,K201,N201,Q201))))","v":0}]
[null,null,195,null,null,null,null,null,null,null,null,null,null,null,null,null,null,null,null,0]
[null,null,196,null,null,null,null,null,null,null,null,null,null,null,null,null,null,null,null,0]
[null,null,197,null,null,null,null,null,null,null,null,null,null,null,null,null,null,null,null,0]
[null,null,198,null,null,null,null,null,null,null,null,null,null,null,null,null,null,null,null,0]
[null,null,199,null,null,null,null,null,null,null,null,null,null,null,null,null,null,null,null,0]
[null,null,200,null,null,null,null,null,null,null,null,null,null,null,null,null,null,null,null,0]
[null,null,201,null,null,null,null,null,null,null,null,null,null,null,null,null,null,null,null,0]
[null,null,202,null,null,null,null,null,null,null,null,null,null,null,null,null,null,null,null,0]
[null,null,203,null,null,null,null,null,null,null,null,null,null,null,null,null,null,null,null,0]
[null,null,204,null,null,null,null,null,null,null,null,null,null,null,null,null,null,null,null,0]
[null,null,205,null,null,null,null,null,null,null,null,null,null,null,null,null,null,null,null,0]
[null,null,206,null,null,null,null,null,null,null,null,null,null,null,null,null,null,null,null,0]
[null,null,207,null,null,null,null,null,null,null,null,null,null,null,null,null,null,null,null,0]
[null,null,208,null,null,null,null,null,null,null,null,null,null,null,null,null,null,null,null,0]
[null,null,209,null,null,null,null,null,null,null,null,null,null,null,null,null,null,null,null,0]
[null,null,210,null,null,null,null,null,null,null,null,null,null,null,null,null,null,null,null,0]
[null,null,211,null,null,null,null,null,null,null,null,null,null,null,null,null,null,null,null,0]
[null,null,212,null,null,null,null,null,null,null,null,null,null,null,null,null,null,null,null,0]
[null,null,213,null,null,null,null,null,null,null,null,null,null,null,null,null,null,null,null,0]
[null,null,214,null,null,null,null,null,null,null,null,null,null,null,null,null,null,null,null,0]
[null,null,215,null,null,null,null,null,null,null,null,null,null,null,null,null,null,null,null,0]
[null,null,216,null,null,null,null,null,null,null,null,null,null,null,null,null,null,null,null,0]
[null,null,217,null,null,null,null,null,null,null,null,null,null,null,null,null,null,null,null,0]
[null,null,218,null,null,null,null,null,null,null,null,null,null,null,null,null,null,null,null,0]
[null,null,219,null,null,null,null,null,null,null,null,null,null,null,null,null,null,null,null,0]
[null,null,220,null,null,null,null,null,null,null,null,null,null,null,null,null,null,null,null,0]
[null,null,221,null,null,null,null,null,null,null,null,null,null,null,null,null,null,null,null,0]
[null,null,222,null,null,null,null,null,null,null,null,null,null,null,null,null,null,null,null,0]
[null,null,223,null,null,null,null,null,null,null,null,null,null,null,null,null,null,null,null,0]
[null,null,224,null,null,null,null,null,null,null,null,null,null,null,null,null,null,null,null,0]
[null,null,225,null,null,null,null,null,null,null,null,null,null,null,null,null,null,null,null,0]
[null,null,226,null,null,null,null,null,null,null,null,null,null,null,null,null,null,null,null,0]
[null,null,227,null,null,null,null,null,null,null,null,null,null,null,null,null,null,null,null,0]
[null,null,228,null,null,null,null,null,null,null,null,null,null,null,null,null,null,null,null,0]
[null,null,229,null,null,null,null,null,null,null,null,null,null,null,null,null,null,null,null,0]
[null,null,230,null,null,null,null,null,null,null,null,null,null,null,null,null,null,null,null,0]
[null,null,231,null,null,null,null,null,null,null,null,null,null,null,null,null,null,null,null,0]
[null,null,232,null,null,null,null,null,null,null,null,null,null,null,null,null,null,null,null,0]
[null,null,233,null,null,null,null,null,null,null,null,null,null,null,null,null,null,null,null,0]
[null,null,234,null,null,null,null,null,null,null,null,null,null,null,null,null,null,null,null,0]
[null,null,235,null,null,null,null,null,null,null,null,null,null,null,null,null,null,null,null,0]
[null,null,236,null,null,null,null,null,null,null,null,null,null,null,null,null,null,null,null,0]
[null,null,237,null,null,null,null,null,null,null,null,null,null,null,null,null,null,null,null,0]
[null,null,238,null,null,null,null,null,null,null,null,null,null,null,null,null,null,null,null,0]
[null,null,239,null,null,null,null,null,null,null,null,null,null,null,null,null,null,null,null,0]
[null,null,240,null,null,null,null,null,null,null,null,null,null,null,null,null,null,null,null,0]
[null,null,241,null,null,null,null,null,null,null,null,null,null,null,null,null,null,null,null,0]
[null,null,242,null,null,null,null,null,null,null,null,null,null,null,null,null,null,null,null,0]
[null,null,243,null,null,null,null,null,null,null,null,null,null,null,null,null,null,null,null,0]
[null,null,244,null,null,null,null,null,null,null,null,null,null,null,null,null,null,null,null,0]
[null,null,245,null,null,null,null,null,null,null,null,null,null,null,null,null,null,null,null,0]
[null,null,246,null,null,null,null,null,null,null,null,null,null,null,null,null,null,null,null,0]
[null,null,247,null,null,null,null,null,null,null,null,null,null,null,null,null,null,null,null,0]
[null,null,248,null,null,null,null,null,null,null,null,null,null,null,null,null,null,null,null,0]
[null,null,249,null,null,null,null,null,null,null,null,null,null,null,null,null,null,null,null,0]
[null,null,250,null,null,null,null,null,null,null,null,null,null,null,null,null,null,null,null,0]
[null,null,251,null,null,null,null,null,null,null,null,null,null,null,null,null,null,null,null,0]
[null,null,252,null,null,null,null,null,null,null,null,null,null,null,null,null,null,null,null,0]
[null,null,253,null,null,null,null,null,null,null,null,null,null,null,null,null,null,null,null,0]
[null,null,254,null,null,null,null,null,null,null,null,null,null,null,null,null,null,null,null,0]
[null,null,255,null,null,null,null,null,null,null,null,null,null,null,null,null,null,null,null,0]
[null,null,256,null,null,null,null,null,null,null,null,null,null,null,null,null,null,null,null,0]
[null,null,257,null,null,null,null,null,null,null,null,null,null,null,null,null,null,null,null,0]
[null,null,258,null,null,null,null,null,null,null,null,null,null,null,null,null,null,null,null,{"$f":"IF(I265=\"\",0,INT(SUM(PRODUCT(I265,K265,N265,Q265))))","v":0}]
[null,null,259,null,null,null,null,null,null,null,null,null,null,null,null,null,null,null,null,0]
[null,null,260,null,null,null,null,null,null,null,null,null,null,null,null,null,null,null,null,0]
[null,null,261,null,null,null,null,null,null,null,null,null,null,null,null,null,null,null,null,0]
[null,null,262,null,null,null,null,null,null,null,null,null,null,null,null,null,null,null,null,0]
[null,null,263,null,null,null,null,null,null,null,null,null,null,null,null,null,null,null,null,0]
[null,null,264,null,null,null,null,null,null,null,null,null,null,null,null,null,null,null,null,0]
[null,null,265,null,null,null,null,null,null,null,null,null,null,null,null,null,null,null,null,0]
[null,null,266,null,null,null,null,null,null,null,null,null,null,null,null,null,null,null,null,0]
[null,null,267,null,null,null,null,null,null,null,null,null,null,null,null,null,null,null,null,0]
[null,null,268,null,null,null,null,null,null,null,null,null,null,null,null,null,null,null,null,0]
[null,null,269,null,null,null,null,null,null,null,null,null,null,null,null,null,null,null,null,0]
[null,null,270,null,null,null,null,null,null,null,null,null,null,null,null,null,null,null,null,0]
[null,null,271,null,null,null,null,null,null,null,null,null,null,null,null,null,null,null,null,0]
[null,null,272,null,null,null,null,null,null,null,null,null,null,null,null,null,null,null,null,0]
[null,null,273,null,null,null,null,null,null,null,null,null,null,null,null,null,null,null,null,0]
[null,null,274,null,null,null,null,null,null,null,null,null,null,null,null,null,null,null,null,0]
[null,null,275,null,null,null,null,null,null,null,null,null,null,null,null,null,null,null,null,0]
[null,null,276,null,null,null,null,null,null,null,null,null,null,null,null,null,null,null,null,0]
[null,null,277,null,null,null,null,null,null,null,null,null,null,null,null,null,null,null,null,0]
[null,null,278,null,null,null,null,null,null,null,null,null,null,null,null,null,null,null,null,0]
[null,null,279,null,null,null,null,null,null,null,null,null,null,null,null,null,null,null,null,0]
[null,null,280,null,null,null,null,null,null,null,null,null,null,null,null,null,null,null,null,0]
[null,null,281,null,null,null,null,null,null,null,null,null,null,null,null,null,null,null,null,0]
[null,null,282,null,null,null,null,null,null,null,null,null,null,null,null,null,null,null,null,0]
[null,null,283,null,null,null,null,null,null,null,null,null,null,null,null,null,null,null,null,0]
[null,null,284,null,null,null,null,null,null,null,null,null,null,null,null,null,null,null,null,0]
[null,null,285,null,null,null,null,null,null,null,null,null,null,null,null,null,null,null,null,0]
[null,null,286,null,null,null,null,null,null,null,null,null,null,null,null,null,null,null,null,0]
[null,null,287,null,null,null,null,null,null,null,null,null,null,null,null,null,null,null,null,0]
[null,null,288,null,null,null,null,null,null,null,null,null,null,null,null,null,null,null,null,0]
[null,null,289,null,null,null,null,null,null,null,null,null,null,null,null,null,null,null,null,0]
[null,null,290,null,null,null,null,null,null,null,null,null,null,null,null,null,null,null,null,0]
[null,null,291,null,null,null,null,null,null,null,null,null,null,null,null,null,null,null,null,0]
[null,null,292,null,null,null,null,null,null,null,null,null,null,null,null,null,null,null,null,0]
[null,null,293,null,null,null,null,null,null,null,null,null,null,null,null,null,null,null,null,0]
[null,null,294,null,null,null,null,null,null,null,null,null,null,null,null,null,null,null,null,0]
[null,null,295,null,null,null,null,null,null,null,null,null,null,null,null,null,null,null,null,0]
[null,null,296,null,null,null,null,null,null,null,null,null,null,null,null,null,null,null,null,0]
[null,null,297,null,null,null,null,null,null,null,null,null,null,null,null,null,null,null,null,0]
[null,null,298,null,null,null,null,null,null,null,null,null,null,null,null,null,null,null,null,0]
[null,null,299,null,null,null,null,null,null,null,null,null,null,null,null,null,null,null,null,0]
[null,null,300,null,null,null,null,null,null,null,null,null,null,null,null,null,null,null,null,0]
[null,null,301,null,null,null,null,null,null,null,null,null,null,null,null,null,null,null,null,0]
[null,null,302,null,null,null,null,null,null,null,null,null,null,null,null,null,null,null,null,0]
[null,null,303,null,null,null,null,null,null,null,null,null,null,null,null,null,null,null,null,0]
[null,null,304,null,null,null,null,null,null,null,null,null,null,null,null,null,null,null,null,0]
[null,null,305,null,null,null,null,null,null,null,null,null,null,null,null,null,null,null,null,0]
[null,null,306,null,null,null,null,null,null,null,null,null,null,null,null,null,null,null,null,0]
[null,null,307,null,null,null,null,null,null,null,null,null,null,null,null,null,null,null,null,0]
[null,null,308,null,null,null,null,null,null,null,null,null,null,null,null,null,null,null,null,0]
[null,null,309,null,null,null,null,null,null,null,null,null,null,null,null,null,null,null,null,0]
[null,null,310,null,null,null,null,null,null,null,null,null,null,null,null,null,null,null,null,0]
[null,null,311,null,null,null,null,null,null,null,null,null,null,null,null,null,null,null,null,0]
[null,null,312,null,null,null,null,null,null,null,null,null,null,null,null,null,null,null,null,0]
[null,null,313,null,null,null,null,null,null,null,null,null,null,null,null,null,null,null,null,0]
[null,null,314,null,null,null,null,null,null,null,null,null,null,null,null,null,null,null,null,0]
[null,null,315,null,null,null,null,null,null,null,null,null,null,null,null,null,null,null,null,0]
[null,null,316,null,null,null,null,null,null,null,null,null,null,null,null,null,null,null,null,0]
[null,null,317,null,null,null,null,null,null,null,null,null,null,null,null,null,null,null,null,0]
[null,null,318,null,null,null,null,null,null,null,null,null,null,null,null,null,null,null,null,0]
[null,null,319,null,null,null,null,null,null,null,null,null,null,null,null,null,null,null,null,0]
[null,null,320,null,null,null,null,null,null,null,null,null,null,null,null,null,null,null,null,0]
[null,null,321,null,null,null,null,null,null,null,null,null,null,null,null,null,null,null,null,0]
[null,null,322,null,null,null,null,null,null,null,null,null,null,null,null,null,null,null,null,{"$f":"IF(I329=\"\",0,INT(SUM(PRODUCT(I329,K329,N329,Q329))))","v":0}]
[null,null,323,null,null,null,null,null,null,null,null,null,null,null,null,null,null,null,null,0]
[null,null,324,null,null,null,null,null,null,null,null,null,null,null,null,null,null,null,null,0]
[null,null,325,null,null,null,null,null,null,null,null,null,null,null,null,null,null,null,null,0]
[null,null,326,null,null,null,null,null,null,null,null,null,null,null,null,null,null,null,null,0]
[null,null,327,null,null,null,null,null,null,null,null,null,null,null,null,null,null,null,null,0]
[null,null,328,null,null,null,null,null,null,null,null,null,null,null,null,null,null,null,null,0]
[null,null,329,null,null,null,null,null,null,null,null,null,null,null,null,null,null,null,null,0]
[null,null,330,null,null,null,null,null,null,null,null,null,null,null,null,null,null,null,null,0]
[null,null,331,null,null,null,null,null,null,null,null,null,null,null,null,null,null,null,null,0]
[null,null,332,null,null,null,null,null,null,null,null,null,null,null,null,null,null,null,null,0]
[null,null,333,null,null,null,null,null,null,null,null,null,null,null,null,null,null,null,null,0]
[null,null,334,null,null,null,null,null,null,null,null,null,null,null,null,null,null,null,null,0]
[null,null,335,null,null,null,null,null,null,null,null,null,null,null,null,null,null,null,null,0]
[null,null,336,null,null,null,null,null,null,null,null,null,null,null,null,null,null,null,null,0]
[null,null,337,null,null,null,null,null,null,null,null,null,null,null,null,null,null,null,null,0]
[null,null,338,null,null,null,null,null,null,null,null,null,null,null,null,null,null,null,null,0]
[null,null,339,null,null,null,null,null,null,null,null,null,null,null,null,null,null,null,null,0]
[null,null,340,null,null,null,null,null,null,null,null,null,null,null,null,null,null,null,null,0]
[]
[]
[null,null,"【収入の部】",null,null,null,"（単位：円）"]
[null,null,"No.",null,"費目","内　　訳","金  額",null,null,null,null,null,null,null,null,null,null,null,null,null,null,null,"収入合計（統一用）"]
[null,null,1,null,null,null,null,null,null,null,null,null,null,null,null,null,null,null,null,null,null,null,"自己負担金",{"$f":"SUMIFS($G$352:$G$410,$E$352:$E$410,W352)","v":0}]
[null,null,2,null,null,null,null,null,null,null,null,null,null,null,null,null,null,null,null,null,null,null,"助成金等",{"$f":"SUMIFS($G$352:$G$410,$E$352:$E$410,W353)","v":0}]
[null,null,3,null,null,null,null,null,null,null,null,null,null,null,null,null,null,null,null,null,null,null,"その他収入",0]
[null,null,4]
[null,null,5]
[null,null,6]
[null,null,7]
[null,null,8]
[null,null,9]
[null,null,10]
[null,null,11]
[null,null,12]
[null,null,13]
[null,null,14]
[null,null,15]
[null,null,16]
[null,null,17]
[null,null,18]
[null,null,19]
[null,null,20]
[null,null,21]
[null,null,22]
[null,null,23]
[null,null,24]
[null,null,25]
[null,null,26]
[null,null,27]
[null,null,28]
[null,null,29]
[null,null,30]
[null,null,31]
[null,null,32]
[null,null,33]
[null,null,34]
[null,null,35]
[null,null,36]
[null,null,37]
[null,null,38]
[null,null,39]
[null,null,40]
[null,null,41]
[null,null,42]
[null,null,43]
[null,null,44]
[null,null,45]
[null,null,46]
[null,null,47]
[null,null,48]
[null,null,49]
[null,null,50]
[null,null,51]
[null,null,52]
[null,null,53]
[null,null,54,null,null,null,null,null,null,null,null,null,null,null,null,null,null,null,null,null,null,null,"（統合計算用）"]
[null,null,55,null,null,null,null,null,null,null,null,null,null,null,null,null,null,null,null,null,null,null,"自己負担金",{"$f":"SUMIFS(G352:G410,E352:E410,W406)","v":0}]
[null,null,56,null,null,null,null,null,null,null,null,null,null,null,null,null,null,null,null,null,null,null,"助成金等",{"$f":"SUMIFS(G352:G410,E352:E410,W407)","v":0}]
[null,null,57,null,null,null,null,null,null,null,null,null,null,null,null,null,null,null,null,null,null,null,"その他収入",{"$f":"SUMIFS(G352:G410,E352:E410,W408)","v":0}]
[null,null,58]
[null,null,59]

{"sheet":"【事業⑤】支出・収入内訳明細書","index":12,"n_rows":410,"n_cols":24,"rows_kept":410,"cut":false,"hidden":false,"merged":[[0,2,0,6],[1,2,1,6],[1,10,1,12],[1,13,1,19],[2,2,2,3],[2,4,2,6],[2,10,2,12],[2,13,2,15],[2,16,2,17],[2,18,2,19],[9,2,9,3],[10,2,10,3],[11,2,11,3],[12,2,12,3],[13,2,13,3],[14,2,14,3],[4,10,4,12],[4,13,4,19],[5,2,5,5],[6,2,6,3],[7,2,7,3],[8,2,8,3],[21,2,21,3],[22,2,22,3],[23,2,23,3],[24,2,24,3],[25,2,25,3],[26,2,26,3],[15,2,15,3],[16,2,16,3],[17,2,17,3],[18,2,18,3],[19,2,19,3],[20,2,20,3],[33,2,33,3],[34,2,34,3],[35,2,35,3],[36,2,36,3],[37,2,37,3],[38,2,38,3],[27,2,27,3],[28,2,28,3],[29,2,29,3],[30,2,30,3],[31,2,31,3],[32,2,32,3],[45,2,45,3],[46,2,46,3],[47,2,47,3],[48,2,48,3],[49,2,49,3],[50,2,50,3],[39,2,39,3],[40,2,40,3],[41,2,41,3],[42,2,42,3],[43,2,43,3],[44,2,44,3],[57,2,57,3],[58,2,58,3],[59,2,59,3],[60,2,60,3],[61,2,61,3],[62,2,62,3],[51,2,51,3],[52,2,52,3],[53,2,53,3],[54,2,54,3],[55,2,55,3],[56,2,56,3],[69,2,69,3],[70,2,70,3],[71,2,71,3],[72,2,72,3],[73,2,73,3],[74,2,74,3],[63,2,63,3],[64,2,64,3],[65,2,65,3],[66,2,66,3],[67,2,67,3],[68,2,68,3],[81,2,81,3],[82,2,82,3],[83,2,83,3],[84,2,84,3],[85,2,85,3],[86,2,86,3],[75,2,75,3],[76,2,76,3],[77,2,77,3],[78,2,78,3],[79,2,79,3],[80,2,80,3],[93,2,93,3],[94,2,94,3],[95,2,95,3],[96,2,96,3],[97,2,97,3],[98,2,98,3],[87,2,87,3],[88,2,88,3],[89,2,89,3],[90,2,90,3],[91,2,91,3],[92,2,92,3],[105,2,105,3],[106,2,106,3],[107,2,107,3],[108,2,108,3],[109,2,109,3],[110,2,110,3],[99,2,99,3],[100,2,100,3],[101,2,101,3],[102,2,102,3],[103,2,103,3],[104,2,104,3],[117,2,117,3],[118,2,118,3],[119,2,119,3],[120,2,120,3],[121,2,121,3],[122,2,122,3],[111,2,111,3],[112,2,112,3],[113,2,113,3],[114,2,114,3],[115,2,115,3],[116,2,116,3],[129,2,129,3],[130,2,130,3],[131,2,131,3],[132,2,132,3],[133,2,133,3],[134,2,134,3],[123,2,123,3],[124,2,124,3],[125,2,125,3],[126,2,126,3],[127,2,127,3],[128,2,128,3],[141,2,141,3],[142,2,142,3],[143,2,143,3],[144,2,144,3],[145,2,145,3],[146,2,146,3],[135,2,135,3],[136,2,136,3],[137,2,137,3],[138,2,138,3],[139,2,139,3],[140,2,140,3],[153,2,153,3],[154,2,154,3],[155,2,155,3],[156,2,156,3],[157,2,157,3],[158,2,158,3],[147,2,147,3],[148,2,148,3],[149,2,149,3],[150,2,150,3],[151,2,151,3],[152,2,152,3],[165,2,165,3],[166,2,166,3],[167,2,167,3],[168,2,168,3],[169,2,169,3],[170,2,170,3],[159,2,159,3],[160,2,160,3],[161,2,161,3],[162,2,162,3],[163,2,163,3],[164,2,164,3],[177,2,177,3],[178,2,178,3],[179,2,179,3],[180,2,180,3],[181,2,181,3],[182,2,182,3],[171,2,171,3],[172,2,172,3],[173,2,173,3],[174,2,174,3],[175,2,175,3],[176,2,176,3],[189,2,189,3],[190,2,190,3],[191,2,191,3],[192,2,192,3],[193,2,193,3],[194,2,194,3],[183,2,183,3],[184,2,184,3],[185,2,185,3],[186,2,186,3],[187,2,187,3],[188,2,188,3],[201,2,201,3],[202,2,202,3],[203,2,203,3],[204,2,204,3],[205,2,205,3],[206,2,206,3],[195,2,195,3],[196,2,196,3],[197,2,197,3],[198,2,198,3],[199,2,199,3],[200,2,200,3],[213,2,213,3],[214,2,214,3],[215,2,215,3],[216,2,216,3],[217,2,217,3],[218,2,218,3],[207,2,207,3],[208,2,208,3],[209,2,209,3],[210,2,210,3],[211,2,211,3],[212,2,212,3],[225,2,225,3],[226,2,226,3],[227,2,227,3],[228,2,228,3],[229,2,229,3],[230,2,230,3],[219,2,219,3],[220,2,220,3],[221,2,221,3],[222,2,222,3],[223,2,223,3],[224,2,224,3],[237,2,237,3],[238,2,238,3],[239,2,239,3],[240,2,240,3],[241,2,241,3],[242,2,242,3],[231,2,231,3],[232,2,232,3],[233,2,233,3],[234,2,234,3],[235,2,235,3],[236,2,236,3],[249,2,249,3],[250,2,250,3],[251,2,251,3],[252,2,252,3],[253,2,253,3],[254,2,254,3],[243,2,243,3],[244,2,244,3],[245,2,245,3],[246,2,246,3],[247,2,247,3],[248,2,248,3],[261,2,261,3],[262,2,262,3],[263,2,263,3],[264,2,264,3],[265,2,265,3],[266,2,266,3],[255,2,255,3],[256,2,256,3],[257,2,257,3],[258,2,258,3],[259,2,259,3],[260,2,260,3],[273,2,273,3],[274,2,274,3],[275,2,275,3],[276,2,276,3],[277,2,277,3],[278,2,278,3],[267,2,267,3],[268,2,268,3],[269,2,269,3],[270,2,270,3],[271,2,271,3],[272,2,272,3],[285,2,285,3],[286,2,286,3],[287,2,287,3],[288,2,288,3],[289,2,289,3],[290,2,290,3],[279,2,279,3],[280,2,280,3],[281,2,281,3],[282,2,282,3],[283,2,283,3],[284,2,284,3],[297,2,297,3],[298,2,298,3],[299,2,299,3],[300,2,300,3],[301,2,301,3],[302,2,302,3],[291,2,291,3],[292,2,292,3],[293,2,293,3],[294,2,294,3],[295,2,295,3],[296,2,296,3],[309,2,309,3],[310,2,310,3],[311,2,311,3],[312,2,312,3],[313,2,313,3],[314,2,314,3],[303,2,303,3],[304,2,304,3],[305,2,305,3],[306,2,306,3],[307,2,307,3],[308,2,308,3],[321,2,321,3],[322,2,322,3],[323,2,323,3],[324,2,324,3],[325,2,325,3],[326,2,326,3],[315,2,315,3],[316,2,316,3],[317,2,317,3],[318,2,318,3],[319,2,319,3],[320,2,320,3],[333,2,333,3],[334,2,334,3],[335,2,335,3],[336,2,336,3],[337,2,337,3],[338,2,338,3],[327,2,327,3],[328,2,328,3],[329,2,329,3],[330,2,330,3],[331,2,331,3],[332,2,332,3],[345,2,345,3],[346,2,346,3],[347,2,347,3],[349,2,349,4],[339,2,339,3],[340,2,340,3],[341,2,341,3],[342,2,342,3],[343,2,343,3],[344,2,344,3],[356,2,356,3],[357,2,357,3],[358,2,358,3],[359,2,359,3],[360,2,360,3],[361,2,361,3],[350,2,350,3],[351,2,351,3],[352,2,352,3],[353,2,353,3],[354,2,354,3],[355,2,355,3],[368,2,368,3],[369,2,369,3],[370,2,370,3],[371,2,371,3],[372,2,372,3],[373,2,373,3],[362,2,362,3],[363,2,363,3],[364,2,364,3],[365,2,365,3],[366,2,366,3],[367,2,367,3],[380,2,380,3],[381,2,381,3],[382,2,382,3],[383,2,383,3],[384,2,384,3],[385,2,385,3],[374,2,374,3],[375,2,375,3],[376,2,376,3],[377,2,377,3],[378,2,378,3],[379,2,379,3],[392,2,392,3],[393,2,393,3],[394,2,394,3],[395,2,395,3],[396,2,396,3],[397,2,397,3],[386,2,386,3],[387,2,387,3],[388,2,388,3],[389,2,389,3],[390,2,390,3],[391,2,391,3],[404,2,404,3],[405,2,405,3],[406,2,406,3],[407,2,407,3],[408,2,408,3],[409,2,409,3],[398,2,398,3],[399,2,399,3],[400,2,400,3],[401,2,401,3],[402,2,402,3],[403,2,403,3]]}
[null,null,{"$f":"'様式１－１ '!A1","v":0}]
[null,null,"【事業⑤】支出・収入内訳明細書",null,null,null,null,null,null,null,"支出合計\n(円)",null,null,{"$f":"SUM(T8:T347)","v":0}]
[null,null,"事業名",null,null,null,null,null,null,null,"収入合計\n(円)",null,null,{"$f":"SUM(G352:G410)","v":0},null,null,"対象外経費\n合計",null,{"$f":"SUMIFS($T8:$T347,$U8:$U347,スタート_マスター!A17)","v":0}]
[]
[null,null,null,null,null,null,null,null,null,null,"対象経費\n合計",null,null,{"$f":"N2-S3","v":0}]
[null,null,"【支出の部】",null,null,null,null,null,null,null,null,null,null,null,null,null,null,null,null,null,"（単位：円）"]
[null,null,"No.",null,"区分","費目","内　　訳",null,"（単価）","×","（数量）","（単位）","×","（数量）","（単位）","×","（数量）","（単位）","＝","(金額)","対象外経費",null,"支出合計（費目ごと統一合計用）"]
[null,null,1,null,null,null,null,null,null,null,null,null,null,null,null,null,null,null,null,{"$f":"IF(I8=\"\",0,INT(SUM(PRODUCT(I8,K8,N8,Q8))))","v":0},null,null,"人件費",{"$f":"SUMIFS($T$8:$T$347,$E$8:$E$347,W8)","v":0}]
[null,null,2,null,null,null,null,null,null,null,null,null,null,null,null,null,null,null,null,{"$f":"IF(I9=\"\",0,INT(SUM(PRODUCT(I9,K9,N9,Q9))))","v":0},null,null,"諸謝金",{"$f":"SUMIFS($T$8:$T$347,$E$8:$E$347,W9)","v":0}]
[null,null,3,null,null,null,null,null,null,null,null,null,null,null,null,null,null,null,null,0,null,null,"旅費",{"$f":"SUMIFS($T$8:$T$347,$E$8:$E$347,W10)","v":0}]
[null,null,4,null,null,null,null,null,null,null,null,null,null,null,null,null,null,null,null,0,null,null,"借損料",0]
[null,null,5,null,null,null,null,null,null,null,null,null,null,null,null,null,null,null,null,0,null,null,"消耗品費",{"$f":"SUMIFS($T$8:$T$347,$E$8:$E$347,W12)","v":0}]
[null,null,6,null,null,null,null,null,null,null,null,null,null,null,null,null,null,null,null,0,null,null,"通信運搬費",0]
[null,null,7,null,null,null,null,null,null,null,null,null,null,null,null,null,null,null,null,0,null,null,"雑役務費",0]
[null,null,8,null,null,null,null,null,null,null,null,null,null,null,null,null,null,null,null,0,null,null,"保険料",0]
[null,null,9,null,null,null,null,null,null,null,null,null,null,null,null,null,null,null,null,0,null,null,"消費税相当額",0]
[null,null,10,null,null,null,null,null,null,null,null,null,null,null,null,null,null,null,null,0,null,null,"再委託費",{"$f":"SUMIFS($T$8:$T$347,$E$8:$E$347,W17)","v":0}]
[null,null,11,null,null,null,null,null,null,null,null,null,null,null,null,null,null,null,null,0]
[null,null,12,null,null,null,null,null,null,null,null,null,null,null,null,null,null,null,null,0,null,null,"対象外合計（統一計算用）"]
[null,null,13,null,null,null,null,null,null,null,null,null,null,null,null,null,null,null,null,0,null,null,"人件費",{"$f":"SUMIFS($T$8:$T$347,$E$8:$E$347,W20,$U$8:$U$347,\"対象外\")","v":0}]
[null,null,14,null,null,null,null,null,null,null,null,null,null,null,null,null,null,null,null,0,null,null,"諸謝金",{"$f":"SUMIFS($T$8:$T$347,$E$8:$E$347,W21,$U$8:$U$347,\"対象外\")","v":0}]
[null,null,15,null,null,null,null,null,null,null,null,null,null,null,null,null,null,null,null,0,null,null,"旅費",{"$f":"SUMIFS($T$8:$T$347,$E$8:$E$347,W22,$U$8:$U$347,\"対象外\")","v":0}]
[null,null,16,null,null,null,null,null,null,null,null,null,null,null,null,null,null,null,null,0,null,null,"借損料",0]
[null,null,17,null,null,null,null,null,null,null,null,null,null,null,null,null,null,null,null,0,null,null,"消耗品費",{"$f":"SUMIFS($T$8:$T$347,$E$8:$E$347,W24,$U$8:$U$347,\"対象外\")","v":0}]
[null,null,18,null,null,null,null,null,null,null,null,null,null,null,null,null,null,null,null,0,null,null,"通信運搬費",0]
[null,null,19,null,null,null,null,null,null,null,null,null,null,null,null,null,null,null,null,0,null,null,"雑役務費",0]
[null,null,20,null,null,null,null,null,null,null,null,null,null,null,null,null,null,null,null,0,null,null,"保険料",0]
[null,null,21,null,null,null,null,null,null,null,null,null,null,null,null,null,null,null,null,0,null,null,"消費税相当額",0]
[null,null,22,null,null,null,null,null,null,null,null,null,null,null,null,null,null,null,null,0,null,null,"再委託費",{"$f":"SUMIFS($T$8:$T$347,$E$8:$E$347,W29,$U$8:$U$347,\"対象外\")","v":0}]
[null,null,23,null,null,null,null,null,null,null,null,null,null,null,null,null,null,null,null,0]
[null,null,24,null,null,null,null,null,null,null,null,null,null,null,null,null,null,null,null,0]
[null,null,25,null,null,null,null,null,null,null,null,null,null,null,null,null,null,null,null,0]
[null,null,26,null,null,null,null,null,null,null,null,null,null,null,null,null,null,null,null,0]
[null,null,27,null,null,null,null,null,null,null,null,null,null,null,null,null,null,null,null,0,null,null,"再委託費"]
[null,null,28,null,null,null,null,null,null,null,null,null,null,null,null,null,null,null,null,0,null,null,"人件費",{"$f":"SUMIFS($T$8:$T$347,$E$8:$E$347,$W$34,$F$8:$F$347,W35)","v":0}]
[null,null,29,null,null,null,null,null,null,null,null,null,null,null,null,null,null,null,null,0,null,null,"諸謝金",{"$f":"SUMIFS($T$8:$T$347,$E$8:$E$347,$W$34,$F$8:$F$347,W36)","v":0}]
[null,null,30,null,null,null,null,null,null,null,null,null,null,null,null,null,null,null,null,0,null,null,"旅費",0]
[null,null,31,null,null,null,null,null,null,null,null,null,null,null,null,null,null,null,null,0,null,null,"借損料",0]
[null,null,32,null,null,null,null,null,null,null,null,null,null,null,null,null,null,null,null,0,null,null,"消耗品費",0]
[null,null,33,null,null,null,null,null,null,null,null,null,null,null,null,null,null,null,null,0,null,null,"通信運搬費",0]
[null,null,34,null,null,null,null,null,null,null,null,null,null,null,null,null,null,null,null,0,null,null,"雑役務費",0]
[null,null,35,null,null,null,null,null,null,null,null,null,null,null,null,null,null,null,null,0,null,null,"保険料",0]
[null,null,36,null,null,null,null,null,null,null,null,null,null,null,null,null,null,null,null,0,null,null,"消費税相当額",0]
[null,null,37,null,null,null,null,null,null,null,null,null,null,null,null,null,null,null,null,0,null,null,"一般管理費",0]
[null,null,38,null,null,null,null,null,null,null,null,null,null,null,null,null,null,null,null,0]
[null,null,39,null,null,null,null,null,null,null,null,null,null,null,null,null,null,null,null,0,null,null,"再委託費対象外"]
[null,null,40,null,null,null,null,null,null,null,null,null,null,null,null,null,null,null,null,0,null,null,"人件費",{"$f":"SUMIFS($T$8:$T$347,$E$8:$E$347,$W$34,$F$8:$F$347,W47,$U$8:$U$347,\"対象外\")","v":0}]
[null,null,41,null,null,null,null,null,null,null,null,null,null,null,null,null,null,null,null,0,null,null,"諸謝金",{"$f":"SUMIFS($T$8:$T$347,$E$8:$E$347,$W$34,$F$8:$F$347,W48,$U$8:$U$347,\"対象外\")","v":0}]
[null,null,42,null,null,null,null,null,null,null,null,null,null,null,null,null,null,null,null,0,null,null,"旅費",0]
[null,null,43,null,null,null,null,null,null,null,null,null,null,null,null,null,null,null,null,0,null,null,"借損料",0]
[null,null,44,null,null,null,null,null,null,null,null,null,null,null,null,null,null,null,null,0,null,null,"消耗品費",0]
[null,null,45,null,null,null,null,null,null,null,null,null,null,null,null,null,null,null,null,0,null,null,"通信運搬費",0]
[null,null,46,null,null,null,null,null,null,null,null,null,null,null,null,null,null,null,null,0,null,null,"雑役務費",0]
[null,null,47,null,null,null,null,null,null,null,null,null,null,null,null,null,null,null,null,0,null,null,"保険料",0]
[null,null,48,null,null,null,null,null,null,null,null,null,null,null,null,null,null,null,null,0,null,null,"消費税相当額",0]
[null,null,49,null,null,null,null,null,null,null,null,null,null,null,null,null,null,null,null,0,null,null,"一般管理費",0]
[null,null,50,null,null,null,null,null,null,null,null,null,null,null,null,null,null,null,null,0]
[null,null,51,null,null,null,null,null,null,null,null,null,null,null,null,null,null,null,null,0]
[null,null,52,null,null,null,null,null,null,null,null,null,null,null,null,null,null,null,null,0]
[null,null,53,null,null,null,null,null,null,null,null,null,null,null,null,null,null,null,null,0]
[null,null,54,null,null,null,null,null,null,null,null,null,null,null,null,null,null,null,null,0]
[null,null,55,null,null,null,null,null,null,null,null,null,null,null,null,null,null,null,null,0]
[null,null,56,null,null,null,null,null,null,null,null,null,null,null,null,null,null,null,null,0]
[null,null,57,null,null,null,null,null,null,null,null,null,null,null,null,null,null,null,null,0]
[null,null,58,null,null,null,null,null,null,null,null,null,null,null,null,null,null,null,null,0]
[null,null,59,null,null,null,null,null,null,null,null,null,null,null,null,null,null,null,null,0]
[null,null,60,null,null,null,null,null,null,null,null,null,null,null,null,null,null,null,null,0]
[null,null,61,null,null,null,null,null,null,null,null,null,null,null,null,null,null,null,null,0]
[null,null,62,null,null,null,null,null,null,null,null,null,null,null,null,null,null,null,null,0]
[null,null,63,null,null,null,null,null,null,null,null,null,null,null,null,null,null,null,null,0]
[null,null,64,null,null,null,null,null,null,null,null,null,null,null,null,null,null,null,null,0]
[null,null,65,null,null,null,null,null,null,null,null,null,null,null,null,null,null,null,null,0]
[null,null,66,null,null,null,null,null,null,null,null,null,null,null,null,null,null,null,null,{"$f":"IF(I73=\"\",0,INT(SUM(PRODUCT(I73,K73,N73,Q73))))","v":0}]
[null,null,67,null,null,null,null,null,null,null,null,null,null,null,null,null,null,null,null,0]
[null,null,68,null,null,null,null,null,null,null,null,null,null,null,null,null,null,null,null,0]
[null,null,69,null,null,null,null,null,null,null,null,null,null,null,null,null,null,null,null,0]
[null,null,70,null,null,null,null,null,null,null,null,null,null,null,null,null,null,null,null,0]
[null,null,71,null,null,null,null,null,null,null,null,null,null,null,null,null,null,null,null,0]
[null,null,72,null,null,null,null,null,null,null,null,null,null,null,null,null,null,null,null,0]
[null,null,73,null,null,null,null,null,null,null,null,null,null,null,null,null,null,null,null,0]
[null,null,74,null,null,null,null,null,null,null,null,null,null,null,null,null,null,null,null,0]
[null,null,75,null,null,null,null,null,null,null,null,null,null,null,null,null,null,null,null,0]
[null,null,76,null,null,null,null,null,null,null,null,null,null,null,null,null,null,null,null,0]
[null,null,77,null,null,null,null,null,null,null,null,null,null,null,null,null,null,null,null,0]
[null,null,78,null,null,null,null,null,null,null,null,null,null,null,null,null,null,null,null,0]
[null,null,79,null,null,null,null,null,null,null,null,null,null,null,null,null,null,null,null,0]
[null,null,80,null,null,null,null,null,null,null,null,null,null,null,null,null,null,null,null,0]
[null,null,81,null,null,null,null,null,null,null,null,null,null,null,null,null,null,null,null,0]
[null,null,82,null,null,null,null,null,null,null,null,null,null,null,null,null,null,null,null,0]
[null,null,83,null,null,null,null,null,null,null,null,null,null,null,null,null,null,null,null,0]
[null,null,84,null,null,null,null,null,null,null,null,null,null,null,null,null,null,null,null,0]
[null,null,85,null,null,null,null,null,null,null,null,null,null,null,null,null,null,null,null,0]
[null,null,86,null,null,null,null,null,null,null,null,null,null,null,null,null,null,null,null,0]
[null,null,87,null,null,null,null,null,null,null,null,null,null,null,null,null,null,null,null,0]
[null,null,88,null,null,null,null,null,null,null,null,null,null,null,null,null,null,null,null,0]
[null,null,89,null,null,null,null,null,null,null,null,null,null,null,null,null,null,null,null,0]
[null,null,90,null,null,null,null,null,null,null,null,null,null,null,null,null,null,null,null,0]
[null,null,91,null,null,null,null,null,null,null,null,null,null,null,null,null,null,null,null,0]
[null,null,92,null,null,null,null,null,null,null,null,null,null,null,null,null,null,null,null,0]
[null,null,93,null,null,null,null,null,null,null,null,null,null,null,null,null,null,null,null,0]
[null,null,94,null,null,null,null,null,null,null,null,null,null,null,null,null,null,null,null,0]
[null,null,95,null,null,null,null,null,null,null,null,null,null,null,null,null,null,null,null,0]
[null,null,96,null,null,null,null,null,null,null,null,null,null,null,null,null,null,null,null,0]
[null,null,97,null,null,null,null,null,null,null,null,null,null,null,null,null,null,null,null,0]
[null,null,98,null,null,null,null,null,null,null,null,null,null,null,null,null,null,null,null,0]
[null,null,99,null,null,null,null,null,null,null,null,null,null,null,null,null,null,null,null,0]
[null,null,100,null,null,null,null,null,null,null,null,null,null,null,null,null,null,null,null,0]
[null,null,101,null,null,null,null,null,null,null,null,null,null,null,null,null,null,null,null,0]
[null,null,102,null,null,null,null,null,null,null,null,null,null,null,null,null,null,null,null,0]
[null,null,103,null,null,null,null,null,null,null,null,null,null,null,null,null,null,null,null,0]
[null,null,104,null,null,null,null,null,null,null,null,null,null,null,null,null,null,null,null,0]
[null,null,105,null,null,null,null,null,null,null,null,null,null,null,null,null,null,null,null,0]
[null,null,106,null,null,null,null,null,null,null,null,null,null,null,null,null,null,null,null,0]
[null,null,107,null,null,null,null,null,null,null,null,null,null,null,null,null,null,null,null,0]
[null,null,108,null,null,null,null,null,null,null,null,null,null,null,null,null,null,null,null,0]
[null,null,109,null,null,null,null,null,null,null,null,null,null,null,null,null,null,null,null,0]
[null,null,110,null,null,null,null,null,null,null,null,null,null,null,null,null,null,null,null,0]
[null,null,111,null,null,null,null,null,null,null,null,null,null,null,null,null,null,null,null,0]
[null,null,112,null,null,null,null,null,null,null,null,null,null,null,null,null,null,null,null,0]
[null,null,113,null,null,null,null,null,null,null,null,null,null,null,null,null,null,null,null,0]
[null,null,114,null,null,null,null,null,null,null,null,null,null,null,null,null,null,null,null,0]
[null,null,115,null,null,null,null,null,null,null,null,null,null,null,null,null,null,null,null,0]
[null,null,116,null,null,null,null,null,null,null,null,null,null,null,null,null,null,null,null,0]
[null,null,117,null,null,null,null,null,null,null,null,null,null,null,null,null,null,null,null,0]
[null,null,118,null,null,null,null,null,null,null,null,null,null,null,null,null,null,null,null,0]
[null,null,119,null,null,null,null,null,null,null,null,null,null,null,null,null,null,null,null,0]
[null,null,120,null,null,null,null,null,null,null,null,null,null,null,null,null,null,null,null,0]
[null,null,121,null,null,null,null,null,null,null,null,null,null,null,null,null,null,null,null,0]
[null,null,122,null,null,null,null,null,null,null,null,null,null,null,null,null,null,null,null,0]
[null,null,123,null,null,null,null,null,null,null,null,null,null,null,null,null,null,null,null,0]
[null,null,124,null,null,null,null,null,null,null,null,null,null,null,null,null,null,null,null,0]
[null,null,125,null,null,null,null,null,null,null,null,null,null,null,null,null,null,null,null,0]
[null,null,126,null,null,null,null,null,null,null,null,null,null,null,null,null,null,null,null,0]
[null,null,127,null,null,null,null,null,null,null,null,null,null,null,null,null,null,null,null,0]
[null,null,128,null,null,null,null,null,null,null,null,null,null,null,null,null,null,null,null,0]
[null,null,129,null,null,null,null,null,null,null,null,null,null,null,null,null,null,null,null,0]
[null,null,130,null,null,null,null,null,null,null,null,null,null,null,null,null,null,null,null,{"$f":"IF(I137=\"\",0,INT(SUM(PRODUCT(I137,K137,N137,Q137))))","v":0}]
[null,null,131,null,null,null,null,null,null,null,null,null,null,null,null,null,null,null,null,0]
[null,null,132,null,null,null,null,null,null,null,null,null,null,null,null,null,null,null,null,0]
[null,null,133,null,null,null,null,null,null,null,null,null,null,null,null,null,null,null,null,0]
[null,null,134,null,null,null,null,null,null,null,null,null,null,null,null,null,null,null,null,0]
[null,null,135,null,null,null,null,null,null,null,null,null,null,null,null,null,null,null,null,0]
[null,null,136,null,null,null,null,null,null,null,null,null,null,null,null,null,null,null,null,0]
[null,null,137,null,null,null,null,null,null,null,null,null,null,null,null,null,null,null,null,0]
[null,null,138,null,null,null,null,null,null,null,null,null,null,null,null,null,null,null,null,0]
[null,null,139,null,null,null,null,null,null,null,null,null,null,null,null,null,null,null,null,0]
[null,null,140,null,null,null,null,null,null,null,null,null,null,null,null,null,null,null,null,0]
[null,null,141,null,null,null,null,null,null,null,null,null,null,null,null,null,null,null,null,0]
[null,null,142,null,null,null,null,null,null,null,null,null,null,null,null,null,null,null,null,0]
[null,null,143,null,null,null,null,null,null,null,null,null,null,null,null,null,null,null,null,0]
[null,null,144,null,null,null,null,null,null,null,null,null,null,null,null,null,null,null,null,0]
[null,null,145,null,null,null,null,null,null,null,null,null,null,null,null,null,null,null,null,0]
[null,null,146,null,null,null,null,null,null,null,null,null,null,null,null,null,null,null,null,0]
[null,null,147,null,null,null,null,null,null,null,null,null,null,null,null,null,null,null,null,0]
[null,null,148,null,null,null,null,null,null,null,null,null,null,null,null,null,null,null,null,0]
[null,null,149,null,null,null,null,null,null,null,null,null,null,null,null,null,null,null,null,0]
[null,null,150,null,null,null,null,null,null,null,null,null,null,null,null,null,null,null,null,0]
[null,null,151,null,null,null,null,null,null,null,null,null,null,null,null,null,null,null,null,0]
[null,null,152,null,null,null,null,null,null,null,null,null,null,null,null,null,null,null,null,0]
[null,null,153,null,null,null,null,null,null,null,null,null,null,null,null,null,null,null,null,0]
[null,null,154,null,null,null,null,null,null,null,null,null,null,null,null,null,null,null,null,0]
[null,null,155,null,null,null,null,null,null,null,null,null,null,null,null,null,null,null,null,0]
[null,null,156,null,null,null,null,null,null,null,null,null,null,null,null,null,null,null,null,0]
[null,null,157,null,null,null,null,null,null,null,null,null,null,null,null,null,null,null,null,0]
[null,null,158,null,null,null,null,null,null,null,null,null,null,null,null,null,null,null,null,0]
[null,null,159,null,null,null,null,null,null,null,null,null,null,null,null,null,null,null,null,0]
[null,null,160,null,null,null,null,null,null,null,null,null,null,null,null,null,null,null,null,0]
[null,null,161,null,null,null,null,null,null,null,null,null,null,null,null,null,null,null,null,0]
[null,null,162,null,null,null,null,null,null,null,null,null,null,null,null,null,null,null,null,0]
[null,null,163,null,null,null,null,null,null,null,null,null,null,null,null,null,null,null,null,0]
[null,null,164,null,null,null,null,null,null,null,null,null,null,null,null,null,null,null,null,0]
[null,null,165,null,null,null,null,null,null,null,null,null,null,null,null,null,null,null,null,0]
[null,null,166,null,null,null,null,null,null,null,null,null,null,null,null,null,null,null,null,0]
[null,null,167,null,null,null,null,null,null,null,null,null,null,null,null,null,null,null,null,0]
[null,null,168,null,null,null,null,null,null,null,null,null,null,null,null,null,null,null,null,0]
[null,null,169,null,null,null,null,null,null,null,null,null,null,null,null,null,null,null,null,0]
[null,null,170,null,null,null,null,null,null,null,null,null,null,null,null,null,null,null,null,0]
[null,null,171,null,null,null,null,null,null,null,null,null,null,null,null,null,null,null,null,0]
[null,null,172,null,null,null,null,null,null,null,null,null,null,null,null,null,null,null,null,0]
[null,null,173,null,null,null,null,null,null,null,null,null,null,null,null,null,null,null,null,0]
[null,null,174,null,null,null,null,null,null,null,null,null,null,null,null,null,null,null,null,0]
[null,null,175,null,null,null,null,null,null,null,null,null,null,null,null,null,null,null,null,0]
[null,null,176,null,null,null,null,null,null,null,null,null,null,null,null,null,null,null,null,0]
[null,null,177,null,null,null,null,null,null,null,null,null,null,null,null,null,null,null,null,0]
[null,null,178,null,null,null,null,null,null,null,null,null,null,null,null,null,null,null,null,0]
[null,null,179,null,null,null,null,null,null,null,null,null,null,null,null,null,null,null,null,0]
[null,null,180,null,null,null,null,null,null,null,null,null,null,null,null,null,null,null,null,0]
[null,null,181,null,null,null,null,null,null,null,null,null,null,null,null,null,null,null,null,0]
[null,null,182,null,null,null,null,null,null,null,null,null,null,null,null,null,null,null,null,0]
[null,null,183,null,null,null,null,null,null,null,null,null,null,null,null,null,null,null,null,0]
[null,null,184,null,null,null,null,null,null,null,null,null,null,null,null,null,null,null,null,0]
[null,null,185,null,null,null,null,null,null,null,null,null,null,null,null,null,null,null,null,0]
[null,null,186,null,null,null,null,null,null,null,null,null,null,null,null,null,null,null,null,0]
[null,null,187,null,null,null,null,null,null,null,null,null,null,null,null,null,null,null,null,0]
[null,null,188,null,null,null,null,null,null,null,null,null,null,null,null,null,null,null,null,0]
[null,null,189,null,null,null,null,null,null,null,null,null,null,null,null,null,null,null,null,0]
[null,null,190,null,null,null,null,null,null,null,null,null,null,null,null,null,null,null,null,0]
[null,null,191,null,null,null,null,null,null,null,null,null,null,null,null,null,null,null,null,0]
[null,null,192,null,null,null,null,null,null,null,null,null,null,null,null,null,null,null,null,0]
[null,null,193,null,null,null,null,null,null,null,null,null,null,null,null,null,null,null,null,0]
[null,null,194,null,null,null,null,null,null,null,null,null,null,null,null,null,null,null,null,{"$f":"IF(I201=\"\",0,INT(SUM(PRODUCT(I201,K201,N201,Q201))))","v":0}]
[null,null,195,null,null,null,null,null,null,null,null,null,null,null,null,null,null,null,null,0]
[null,null,196,null,null,null,null,null,null,null,null,null,null,null,null,null,null,null,null,0]
[null,null,197,null,null,null,null,null,null,null,null,null,null,null,null,null,null,null,null,0]
[null,null,198,null,null,null,null,null,null,null,null,null,null,null,null,null,null,null,null,0]
[null,null,199,null,null,null,null,null,null,null,null,null,null,null,null,null,null,null,null,0]
[null,null,200,null,null,null,null,null,null,null,null,null,null,null,null,null,null,null,null,0]
[null,null,201,null,null,null,null,null,null,null,null,null,null,null,null,null,null,null,null,0]
[null,null,202,null,null,null,null,null,null,null,null,null,null,null,null,null,null,null,null,0]
[null,null,203,null,null,null,null,null,null,null,null,null,null,null,null,null,null,null,null,0]
[null,null,204,null,null,null,null,null,null,null,null,null,null,null,null,null,null,null,null,0]
[null,null,205,null,null,null,null,null,null,null,null,null,null,null,null,null,null,null,null,0]
[null,null,206,null,null,null,null,null,null,null,null,null,null,null,null,null,null,null,null,0]
[null,null,207,null,null,null,null,null,null,null,null,null,null,null,null,null,null,null,null,0]
[null,null,208,null,null,null,null,null,null,null,null,null,null,null,null,null,null,null,null,0]
[null,null,209,null,null,null,null,null,null,null,null,null,null,null,null,null,null,null,null,0]
[null,null,210,null,null,null,null,null,null,null,null,null,null,null,null,null,null,null,null,0]
[null,null,211,null,null,null,null,null,null,null,null,null,null,null,null,null,null,null,null,0]
[null,null,212,null,null,null,null,null,null,null,null,null,null,null,null,null,null,null,null,0]
[null,null,213,null,null,null,null,null,null,null,null,null,null,null,null,null,null,null,null,0]
[null,null,214,null,null,null,null,null,null,null,null,null,null,null,null,null,null,null,null,0]
[null,null,215,null,null,null,null,null,null,null,null,null,null,null,null,null,null,null,null,0]
[null,null,216,null,null,null,null,null,null,null,null,null,null,null,null,null,null,null,null,0]
[null,null,217,null,null,null,null,null,null,null,null,null,null,null,null,null,null,null,null,0]
[null,null,218,null,null,null,null,null,null,null,null,null,null,null,null,null,null,null,null,0]
[null,null,219,null,null,null,null,null,null,null,null,null,null,null,null,null,null,null,null,0]
[null,null,220,null,null,null,null,null,null,null,null,null,null,null,null,null,null,null,null,0]
[null,null,221,null,null,null,null,null,null,null,null,null,null,null,null,null,null,null,null,0]
[null,null,222,null,null,null,null,null,null,null,null,null,null,null,null,null,null,null,null,0]
[null,null,223,null,null,null,null,null,null,null,null,null,null,null,null,null,null,null,null,0]
[null,null,224,null,null,null,null,null,null,null,null,null,null,null,null,null,null,null,null,0]
[null,null,225,null,null,null,null,null,null,null,null,null,null,null,null,null,null,null,null,0]
[null,null,226,null,null,null,null,null,null,null,null,null,null,null,null,null,null,null,null,0]
[null,null,227,null,null,null,null,null,null,null,null,null,null,null,null,null,null,null,null,0]
[null,null,228,null,null,null,null,null,null,null,null,null,null,null,null,null,null,null,null,0]
[null,null,229,null,null,null,null,null,null,null,null,null,null,null,null,null,null,null,null,0]
[null,null,230,null,null,null,null,null,null,null,null,null,null,null,null,null,null,null,null,0]
[null,null,231,null,null,null,null,null,null,null,null,null,null,null,null,null,null,null,null,0]
[null,null,232,null,null,null,null,null,null,null,null,null,null,null,null,null,null,null,null,0]
[null,null,233,null,null,null,null,null,null,null,null,null,null,null,null,null,null,null,null,0]
[null,null,234,null,null,null,null,null,null,null,null,null,null,null,null,null,null,null,null,0]
[null,null,235,null,null,null,null,null,null,null,null,null,null,null,null,null,null,null,null,0]
[null,null,236,null,null,null,null,null,null,null,null,null,null,null,null,null,null,null,null,0]
[null,null,237,null,null,null,null,null,null,null,null,null,null,null,null,null,null,null,null,0]
[null,null,238,null,null,null,null,null,null,null,null,null,null,null,null,null,null,null,null,0]
[null,null,239,null,null,null,null,null,null,null,null,null,null,null,null,null,null,null,null,0]
[null,null,240,null,null,null,null,null,null,null,null,null,null,null,null,null,null,null,null,0]
[null,null,241,null,null,null,null,null,null,null,null,null,null,null,null,null,null,null,null,0]
[null,null,242,null,null,null,null,null,null,null,null,null,null,null,null,null,null,null,null,0]
[null,null,243,null,null,null,null,null,null,null,null,null,null,null,null,null,null,null,null,0]
[null,null,244,null,null,null,null,null,null,null,null,null,null,null,null,null,null,null,null,0]
[null,null,245,null,null,null,null,null,null,null,null,null,null,null,null,null,null,null,null,0]
[null,null,246,null,null,null,null,null,null,null,null,null,null,null,null,null,null,null,null,0]
[null,null,247,null,null,null,null,null,null,null,null,null,null,null,null,null,null,null,null,0]
[null,null,248,null,null,null,null,null,null,null,null,null,null,null,null,null,null,null,null,0]
[null,null,249,null,null,null,null,null,null,null,null,null,null,null,null,null,null,null,null,0]
[null,null,250,null,null,null,null,null,null,null,null,null,null,null,null,null,null,null,null,0]
[null,null,251,null,null,null,null,null,null,null,null,null,null,null,null,null,null,null,null,0]
[null,null,252,null,null,null,null,null,null,null,null,null,null,null,null,null,null,null,null,0]
[null,null,253,null,null,null,null,null,null,null,null,null,null,null,null,null,null,null,null,0]
[null,null,254,null,null,null,null,null,null,null,null,null,null,null,null,null,null,null,null,0]
[null,null,255,null,null,null,null,null,null,null,null,null,null,null,null,null,null,null,null,0]
[null,null,256,null,null,null,null,null,null,null,null,null,null,null,null,null,null,null,null,0]
[null,null,257,null,null,null,null,null,null,null,null,null,null,null,null,null,null,null,null,0]
[null,null,258,null,null,null,null,null,null,null,null,null,null,null,null,null,null,null,null,{"$f":"IF(I265=\"\",0,INT(SUM(PRODUCT(I265,K265,N265,Q265))))","v":0}]
[null,null,259,null,null,null,null,null,null,null,null,null,null,null,null,null,null,null,null,0]
[null,null,260,null,null,null,null,null,null,null,null,null,null,null,null,null,null,null,null,0]
[null,null,261,null,null,null,null,null,null,null,null,null,null,null,null,null,null,null,null,0]
[null,null,262,null,null,null,null,null,null,null,null,null,null,null,null,null,null,null,null,0]
[null,null,263,null,null,null,null,null,null,null,null,null,null,null,null,null,null,null,null,0]
[null,null,264,null,null,null,null,null,null,null,null,null,null,null,null,null,null,null,null,0]
[null,null,265,null,null,null,null,null,null,null,null,null,null,null,null,null,null,null,null,0]
[null,null,266,null,null,null,null,null,null,null,null,null,null,null,null,null,null,null,null,0]
[null,null,267,null,null,null,null,null,null,null,null,null,null,null,null,null,null,null,null,0]
[null,null,268,null,null,null,null,null,null,null,null,null,null,null,null,null,null,null,null,0]
[null,null,269,null,null,null,null,null,null,null,null,null,null,null,null,null,null,null,null,0]
[null,null,270,null,null,null,null,null,null,null,null,null,null,null,null,null,null,null,null,0]
[null,null,271,null,null,null,null,null,null,null,null,null,null,null,null,null,null,null,null,0]
[null,null,272,null,null,null,null,null,null,null,null,null,null,null,null,null,null,null,null,0]
[null,null,273,null,null,null,null,null,null,null,null,null,null,null,null,null,null,null,null,0]
[null,null,274,null,null,null,null,null,null,null,null,null,null,null,null,null,null,null,null,0]
[null,null,275,null,null,null,null,null,null,null,null,null,null,null,null,null,null,null,null,0]
[null,null,276,null,null,null,null,null,null,null,null,null,null,null,null,null,null,null,null,0]
[null,null,277,null,null,null,null,null,null,null,null,null,null,null,null,null,null,null,null,0]
[null,null,278,null,null,null,null,null,null,null,null,null,null,null,null,null,null,null,null,0]
[null,null,279,null,null,null,null,null,null,null,null,null,null,null,null,null,null,null,null,0]
[null,null,280,null,null,null,null,null,null,null,null,null,null,null,null,null,null,null,null,0]
[null,null,281,null,null,null,null,null,null,null,null,null,null,null,null,null,null,null,null,0]
[null,null,282,null,null,null,null,null,null,null,null,null,null,null,null,null,null,null,null,0]
[null,null,283,null,null,null,null,null,null,null,null,null,null,null,null,null,null,null,null,0]
[null,null,284,null,null,null,null,null,null,null,null,null,null,null,null,null,null,null,null,0]
[null,null,285,null,null,null,null,null,null,null,null,null,null,null,null,null,null,null,null,0]
[null,null,286,null,null,null,null,null,null,null,null,null,null,null,null,null,null,null,null,0]
[null,null,287,null,null,null,null,null,null,null,null,null,null,null,null,null,null,null,null,0]
[null,null,288,null,null,null,null,null,null,null,null,null,null,null,null,null,null,null,null,0]
[null,null,289,null,null,null,null,null,null,null,null,null,null,null,null,null,null,null,null,0]
[null,null,290,null,null,null,null,null,null,null,null,null,null,null,null,null,null,null,null,0]
[null,null,291,null,null,null,null,null,null,null,null,null,null,null,null,null,null,null,null,0]
[null,null,292,null,null,null,null,null,null,null,null,null,null,null,null,null,null,null,null,0]
[null,null,293,null,null,null,null,null,null,null,null,null,null,null,null,null,null,null,null,0]
[null,null,294,null,null,null,null,null,null,null,null,null,null,null,null,null,null,null,null,0]
[null,null,295,null,null,null,null,null,null,null,null,null,null,null,null,null,null,null,null,0]
[null,null,296,null,null,null,null,null,null,null,null,null,null,null,null,null,null,null,null,0]
[null,null,297,null,null,null,null,null,null,null,null,null,null,null,null,null,null,null,null,0]
[null,null,298,null,null,null,null,null,null,null,null,null,null,null,null,null,null,null,null,0]
[null,null,299,null,null,null,null,null,null,null,null,null,null,null,null,null,null,null,null,0]
[null,null,300,null,null,null,null,null,null,null,null,null,null,null,null,null,null,null,null,0]
[null,null,301,null,null,null,null,null,null,null,null,null,null,null,null,null,null,null,null,0]
[null,null,302,null,null,null,null,null,null,null,null,null,null,null,null,null,null,null,null,0]
[null,null,303,null,null,null,null,null,null,null,null,null,null,null,null,null,null,null,null,0]
[null,null,304,null,null,null,null,null,null,null,null,null,null,null,null,null,null,null,null,0]
[null,null,305,null,null,null,null,null,null,null,null,null,null,null,null,null,null,null,null,0]
[null,null,306,null,null,null,null,null,null,null,null,null,null,null,null,null,null,null,null,0]
[null,null,307,null,null,null,null,null,null,null,null,null,null,null,null,null,null,null,null,0]
[null,null,308,null,null,null,null,null,null,null,null,null,null,null,null,null,null,null,null,0]
[null,null,309,null,null,null,null,null,null,null,null,null,null,null,null,null,null,null,null,0]
[null,null,310,null,null,null,null,null,null,null,null,null,null,null,null,null,null,null,null,0]
[null,null,311,null,null,null,null,null,null,null,null,null,null,null,null,null,null,null,null,0]
[null,null,312,null,null,null,null,null,null,null,null,null,null,null,null,null,null,null,null,0]
[null,null,313,null,null,null,null,null,null,null,null,null,null,null,null,null,null,null,null,0]
[null,null,314,null,null,null,null,null,null,null,null,null,null,null,null,null,null,null,null,0]
[null,null,315,null,null,null,null,null,null,null,null,null,null,null,null,null,null,null,null,0]
[null,null,316,null,null,null,null,null,null,null,null,null,null,null,null,null,null,null,null,0]
[null,null,317,null,null,null,null,null,null,null,null,null,null,null,null,null,null,null,null,0]
[null,null,318,null,null,null,null,null,null,null,null,null,null,null,null,null,null,null,null,0]
[null,null,319,null,null,null,null,null,null,null,null,null,null,null,null,null,null,null,null,0]
[null,null,320,null,null,null,null,null,null,null,null,null,null,null,null,null,null,null,null,0]
[null,null,321,null,null,null,null,null,null,null,null,null,null,null,null,null,null,null,null,0]
[null,null,322,null,null,null,null,null,null,null,null,null,null,null,null,null,null,null,null,{"$f":"IF(I329=\"\",0,INT(SUM(PRODUCT(I329,K329,N329,Q329))))","v":0}]
[null,null,323,null,null,null,null,null,null,null,null,null,null,null,null,null,null,null,null,0]
[null,null,324,null,null,null,null,null,null,null,null,null,null,null,null,null,null,null,null,0]
[null,null,325,null,null,null,null,null,null,null,null,null,null,null,null,null,null,null,null,0]
[null,null,326,null,null,null,null,null,null,null,null,null,null,null,null,null,null,null,null,0]
[null,null,327,null,null,null,null,null,null,null,null,null,null,null,null,null,null,null,null,0]
[null,null,328,null,null,null,null,null,null,null,null,null,null,null,null,null,null,null,null,0]
[null,null,329,null,null,null,null,null,null,null,null,null,null,null,null,null,null,null,null,0]
[null,null,330,null,null,null,null,null,null,null,null,null,null,null,null,null,null,null,null,0]
[null,null,331,null,null,null,null,null,null,null,null,null,null,null,null,null,null,null,null,0]
[null,null,332,null,null,null,null,null,null,null,null,null,null,null,null,null,null,null,null,0]
[null,null,333,null,null,null,null,null,null,null,null,null,null,null,null,null,null,null,null,0]
[null,null,334,null,null,null,null,null,null,null,null,null,null,null,null,null,null,null,null,0]
[null,null,335,null,null,null,null,null,null,null,null,null,null,null,null,null,null,null,null,0]
[null,null,336,null,null,null,null,null,null,null,null,null,null,null,null,null,null,null,null,0]
[null,null,337,null,null,null,null,null,null,null,null,null,null,null,null,null,null,null,null,0]
[null,null,338,null,null,null,null,null,null,null,null,null,null,null,null,null,null,null,null,0]
[null,null,339,null,null,null,null,null,null,null,null,null,null,null,null,null,null,null,null,0]
[null,null,340,null,null,null,null,null,null,null,null,null,null,null,null,null,null,null,null,0]
[]
[]
[null,null,"【収入の部】",null,null,null,"（単位：円）"]
[null,null,"No.",null,"費目","内　　訳","金  額",null,null,null,null,null,null,null,null,null,null,null,null,null,null,null,"収入合計（統一用）"]
[null,null,1,null,null,null,null,null,null,null,null,null,null,null,null,null,null,null,null,null,null,null,"自己負担金",{"$f":"SUMIFS($G$352:$G$410,$E$352:$E$410,W352)","v":0}]
[null,null,2,null,null,null,null,null,null,null,null,null,null,null,null,null,null,null,null,null,null,null,"助成金等",{"$f":"SUMIFS($G$352:$G$410,$E$352:$E$410,W353)","v":0}]
[null,null,3,null,null,null,null,null,null,null,null,null,null,null,null,null,null,null,null,null,null,null,"その他収入",0]
[null,null,4]
[null,null,5]
[null,null,6]
[null,null,7]
[null,null,8]
[null,null,9]
[null,null,10]
[null,null,11]
[null,null,12]
[null,null,13]
[null,null,14]
[null,null,15]
[null,null,16]
[null,null,17]
[null,null,18]
[null,null,19]
[null,null,20]
[null,null,21]
[null,null,22]
[null,null,23]
[null,null,24]
[null,null,25]
[null,null,26]
[null,null,27]
[null,null,28]
[null,null,29]
[null,null,30]
[null,null,31]
[null,null,32]
[null,null,33]
[null,null,34]
[null,null,35]
[null,null,36]
[null,null,37]
[null,null,38]
[null,null,39]
[null,null,40]
[null,null,41]
[null,null,42]
[null,null,43]
[null,null,44]
[null,null,45]
[null,null,46]
[null,null,47]
[null,null,48]
[null,null,49]
[null,null,50]
[null,null,51]
[null,null,52]
[null,null,53]
[null,null,54,null,null,null,null,null,null,null,null,null,null,null,null,null,null,null,null,null,null,null,"（統合計算用）"]
[null,null,55,null,null,null,null,null,null,null,null,null,null,null,null,null,null,null,null,null,null,null,"自己負担金",{"$f":"SUMIFS(G352:G410,E352:E410,W406)","v":0}]
[null,null,56,null,null,null,null,null,null,null,null,null,null,null,null,null,null,null,null,null,null,null,"助成金等",{"$f":"SUMIFS(G352:G410,E352:E410,W407)","v":0}]
[null,null,57,null,null,null,null,null,null,null,null,null,null,null,null,null,null,null,null,null,null,null,"その他収入",{"$f":"SUMIFS(G352:G410,E352:E410,W408)","v":0}]
[null,null,58]
[null,null,59]

{"sheet":"end","index":13,"n_rows":7,"n_cols":2,"rows_kept":7,"cut":false,"hidden":true,"merged":[]}
[]
[null,"このシートは教室の統一計算用に保持してあるものです"]
[null,"消さないでください！"]
[]
[]
[]
[null,"事業ごとの支出・収入内訳明細書は、これより前にタブ作成してください"]